Workbook

Sheet voederbehoeftenormen (hidden)
A1: zoogkoeien | O1: kalving | P1: fysiologische toestand
B2: kalving | C2: fysiologische toestand | D2: VEM | E2: DVE (g) | F2: OEB (g) | G2: Structuur (/kg DS) | H2: Ca (g/kg DS) | I2: P (g/kg DS) | J2: Mg (g) | K2: Na (g) | L2: K (g) | O2: 1e | P2: niet-zogend
B3: 1e | C3: niet-zogend | D3: 5473 | E3: 146 | F3: -75 | G3: =0.6*zoogkoeien!$D$67 -> 0 | H3: =7.6022+(0.9706*zoogkoeien!$D$67) -> 7.6022 | I3: =(1.3867*zoogkoeien!$D$67)+1.2236 -> 1.2236 | J3: 8.1 | O3: 2e | P3: hoogdrachtig (7m)
B4: 1e | C4: hoogdrachtig (7m) | D4: 6382.5 | E4: 258 | F4: -75 | G4: =0.6*zoogkoeien!$D$67 -> 0 | H4: =7.6022+(0.9706*zoogkoeien!$D$67) -> 7.6022 | I4: =(1.3867*zoogkoeien!$D$67)+1.2236 -> 1.2236 | J4: 9.1 | O4: 3e of meer | P4: hoogdrachtig (8m)
B5: 1e | C5: hoogdrachtig (8m) | D5: 7077.5 | E5: 339 | F5: -75 | G5: =0.6*zoogkoeien!$D$67 -> 0 | H5: =17.01397+(0.9706*zoogkoeien!$D$67) -> 17.01397 | I5: =(1.3867*zoogkoeien!$D$67)+6.6903 -> 6.6903 | J5: 9 | P5: hoogdrachtig (9m)
B6: 1e | C6: hoogdrachtig (9m) | D6: 8362.5 | E6: 446 | F6: -75 | G6: =0.6*zoogkoeien!$D$67 -> 0 | H6: =21.2787+(0.9706*zoogkoeien!$D$67) -> 21.2787 | I6: =(1.3867*zoogkoeien!$D$67)+8.0236 -> 8.0236 | J6: 9.5 | P6: zogend
B7: 1e | C7: zogend | D7: 8125 | E7: 458 | F7: 0 | G7: =0.7*zoogkoeien!$D$67 -> 0 | H7: =18.1904+(0.9706*zoogkoeien!$D$67) -> 18.1904 | I7: =(1.08*zoogkoeien!$D$67)+9.2236 -> 9.2236 | J7: 10.7
B8: 2e | C8: niet-zogend | D8: 5956 | E8: 154 | F8: -94 | G8: =0.6*zoogkoeien!$D$67 -> 0 | H8: =8.4097+(0.9706*zoogkoeien!$D$67) -> 8.4097 | I8: =(1.3867*zoogkoeien!$D$67)+1.1963 -> 1.1963 | J8: 9.2
B9: 2e | C9: hoogdrachtig (7m) | D9: 6866.25 | E9: 265.5 | F9: -94 | G9: =0.6*zoogkoeien!$D$67 -> 0 | H9: =8.4097+(0.9706*zoogkoeien!$D$67) -> 8.4097 | I9: =(1.3867*zoogkoeien!$D$67)+1.1963 -> 1.1963 | J9: 10.2
B10: 2e | C10: hoogdrachtig (8m) | D10: 7561.25 | E10: 346.5 | F10: -94 | G10: =0.6*zoogkoeien!$D$67 -> 0 | H10: =17.8215+(0.9706*zoogkoeien!$D$67) -> 17.8215 | I10: =(1.3867*zoogkoeien!$D$67)+6.6629 -> 6.6629 | J10: 10
B11: 2e | C11: hoogdrachtig (9m) | D11: 8846.25 | E11: 453.5 | F11: -94 | G11: =0.6*zoogkoeien!$D$67 -> 0 | H11: =22.0862+(0.9706*zoogkoeien!$D$67) -> 22.0862 | I11: =(1.3867*zoogkoeien!$D$67)+7.9963 -> 7.9963 | J11: 10.5
B12: 2e | C12: zogend | D12: 9050 | E12: 518 | F12: 0 | G12: =0.7*zoogkoeien!$D$67 -> 0 | H12: =20.7626+(0.9706*zoogkoeien!$D$67) -> 20.7626 | I12: =(1.08*zoogkoeien!$D$67)+10.5296 -> 10.5296 | J12: 12.2
B13: 3e of meer | C13: niet-zogend | D13: 6110 | E13: 143 | F13: -113 | G13: =0.75*zoogkoeien!$D$67 -> 0 | H13: =7.7715+(0.9706*zoogkoeien!$D$67) -> 7.7715 | I13: =(1.3867*zoogkoeien!$D$67)+0.3909 -> 0.3909 | J13: 10.1
B14: 3e of meer | C14: hoogdrachtig (7m) | D14: 7020 | E14: 255 | F14: -113 | G14: =0.75*zoogkoeien!$D$67 -> 0 | H14: =7.7715+(0.9706*zoogkoeien!$D$67) -> 7.7715 | I14: =(1.3867*zoogkoeien!$D$67)+0.3909 -> 0.3909 | J14: 11.1
B15: 3e of meer | C15: hoogdrachtig (8m) | D15: 7715 | E15: 336 | F15: -113 | G15: =0.75*zoogkoeien!$D$67 -> 0 | H15: =17.1832+(0.9706*zoogkoeien!$D$67) -> 17.1832 | I15: =(1.3867*zoogkoeien!$D$67)+5.8576 -> 5.8576 | J15: 11
B16: 3e of meer | C16: hoogdrachtig (9m) | D16: 9000 | E16: 443 | F16: -113 | G16: =0.75*zoogkoeien!$D$67 -> 0 | H16: =21.4479+(0.9706*zoogkoeien!$D$67) -> 21.4479 | I16: =(1.3867*zoogkoeien!$D$67)+7.1909 -> 7.1909 | J16: 11.5
B17: 3e of meer | C17: zogend | D17: 9204 | E17: 507 | F17: 0 | G17: =0.75*zoogkoeien!$D$67 -> 0 | H17: =20.1244+(0.9706*zoogkoeien!$D$67) -> 20.1244 | I17: =(1.08*zoogkoeien!$D$67)+9.7243 -> 9.7243 | J17: 13.1
A20: stieren
B22: Gewicht (kg) | C22: Groei (g/dag) | D22: VEVI | E22: DVE (g) | F22: OEB (g) | G22: Structuur (/kg DS) | H22: Ca (g/kg DS) | I22: P (g/kg DS) | J22: Mg (g) | K22: Na (g/kg DS) | L22: K (g/kg DS) | O22: Gewicht (kg) | P22: Groei (g/dag)
B23: 350 | C23: 900 | D23: 6695 | E23: 388 | F23: -25 | G23: =0.6*stieren!$D$67 -> 0 | H23: =((0.0079*B23+0.66*stieren!$D$67-0.74)+(46.334688*POWER('voederbehoeftenormen '!B23,(-0.22))*C23/1000))*100/68 -> 19.88020476 | I23: =((0.83*stieren!$D$67)+(1.2+(21.847536*POWER(B23,-0.22)))*C23/1000)*100/75 -> 8.66584664 | J23: 6.35 | O23: 350 | P23: 900
B24: 400 | C24: 900 | D24: 7287 | E24: 417 | F24: -37.5 | G24: =0.6*stieren!$D$67 -> 0 | H24: =((0.0079*B24+0.66*stieren!$D$67-0.74)+(46.334688*POWER('voederbehoeftenormen '!B24,(-0.22))*C24/1000))*100/68 -> 19.97177335 | I24: =((0.83*stieren!$D$67)+(1.2+(21.847536*POWER(B24,-0.22)))*C24/1000)*100/75 -> 8.456661273 | J24: 7.064285714 | O24: 400 | P24: 1000
B25: 450 | C25: 900 | D25: 7879 | E25: 446 | F25: -50 | G25: =0.6*stieren!$D$67 -> 0 | H25: =((0.0079*B25+0.66*stieren!$D$67-0.74)+(46.334688*POWER('voederbehoeftenormen '!B25,(-0.22))*C25/1000))*100/68 -> 20.13282186 | I25: =((0.83*stieren!$D$67)+(1.2+(21.847536*POWER(B25,-0.22)))*C25/1000)*100/75 -> 8.277179104 | J25: 7.778571429 | O25: 450 | P25: 1100
B26: 500 | C26: 900 | D26: 8471 | E26: 475 | F26: -62.5 | G26: =0.6*stieren!$D$67 -> 0 | H26: =((0.0079*B26+0.66*stieren!$D$67-0.74)+(46.334688*POWER('voederbehoeftenormen '!B26,(-0.22))*C26/1000))*100/68 -> 20.34725816 | I26: =((0.83*stieren!$D$67)+(1.2+(21.847536*POWER(B26,-0.22)))*C26/1000)*100/75 -> 8.120520619 | J26: 8.492857143 | O26: 500 | P26: 1200
B27: 550 | C27: 900 | D27: 9063 | E27: 504 | F27: -75 | G27: =0.6*stieren!$D$67 -> 0 | H27: =((0.0079*B27+0.66*stieren!$D$67-0.74)+(46.334688*POWER('voederbehoeftenormen '!B27,(-0.22))*C27/1000))*100/68 -> 20.60388813 | I27: =((0.83*stieren!$D$67)+(1.2+(21.847536*POWER(B27,-0.22)))*C27/1000)*100/75 -> 7.981900253 | J27: 9.207142857 | O27: 550 | P27: 1300
B28: 600 | C28: 900 | D28: 9655 | E28: 533 | F28: -87.5 | G28: =0.6*stieren!$D$67 -> 0 | H28: =((0.0079*B28+0.66*stieren!$D$67-0.74)+(46.334688*POWER('voederbehoeftenormen '!B28,(-0.22))*C28/1000))*100/68 -> 20.89462978 | I28: =((0.83*stieren!$D$67)+(1.2+(21.847536*POWER(B28,-0.22)))*C28/1000)*100/75 -> 7.857862889 | J28: 9.921428571 | O28: 600 | P28: 1400
B29: 650 | C29: 900 | D29: 10247 | E29: 562 | F29: -100 | G29: =0.6*stieren!$D$67 -> 0 | H29: =((0.0079*B29+0.66*stieren!$D$67-0.74)+(46.334688*POWER('voederbehoeftenormen '!B29,(-0.22))*C29/1000))*100/68 -> 21.21346899 | I29: =((0.83*stieren!$D$67)+(1.2+(21.847536*POWER(B29,-0.22)))*C29/1000)*100/75 -> 7.745837447 | J29: 10.63571429 | O29: 650 | P29: 1500
B30: 700 | C30: 900 | D30: 10839 | E30: 591 | F30: -112.5 | G30: =0.6*stieren!$D$67 -> 0 | H30: =((0.0079*B30+0.66*stieren!$D$67-0.74)+(46.334688*POWER('voederbehoeftenormen '!B30,(-0.22))*C30/1000))*100/68 -> 21.55581695 | I30: =((0.83*stieren!$D$67)+(1.2+(21.847536*POWER(B30,-0.22)))*C30/1000)*100/75 -> 7.643862174 | J30: 11.35 | O30: 700 | P30: 1600
B31: 350 | C31: 1000 | D31: 6847 | E31: 432 | F31: -25 | G31: =0.6*stieren!$D$67 -> 0 | H31: =((0.0079*B31+0.66*stieren!$D$67-0.74)+(46.334688*POWER('voederbehoeftenormen '!B31,(-0.22))*C31/1000))*100/68 -> 21.75823404 | I31: =((0.83*stieren!$D$67)+(1.2+(21.847536*POWER(B31,-0.22)))*C31/1000)*100/75 -> 9.628718489 | J31: 6.5 | P31: 1700
B32: 400 | C32: 1000 | D32: 7439 | E32: 461 | F32: -37.5 | G32: =0.6*stieren!$D$67 -> 0 | H32: =((0.0079*B32+0.66*stieren!$D$67-0.74)+(46.334688*POWER('voederbehoeftenormen '!B32,(-0.22))*C32/1000))*100/68 -> 21.79543444 | I32: =((0.83*stieren!$D$67)+(1.2+(21.847536*POWER(B32,-0.22)))*C32/1000)*100/75 -> 9.396290303 | J32: 7.214285714 | P32: 1800
B33: 450 | C33: 1000 | D33: 8031 | E33: 490 | F33: -50 | G33: =0.6*stieren!$D$67 -> 0 | H33: =((0.0079*B33+0.66*stieren!$D$67-0.74)+(46.334688*POWER('voederbehoeftenormen '!B33,(-0.22))*C33/1000))*100/68 -> 21.90983475 | I33: =((0.83*stieren!$D$67)+(1.2+(21.847536*POWER(B33,-0.22)))*C33/1000)*100/75 -> 9.196865671 | J33: 7.928571429
B34: 500 | C34: 1000 | D34: 8623 | E34: 519 | F34: -62.5 | G34: =0.6*stieren!$D$67 -> 0 | H34: =((0.0079*B34+0.66*stieren!$D$67-0.74)+(46.334688*POWER('voederbehoeftenormen '!B34,(-0.22))*C34/1000))*100/68 -> 22.08355482 | I34: =((0.83*stieren!$D$67)+(1.2+(21.847536*POWER(B34,-0.22)))*C34/1000)*100/75 -> 9.022800687 | J34: 8.642857143
B35: 550 | C35: 1000 | D35: 9700 | E35: 545 | F35: -75 | G35: =0.6*stieren!$D$67 -> 0 | H35: =((0.0079*B35+0.66*stieren!$D$67-0.74)+(46.334688*POWER('voederbehoeftenormen '!B35,(-0.22))*C35/1000))*100/68 -> 22.30415675 | I35: =((0.83*stieren!$D$67)+(1.2+(21.847536*POWER(B35,-0.22)))*C35/1000)*100/75 -> 8.868778059 | J35: 9.357142857
B36: 600 | C36: 1000 | D36: 10100 | E36: 575 | F36: -87.5 | G36: =0.6*stieren!$D$67 -> 0 | H36: =((0.0079*B36+0.66*stieren!$D$67-0.74)+(46.334688*POWER('voederbehoeftenormen '!B36,(-0.22))*C36/1000))*100/68 -> 22.56266054 | I36: =((0.83*stieren!$D$67)+(1.2+(21.847536*POWER(B36,-0.22)))*C36/1000)*100/75 -> 8.730958766 | J36: 10.07142857
B37: 650 | C37: 1000 | D37: 10410 | E37: 595 | F37: -100 | G37: =0.6*stieren!$D$67 -> 0 | H37: =((0.0079*B37+0.66*stieren!$D$67-0.74)+(46.334688*POWER('voederbehoeftenormen '!B37,(-0.22))*C37/1000))*100/68 -> 22.85238385 | I37: =((0.83*stieren!$D$67)+(1.2+(21.847536*POWER(B37,-0.22)))*C37/1000)*100/75 -> 8.606486052 | J37: 10.78571429
B38: 700 | C38: 1000 | D38: 10610 | E38: 615 | F38: -112.5 | G38: =0.6*stieren!$D$67 -> 0 | H38: =((0.0079*B38+0.66*stieren!$D$67-0.74)+(46.334688*POWER('voederbehoeftenormen '!B38,(-0.22))*C38/1000))*100/68 -> 23.16822799 | I38: =((0.83*stieren!$D$67)+(1.2+(21.847536*POWER(B38,-0.22)))*C38/1000)*100/75 -> 8.493180193 | J38: 11.5
B39: 350 | C39: 1100 | D39: 6999 | E39: 476 | F39: -25 | G39: =0.6*stieren!$D$67 -> 0 | H39: =((0.0079*B39+0.66*stieren!$D$67-0.74)+(46.334688*POWER('voederbehoeftenormen '!B39,(-0.22))*C39/1000))*100/68 -> 23.63626333 | I39: =((0.83*stieren!$D$67)+(1.2+(21.847536*POWER(B39,-0.22)))*C39/1000)*100/75 -> 10.59159034 | J39: 6.65
B40: 400 | C40: 1100 | D40: 7591 | E40: 505 | F40: -37.5 | G40: =0.6*stieren!$D$67 -> 0 | H40: =((0.0079*B40+0.66*stieren!$D$67-0.74)+(46.334688*POWER('voederbehoeftenormen '!B40,(-0.22))*C40/1000))*100/68 -> 23.61909553 | I40: =((0.83*stieren!$D$67)+(1.2+(21.847536*POWER(B40,-0.22)))*C40/1000)*100/75 -> 10.33591933 | J40: 7.364285714
B41: 450 | C41: 1100 | D41: 8183 | E41: 534 | F41: -50 | G41: =0.6*stieren!$D$67 -> 0 | H41: =((0.0079*B41+0.66*stieren!$D$67-0.74)+(46.334688*POWER('voederbehoeftenormen '!B41,(-0.22))*C41/1000))*100/68 -> 23.68684764 | I41: =((0.83*stieren!$D$67)+(1.2+(21.847536*POWER(B41,-0.22)))*C41/1000)*100/75 -> 10.11655224 | J41: 8.078571429
B42: 500 | C42: 1100 | D42: 8775 | E42: 563 | F42: -62.5 | G42: =0.6*stieren!$D$67 -> 0 | H42: =((0.0079*B42+0.66*stieren!$D$67-0.74)+(46.334688*POWER('voederbehoeftenormen '!B42,(-0.22))*C42/1000))*100/68 -> 23.81985147 | I42: =((0.83*stieren!$D$67)+(1.2+(21.847536*POWER(B42,-0.22)))*C42/1000)*100/75 -> 9.925080756 | J42: 8.792857143
B43: 550 | C43: 1100 | D43: 9830 | E43: 590 | F43: -75 | G43: =0.6*stieren!$D$67 -> 0 | H43: =((0.0079*B43+0.66*stieren!$D$67-0.74)+(46.334688*POWER('voederbehoeftenormen '!B43,(-0.22))*C43/1000))*100/68 -> 24.00442537 | I43: =((0.83*stieren!$D$67)+(1.2+(21.847536*POWER(B43,-0.22)))*C43/1000)*100/75 -> 9.755655865 | J43: 9.507142857
B44: 600 | C44: 1100 | D44: 10240 | E44: 620 | F44: -87.5 | G44: =0.6*stieren!$D$67 -> 0 | H44: =((0.0079*B44+0.66*stieren!$D$67-0.74)+(46.334688*POWER('voederbehoeftenormen '!B44,(-0.22))*C44/1000))*100/68 -> 24.2306913 | I44: =((0.83*stieren!$D$67)+(1.2+(21.847536*POWER(B44,-0.22)))*C44/1000)*100/75 -> 9.604054642 | J44: 10.22142857
B45: 650 | C45: 1100 | D45: 10540 | E45: 645 | F45: -100 | G45: =0.6*stieren!$D$67 -> 0 | H45: =((0.0079*B45+0.66*stieren!$D$67-0.74)+(46.334688*POWER('voederbehoeftenormen '!B45,(-0.22))*C45/1000))*100/68 -> 24.49129871 | I45: =((0.83*stieren!$D$67)+(1.2+(21.847536*POWER(B45,-0.22)))*C45/1000)*100/75 -> 9.467134657 | J45: 10.93571429
B46: 700 | C46: 1100 | D46: 10750 | E46: 665 | F46: -112.5 | G46: =0.6*stieren!$D$67 -> 0 | H46: =((0.0079*B46+0.66*stieren!$D$67-0.74)+(46.334688*POWER('voederbehoeftenormen '!B46,(-0.22))*C46/1000))*100/68 -> 24.78063902 | I46: =((0.83*stieren!$D$67)+(1.2+(21.847536*POWER(B46,-0.22)))*C46/1000)*100/75 -> 9.342498213 | J46: 11.65
B47: 350 | C47: 1200 | D47: 7151 | E47: 520 | F47: -25 | G47: =0.6*stieren!$D$67 -> 0 | H47: =((0.0079*B47+0.66*stieren!$D$67-0.74)+(46.334688*POWER('voederbehoeftenormen '!B47,(-0.22))*C47/1000))*100/68 -> 25.51429262 | I47: =((0.83*stieren!$D$67)+(1.2+(21.847536*POWER(B47,-0.22)))*C47/1000)*100/75 -> 11.55446219 | J47: 6.8
B48: 400 | C48: 1200 | D48: 7743 | E48: 549 | F48: -37.5 | G48: =0.6*stieren!$D$67 -> 0 | H48: =((0.0079*B48+0.66*stieren!$D$67-0.74)+(46.334688*POWER('voederbehoeftenormen '!B48,(-0.22))*C48/1000))*100/68 -> 25.44275662 | I48: =((0.83*stieren!$D$67)+(1.2+(21.847536*POWER(B48,-0.22)))*C48/1000)*100/75 -> 11.27554836 | J48: 7.514285714
B49: 450 | C49: 1200 | D49: 8335 | E49: 578 | F49: -50 | G49: =0.6*stieren!$D$67 -> 0 | H49: =((0.0079*B49+0.66*stieren!$D$67-0.74)+(46.334688*POWER('voederbehoeftenormen '!B49,(-0.22))*C49/1000))*100/68 -> 25.46386052 | I49: =((0.83*stieren!$D$67)+(1.2+(21.847536*POWER(B49,-0.22)))*C49/1000)*100/75 -> 11.03623881 | J49: 8.228571429
B50: 500 | C50: 1200 | D50: 9450 | E50: 610 | F50: -62.5 | G50: =0.6*stieren!$D$67 -> 0 | H50: =((0.0079*B50+0.66*stieren!$D$67-0.74)+(46.334688*POWER('voederbehoeftenormen '!B50,(-0.22))*C50/1000))*100/68 -> 25.55614813 | I50: =((0.83*stieren!$D$67)+(1.2+(21.847536*POWER(B50,-0.22)))*C50/1000)*100/75 -> 10.82736082 | J50: 8.942857143
B51: 550 | C51: 1200 | D51: 9960 | E51: 635 | F51: -75 | G51: =0.6*stieren!$D$67 -> 0 | H51: =((0.0079*B51+0.66*stieren!$D$67-0.74)+(46.334688*POWER('voederbehoeftenormen '!B51,(-0.22))*C51/1000))*100/68 -> 25.70469398 | I51: =((0.83*stieren!$D$67)+(1.2+(21.847536*POWER(B51,-0.22)))*C51/1000)*100/75 -> 10.64253367 | J51: 9.657142857
B52: 600 | C52: 1200 | D52: 10370 | E52: 665 | F52: -87.5 | G52: =0.6*stieren!$D$67 -> 0 | H52: =((0.0079*B52+0.66*stieren!$D$67-0.74)+(46.334688*POWER('voederbehoeftenormen '!B52,(-0.22))*C52/1000))*100/68 -> 25.89872206 | I52: =((0.83*stieren!$D$67)+(1.2+(21.847536*POWER(B52,-0.22)))*C52/1000)*100/75 -> 10.47715052 | J52: 10.37142857
B53: 650 | C53: 1200 | D53: 10680 | E53: 690 | F53: -100 | G53: =0.6*stieren!$D$67 -> 0 | H53: =((0.0079*B53+0.66*stieren!$D$67-0.74)+(46.334688*POWER('voederbehoeftenormen '!B53,(-0.22))*C53/1000))*100/68 -> 26.13021356 | I53: =((0.83*stieren!$D$67)+(1.2+(21.847536*POWER(B53,-0.22)))*C53/1000)*100/75 -> 10.32778326 | J53: 11.08571429
B54: 700 | C54: 1200 | D54: 10890 | E54: 715 | F54: -112.5 | G54: =0.6*stieren!$D$67 -> 0 | H54: =((0.0079*B54+0.66*stieren!$D$67-0.74)+(46.334688*POWER('voederbehoeftenormen '!B54,(-0.22))*C54/1000))*100/68 -> 26.39305006 | I54: =((0.83*stieren!$D$67)+(1.2+(21.847536*POWER(B54,-0.22)))*C54/1000)*100/75 -> 10.19181623 | J54: 11.8
B55: 350 | C55: 1300 | D55: 7303 | E55: 564 | F55: -25 | G55: =0.6*stieren!$D$67 -> 0 | H55: =((0.0079*B55+0.66*stieren!$D$67-0.74)+(46.334688*POWER('voederbehoeftenormen '!B55,(-0.22))*C55/1000))*100/68 -> 27.3923219 | I55: =((0.83*stieren!$D$67)+(1.2+(21.847536*POWER(B55,-0.22)))*C55/1000)*100/75 -> 12.51733404 | J55: 6.95
B56: 400 | C56: 1300 | D56: 7895 | E56: 593 | F56: -37.5 | G56: =0.6*stieren!$D$67 -> 0 | H56: =((0.0079*B56+0.66*stieren!$D$67-0.74)+(46.334688*POWER('voederbehoeftenormen '!B56,(-0.22))*C56/1000))*100/68 -> 27.26641771 | I56: =((0.83*stieren!$D$67)+(1.2+(21.847536*POWER(B56,-0.22)))*C56/1000)*100/75 -> 12.21517739 | J56: 7.664285714
B57: 450 | C57: 1300 | D57: 8960 | E57: 630 | F57: -50 | G57: =0.6*stieren!$D$67 -> 0 | H57: =((0.0079*B57+0.66*stieren!$D$67-0.74)+(46.334688*POWER('voederbehoeftenormen '!B57,(-0.22))*C57/1000))*100/68 -> 27.24087341 | I57: =((0.83*stieren!$D$67)+(1.2+(21.847536*POWER(B57,-0.22)))*C57/1000)*100/75 -> 11.95592537 | J57: 8.378571429
B58: 500 | C58: 1300 | D58: 9570 | E58: 655 | F58: -62.5 | G58: =0.6*stieren!$D$67 -> 0 | H58: =((0.0079*B58+0.66*stieren!$D$67-0.74)+(46.334688*POWER('voederbehoeftenormen '!B58,(-0.22))*C58/1000))*100/68 -> 27.29244479 | I58: =((0.83*stieren!$D$67)+(1.2+(21.847536*POWER(B58,-0.22)))*C58/1000)*100/75 -> 11.72964089 | J58: 9.092857143
B59: 550 | C59: 1300 | D59: 10080 | E59: 680 | F59: -75 | G59: =0.6*stieren!$D$67 -> 0 | H59: =((0.0079*B59+0.66*stieren!$D$67-0.74)+(46.334688*POWER('voederbehoeftenormen '!B59,(-0.22))*C59/1000))*100/68 -> 27.4049626 | I59: =((0.83*stieren!$D$67)+(1.2+(21.847536*POWER(B59,-0.22)))*C59/1000)*100/75 -> 11.52941148 | J59: 9.807142857
B60: 600 | C60: 1300 | D60: 10500 | E60: 715 | F60: -87.5 | G60: =0.6*stieren!$D$67 -> 0 | H60: =((0.0079*B60+0.66*stieren!$D$67-0.74)+(46.334688*POWER('voederbehoeftenormen '!B60,(-0.22))*C60/1000))*100/68 -> 27.56675282 | I60: =((0.83*stieren!$D$67)+(1.2+(21.847536*POWER(B60,-0.22)))*C60/1000)*100/75 -> 11.3502464 | J60: 10.52142857
B61: 650 | C61: 1300 | D61: 10820 | E61: 740 | F61: -100 | G61: =0.6*stieren!$D$67 -> 0 | H61: =((0.0079*B61+0.66*stieren!$D$67-0.74)+(46.334688*POWER('voederbehoeftenormen '!B61,(-0.22))*C61/1000))*100/68 -> 27.76912842 | I61: =((0.83*stieren!$D$67)+(1.2+(21.847536*POWER(B61,-0.22)))*C61/1000)*100/75 -> 11.18843187 | J61: 11.23571429
B62: 700 | C62: 1300 | D62: 11030 | E62: 765 | F62: -112.5 | G62: =0.6*stieren!$D$67 -> 0 | H62: =((0.0079*B62+0.66*stieren!$D$67-0.74)+(46.334688*POWER('voederbehoeftenormen '!B62,(-0.22))*C62/1000))*100/68 -> 28.00546109 | I62: =((0.83*stieren!$D$67)+(1.2+(21.847536*POWER(B62,-0.22)))*C62/1000)*100/75 -> 11.04113425 | J62: 11.95
B63: 350 | C63: 1400 | D63: 7455 | E63: 608 | F63: -25 | G63: =0.6*stieren!$D$67 -> 0 | H63: =((0.0079*B63+0.66*stieren!$D$67-0.74)+(46.334688*POWER('voederbehoeftenormen '!B63,(-0.22))*C63/1000))*100/68 -> 29.27035119 | I63: =((0.83*stieren!$D$67)+(1.2+(21.847536*POWER(B63,-0.22)))*C63/1000)*100/75 -> 13.48020588 | J63: 7.1
B64: 400 | C64: 1400 | D64: 8370 | E64: 640 | F64: -37.5 | G64: =0.6*stieren!$D$67 -> 0 | H64: =((0.0079*B64+0.66*stieren!$D$67-0.74)+(46.334688*POWER('voederbehoeftenormen '!B64,(-0.22))*C64/1000))*100/68 -> 29.0900788 | I64: =((0.83*stieren!$D$67)+(1.2+(21.847536*POWER(B64,-0.22)))*C64/1000)*100/75 -> 13.15480642 | J64: 7.814285714
B65: 450 | C65: 1400 | D65: 9080 | E65: 675 | F65: -50 | G65: =0.6*stieren!$D$67 -> 0 | H65: =((0.0079*B65+0.66*stieren!$D$67-0.74)+(46.334688*POWER('voederbehoeftenormen '!B65,(-0.22))*C65/1000))*100/68 -> 29.0178863 | I65: =((0.83*stieren!$D$67)+(1.2+(21.847536*POWER(B65,-0.22)))*C65/1000)*100/75 -> 12.87561194 | J65: 8.528571429
B66: 500 | C66: 1400 | D66: 9690 | E66: 695 | F66: -62.5 | G66: =0.6*stieren!$D$67 -> 0 | H66: =((0.0079*B66+0.66*stieren!$D$67-0.74)+(46.334688*POWER('voederbehoeftenormen '!B66,(-0.22))*C66/1000))*100/68 -> 29.02874145 | I66: =((0.83*stieren!$D$67)+(1.2+(21.847536*POWER(B66,-0.22)))*C66/1000)*100/75 -> 12.63192096 | J66: 9.242857143
B67: 550 | C67: 1400 | D67: 10210 | E67: 720 | F67: -75 | G67: =0.6*stieren!$D$67 -> 0 | H67: =((0.0079*B67+0.66*stieren!$D$67-0.74)+(46.334688*POWER('voederbehoeftenormen '!B67,(-0.22))*C67/1000))*100/68 -> 29.10523121 | I67: =((0.83*stieren!$D$67)+(1.2+(21.847536*POWER(B67,-0.22)))*C67/1000)*100/75 -> 12.41628928 | J67: 9.957142857
B68: 600 | C68: 1400 | D68: 10630 | E68: 760 | F68: -87.5 | G68: =0.6*stieren!$D$67 -> 0 | H68: =((0.0079*B68+0.66*stieren!$D$67-0.74)+(46.334688*POWER('voederbehoeftenormen '!B68,(-0.22))*C68/1000))*100/68 -> 29.23478358 | I68: =((0.83*stieren!$D$67)+(1.2+(21.847536*POWER(B68,-0.22)))*C68/1000)*100/75 -> 12.22334227 | J68: 10.67142857
B69: 650 | C69: 1400 | D69: 10950 | E69: 785 | F69: -100 | G69: =0.6*stieren!$D$67 -> 0 | H69: =((0.0079*B69+0.66*stieren!$D$67-0.74)+(46.334688*POWER('voederbehoeftenormen '!B69,(-0.22))*C69/1000))*100/68 -> 29.40804327 | I69: =((0.83*stieren!$D$67)+(1.2+(21.847536*POWER(B69,-0.22)))*C69/1000)*100/75 -> 12.04908047 | J69: 11.38571429
B70: 700 | C70: 1400 | D70: 11180 | E70: 810 | F70: -112.5 | G70: =0.6*stieren!$D$67 -> 0 | H70: =((0.0079*B70+0.66*stieren!$D$67-0.74)+(46.334688*POWER('voederbehoeftenormen '!B70,(-0.22))*C70/1000))*100/68 -> 29.61787213 | I70: =((0.83*stieren!$D$67)+(1.2+(21.847536*POWER(B70,-0.22)))*C70/1000)*100/75 -> 11.89045227 | J70: 12.1
B71: 350 | C71: 1500 | D71: 7670 | E71: 645 | F71: -25 | G71: =0.6*stieren!$D$67 -> 0 | H71: =((0.0079*B71+0.66*stieren!$D$67-0.74)+(46.334688*POWER('voederbehoeftenormen '!B71,(-0.22))*C71/1000))*100/68 -> 31.14838048 | I71: =((0.83*stieren!$D$67)+(1.2+(21.847536*POWER(B71,-0.22)))*C71/1000)*100/75 -> 14.44307773 | J71: 7.25
B72: 400 | C72: 1500 | D72: 8480 | E72: 680 | F72: -37.5 | G72: =0.6*stieren!$D$67 -> 0 | H72: =((0.0079*B72+0.66*stieren!$D$67-0.74)+(46.334688*POWER('voederbehoeftenormen '!B72,(-0.22))*C72/1000))*100/68 -> 30.91373989 | I72: =((0.83*stieren!$D$67)+(1.2+(21.847536*POWER(B72,-0.22)))*C72/1000)*100/75 -> 14.09443545 | J72: 7.964285714
B73: 450 | C73: 1500 | D73: 9200 | E73: 715 | F73: -50 | G73: =0.6*stieren!$D$67 -> 0 | H73: =((0.0079*B73+0.66*stieren!$D$67-0.74)+(46.334688*POWER('voederbehoeftenormen '!B73,(-0.22))*C73/1000))*100/68 -> 30.79489918 | I73: =((0.83*stieren!$D$67)+(1.2+(21.847536*POWER(B73,-0.22)))*C73/1000)*100/75 -> 13.79529851 | J73: 8.678571429
B74: 500 | C74: 1500 | D74: 9820 | E74: 740 | F74: -62.5 | G74: =0.6*stieren!$D$67 -> 0 | H74: =((0.0079*B74+0.66*stieren!$D$67-0.74)+(46.334688*POWER('voederbehoeftenormen '!B74,(-0.22))*C74/1000))*100/68 -> 30.76503811 | I74: =((0.83*stieren!$D$67)+(1.2+(21.847536*POWER(B74,-0.22)))*C74/1000)*100/75 -> 13.53420103 | J74: 9.392857143
B75: 550 | C75: 1500 | D75: 10340 | E75: 765 | F75: -75 | G75: =0.6*stieren!$D$67 -> 0 | H75: =((0.0079*B75+0.66*stieren!$D$67-0.74)+(46.334688*POWER('voederbehoeftenormen '!B75,(-0.22))*C75/1000))*100/68 -> 30.80549983 | I75: =((0.83*stieren!$D$67)+(1.2+(21.847536*POWER(B75,-0.22)))*C75/1000)*100/75 -> 13.30316709 | J75: 10.10714286
B76: 600 | C76: 1500 | D76: 10760 | E76: 805 | F76: -87.5 | G76: =0.6*stieren!$D$67 -> 0 | H76: =((0.0079*B76+0.66*stieren!$D$67-0.74)+(46.334688*POWER('voederbehoeftenormen '!B76,(-0.22))*C76/1000))*100/68 -> 30.90281434 | I76: =((0.83*stieren!$D$67)+(1.2+(21.847536*POWER(B76,-0.22)))*C76/1000)*100/75 -> 13.09643815 | J76: 10.82142857
B77: 650 | C77: 1500 | D77: - | E77: - | F77: - | G77: - | H77: - | I77: - | J77: -
B78: 700 | C78: 1500 | D78: - | E78: - | F78: - | G78: - | H78: - | I78: - | J78: -
B79: 350 | C79: 1600 | D79: 7780 | E79: 680 | F79: -25 | G79: =0.6*stieren!$D$67 -> 0 | H79: =((0.0079*B79+0.66*stieren!$D$67-0.74)+(46.334688*POWER('voederbehoeftenormen '!B79,(-0.22))*C79/1000))*100/68 -> 33.02640976 | I79: =((0.83*stieren!$D$67)+(1.2+(21.847536*POWER(B79,-0.22)))*C79/1000)*100/75 -> 15.40594958 | J79: 7.4
B80: 400 | C80: 1600 | D80: 8600 | E80: 715 | F80: -37.5 | G80: =0.6*stieren!$D$67 -> 0 | H80: =((0.0079*B80+0.66*stieren!$D$67-0.74)+(46.334688*POWER('voederbehoeftenormen '!B80,(-0.22))*C80/1000))*100/68 -> 32.73740098 | I80: =((0.83*stieren!$D$67)+(1.2+(21.847536*POWER(B80,-0.22)))*C80/1000)*100/75 -> 15.03406448 | J80: 8.114285714
B81: 450 | C81: 1600 | D81: 9320 | E81: 755 | F81: -50 | G81: =0.6*stieren!$D$67 -> 0 | H81: =((0.0079*B81+0.66*stieren!$D$67-0.74)+(46.334688*POWER('voederbehoeftenormen '!B81,(-0.22))*C81/1000))*100/68 -> 32.57191207 | I81: =((0.83*stieren!$D$67)+(1.2+(21.847536*POWER(B81,-0.22)))*C81/1000)*100/75 -> 14.71498507 | J81: 8.828571429
B82: 500 | C82: 1600 | D82: 9940 | E82: 780 | F82: -62.5 | G82: =0.6*stieren!$D$67 -> 0 | H82: =((0.0079*B82+0.66*stieren!$D$67-0.74)+(46.334688*POWER('voederbehoeftenormen '!B82,(-0.22))*C82/1000))*100/68 -> 32.50133476 | I82: =((0.83*stieren!$D$67)+(1.2+(21.847536*POWER(B82,-0.22)))*C82/1000)*100/75 -> 14.4364811 | J82: 9.542857143
B83: 550 | C83: 1600 | D83: 10470 | E83: 810 | F83: -75 | G83: =0.6*stieren!$D$67 -> 0 | H83: =((0.0079*B83+0.66*stieren!$D$67-0.74)+(46.334688*POWER('voederbehoeftenormen '!B83,(-0.22))*C83/1000))*100/68 -> 32.50576845 | I83: =((0.83*stieren!$D$67)+(1.2+(21.847536*POWER(B83,-0.22)))*C83/1000)*100/75 -> 14.19004489 | J83: 10.25714286
B84: 600 | C84: 1600 | D84: - | E84: - | F84: - | G84: - | H84: - | I84: - | J84: -
B85: 650 | C85: 1600 | D85: - | E85: - | F85: - | G85: - | H85: - | I85: - | J85: -
B86: 700 | C86: 1600 | D86: - | E86: - | F86: - | G86: - | H86: - | I86: - | J86: -
B87: 350 | C87: 1700 | D87: 7890 | E87: 720 | F87: -25 | G87: =0.6*stieren!$D$67 -> 0 | H87: =((0.0079*B87+0.66*stieren!$D$67-0.74)+(46.334688*POWER('voederbehoeftenormen '!B87,(-0.22))*C87/1000))*100/68 -> 34.90443905 | I87: =((0.83*stieren!$D$67)+(1.2+(21.847536*POWER(B87,-0.22)))*C87/1000)*100/75 -> 16.36882143 | J87: 7.55
B88: 400 | C88: 1700 | D88: 8710 | E88: 755 | F88: -37.5 | G88: =0.6*stieren!$D$67 -> 0 | H88: =((0.0079*B88+0.66*stieren!$D$67-0.74)+(46.334688*POWER('voederbehoeftenormen '!B88,(-0.22))*C88/1000))*100/68 -> 34.56106207 | I88: =((0.83*stieren!$D$67)+(1.2+(21.847536*POWER(B88,-0.22)))*C88/1000)*100/75 -> 15.97369352 | J88: 8.264285714
B89: 450 | C89: 1700 | D89: 9440 | E89: 795 | F89: -50 | G89: =0.6*stieren!$D$67 -> 0 | H89: =((0.0079*B89+0.66*stieren!$D$67-0.74)+(46.334688*POWER('voederbehoeftenormen '!B89,(-0.22))*C89/1000))*100/68 -> 34.34892496 | I89: =((0.83*stieren!$D$67)+(1.2+(21.847536*POWER(B89,-0.22)))*C89/1000)*100/75 -> 15.63467164 | J89: 8.978571429
B90: 500 | C90: 1700 | D90: 10060 | E90: 825 | F90: -62.5 | G90: =0.6*stieren!$D$67 -> 0 | H90: =((0.0079*B90+0.66*stieren!$D$67-0.74)+(46.334688*POWER('voederbehoeftenormen '!B90,(-0.22))*C90/1000))*100/68 -> 34.23763142 | I90: =((0.83*stieren!$D$67)+(1.2+(21.847536*POWER(B90,-0.22)))*C90/1000)*100/75 -> 15.33876117 | J90: 9.692857143
B91: 550 | C91: 1700 | D91: 10590 | E91: 850 | F91: -75 | G91: =0.6*stieren!$D$67 -> 0 | H91: =((0.0079*B91+0.66*stieren!$D$67-0.74)+(46.334688*POWER('voederbehoeftenormen '!B91,(-0.22))*C91/1000))*100/68 -> 34.20603706 | I91: =((0.83*stieren!$D$67)+(1.2+(21.847536*POWER(B91,-0.22)))*C91/1000)*100/75 -> 15.0769227 | J91: 10.40714286
B92: 600 | C92: 1700 | D92: - | E92: - | F92: - | G92: - | H92: - | I92: - | J92: -
B93: 650 | C93: 1700 | D93: - | E93: - | F93: - | G93: - | H93: - | I93: - | J93: -
B94: 700 | C94: 1700 | D94: - | E94: - | F94: - | G94: - | H94: - | I94: - | J94: -
B95: 350 | C95: 1800 | D95: - | E95: - | F95: - | G95: - | H95: - | I95: - | J95: -
B96: 400 | C96: 1800 | D96: 8820 | E96: 795 | F96: -37.5 | G96: =0.6*stieren!$D$67 -> 0 | H96: =((0.0079*B96+0.66*stieren!$D$67-0.74)+(46.334688*POWER('voederbehoeftenormen '!B96,(-0.22))*C96/1000))*100/68 -> 36.38472316 | I96: =((0.83*stieren!$D$67)+(1.2+(21.847536*POWER(B96,-0.22)))*C96/1000)*100/75 -> 16.91332255 | J96: 8.414285714
B97: 450 | C97: 1800 | D97: 9550 | E97: 835 | F97: -50 | G97: =0.6*stieren!$D$67 -> 0 | H97: =((0.0079*B97+0.66*stieren!$D$67-0.74)+(46.334688*POWER('voederbehoeftenormen '!B97,(-0.22))*C97/1000))*100/68 -> 36.12593784 | I97: =((0.83*stieren!$D$67)+(1.2+(21.847536*POWER(B97,-0.22)))*C97/1000)*100/75 -> 16.55435821 | J97: 9.128571429
B98: 500 | C98: 1800 | D98: 10190 | E98: 865 | F98: -62.5 | G98: =0.6*stieren!$D$67 -> 0 | H98: =((0.0079*B98+0.66*stieren!$D$67-0.74)+(46.334688*POWER('voederbehoeftenormen '!B98,(-0.22))*C98/1000))*100/68 -> 35.97392808 | I98: =((0.83*stieren!$D$67)+(1.2+(21.847536*POWER(B98,-0.22)))*C98/1000)*100/75 -> 16.24104124 | J98: 9.842857143
B99: 550 | C99: 1800 | D99: - | E99: - | F99: - | G99: - | H99: - | I99: - | J99: -
B100: 600 | C100: 1800 | D100: - | E100: - | F100: - | G100: - | H100: - | I100: - | J100: -
B101: 650 | C101: 1800 | D101: - | E101: - | F101: - | G101: - | H101: - | I101: - | J101: -
B102: 700 | C102: 1800 | D102: - | E102: - | F102: - | G102: - | H102: - | I102: - | J102: -
A106: vrouwelijk jongvee
B108: Leeftijd (maanden) | C108: Gemiddeld gewicht (kg) | D108: Groei (g/dag) | E108: DS-opname | F108: VEM | G108: DVE (g) | H108: OEB (g) | I108: Structuur (/kg DS) | J108: Ca (g/kg DS) | K108: P (g/kg DS) | L108: Mg (g) | M108: Na (g/kg DS) | P108: Leeftijd (maanden)
B109: 3 - 6 | C109: 155 | D109: 800 | E109: 4 – 5 | F109: 3000 | G109: 275 | H109: 0 | I109: =0.6*'vrouwelijk jongvee'!$D$67 -> 0 | J109: =(((0.0079*C109)+(0.66*'vrouwelijk jongvee'!$D$67)-0.74)+((9.83*4.2522*POWER('voederbehoeftenormen '!C109,-0.22))*'voederbehoeftenormen '!D109/1000))*100/68 -> 16.92594496 | K109: =((0.83*'vrouwelijk jongvee'!$D$67)+(1.2+4.635*4.2522*POWER('voederbehoeftenormen '!C109,-0.22))*'voederbehoeftenormen '!D109/1000)*100/75 -> 8.211371425 | L109: =(0.004*C109+0.42*(D109/1000))*100/28 -> 3.414285714 | P109: 3 - 6
B110: 6 - 9 | C110: 220 | D110: 750 | E110: 4,5 – 5,5 | F110: 3865 | G110: 320 | H110: 0 | I110: =0.6*'vrouwelijk jongvee'!$D$67 -> 0 | J110: =(((0.0079*C110)+(0.66*'vrouwelijk jongvee'!$D$67)-0.74)+((9.83*4.2522*POWER('voederbehoeftenormen '!C110,-0.22))*'voederbehoeftenormen '!D110/1000))*100/68 -> 15.54064298 | K110: =((0.83*'vrouwelijk jongvee'!$D$67)+(1.2+4.635*4.2522*POWER('voederbehoeftenormen '!C110,-0.22))*'voederbehoeftenormen '!D110/1000)*100/75 -> 7.21631313 | L110: =(0.004*C110+0.42*(D110/1000))*100/28 -> 4.267857143 | P110: 6 - 9
B111: 9 – 12 | C111: 290 | D111: 750 | E111: 5 – 6 | F111: 4925 | G111: 375 | H111: -10 | I111: =0.6*'vrouwelijk jongvee'!$D$67 -> 0 | J111: =(((0.0079*C111)+(0.66*'vrouwelijk jongvee'!$D$67)-0.74)+((9.83*4.2522*POWER('voederbehoeftenormen '!C111,-0.22))*'voederbehoeftenormen '!D111/1000))*100/68 -> 15.52405351 | K111: =((0.83*'vrouwelijk jongvee'!$D$67)+(1.2+4.635*4.2522*POWER('voederbehoeftenormen '!C111,-0.22))*'voederbehoeftenormen '!D111/1000)*100/75 -> 6.861556713 | L111: 5.267857143 | P111: 9 – 12
B112: 12 – 15 | C112: 360 | D112: 750 | E112: 6 – 7 | F112: 5950 | G112: 425 | H112: -27.5 | I112: =0.6*'vrouwelijk jongvee'!$D$67 -> 0 | J112: =(((0.0079*C112)+(0.66*'vrouwelijk jongvee'!$D$67)-0.74)+((9.83*4.2522*POWER('voederbehoeftenormen '!C112,-0.22))*'voederbehoeftenormen '!D112/1000))*100/68 -> 15.72207195 | K112: =((0.83*'vrouwelijk jongvee'!$D$67)+(1.2+4.635*4.2522*POWER('voederbehoeftenormen '!C112,-0.22))*'voederbehoeftenormen '!D112/1000)*100/75 -> 6.59854681 | L112: 6.267857143 | P112: 12 – 15
B113: 15 – 18 | C113: 425 | D113: 750 | E113: 7 – 8 | F113: 6880 | G113: 465 | H113: -43.75 | I113: =0.6*'vrouwelijk jongvee'!$D$67 -> 0 | J113: =(((0.0079*C113)+(0.66*'vrouwelijk jongvee'!$D$67)-0.74)+((9.83*4.2522*POWER('voederbehoeftenormen '!C113,-0.22))*'voederbehoeftenormen '!D113/1000))*100/68 -> 16.02440536 | K113: =((0.83*'vrouwelijk jongvee'!$D$67)+(1.2+4.635*4.2522*POWER('voederbehoeftenormen '!C113,-0.22))*'voederbehoeftenormen '!D113/1000)*100/75 -> 6.404965521 | L113: 7.196428571 | P113: 15 – 18
B114: 18 – 21 | C114: 495 | D114: 750 | E114: 8 – 9 | F114: 7865 | G114: 510 | H114: -61.25 | I114: =0.6*'vrouwelijk jongvee'!$D$67 -> 0 | J114: =(((0.0079*C114)+(0.66*'vrouwelijk jongvee'!$D$67)-0.74)+((9.83*4.2522*POWER('voederbehoeftenormen '!C114,-0.22))*'voederbehoeftenormen '!D114/1000))*100/68 -> 16.43602222 | K114: =((0.83*'vrouwelijk jongvee'!$D$67)+(1.2+4.635*4.2522*POWER('voederbehoeftenormen '!C114,-0.22))*'voederbehoeftenormen '!D114/1000)*100/75 -> 6.233270579 | L114: 8.196428571 | P114: 18 – 21
B115: 21 – 24 | C115: 570 | D115: 850 | E115: 9 – 10 | F115: 8900 | G115: 685 | H115: -80 | I115: =0.6*'vrouwelijk jongvee'!$D$67 -> 0 | J115: =(((0.0079*C115)+(0.66*'vrouwelijk jongvee'!$D$67)-0.74)+((9.83*4.2522*POWER('voederbehoeftenormen '!C115,-0.22))*'voederbehoeftenormen '!D115/1000))*100/68 -> 18.46936896 | K115: =((0.83*'vrouwelijk jongvee'!$D$67)+(1.2+4.635*4.2522*POWER('voederbehoeftenormen '!C115,-0.22))*'voederbehoeftenormen '!D115/1000)*100/75 -> 6.890044368 | L115: 9.417857143 | P115: 21 – 24
B116: 24 | C116: 6101 | D116: - | E116: - | F116: - | G116: -

Sheet startpagina

Sheet vrouwelijk jongvee
B2: vrouwelijk jongvee
K4: energieprijs en eiwittoeslagprijs (in eurocenten)
B5: voedermiddelen | K5: per kVEM | L5: 0
K6: per kg DVE-toeslag | L6: 0
K7: datum
C8: soort voedermiddel | D8: DS (g DS/kg VS) | E8: VEM (/kg DS) | F8: VEVI (/kg DS) | G8: DVE (g/kg DS) | H8: OEB (g/kg DS) | I8: RE (g/kg DS) | K8: kostprijs voeder-middel (€/ton VS) | L8: voederwaardeprijs (€/ton VS)
B9: voedermiddel1 | C9: (voedermiddel) | D9: =VLOOKUP('vrouwelijk jongvee'!$C9,'lijst voedermiddelen'!$B$2:$N$198,2,FALSE) -> 0 | E9: =VLOOKUP('vrouwelijk jongvee'!$C9,'lijst voedermiddelen'!$B$2:$N$198,3,FALSE) -> 0 | F9: =VLOOKUP('vrouwelijk jongvee'!$C9,'lijst voedermiddelen'!$B$2:$N$198,4,FALSE) -> 0 | G9: =VLOOKUP('vrouwelijk jongvee'!$C9,'lijst voedermiddelen'!$B$2:$N$198,5,FALSE) -> 0 | H9: =VLOOKUP('vrouwelijk jongvee'!$C9,'lijst voedermiddelen'!$B$2:$N$198,6,FALSE) -> 0 | I9: =VLOOKUP('vrouwelijk jongvee'!$C9,'lijst voedermiddelen'!$B$2:$N$198,7,FALSE) -> 0 | K9: 0 | L9: =IFERROR((VLOOKUP('vrouwelijk jongvee'!C9,'lijst voedermiddelen'!$B$2:$P$198,2,FALSE)/1000)*(((L$5*VLOOKUP('vrouwelijk jongvee'!C9,'lijst voedermiddelen'!$B$2:$P$198,3,FALSE))+(L$6*VLOOKUP('vrouwelijk jongvee'!$C9,'lijst voedermiddelen'!$B$2:$P$198,5,FALSE)))/1000)*(1-VLOOKUP('vrouwelijk jongvee'!$C9,'lijst voedermiddelen'!$B$2:$P$198,15,FALSE)/100)*10,"-") -> 0
B10: voedermiddel2 | C10: (voedermiddel) | D10: =VLOOKUP('vrouwelijk jongvee'!$C10,'lijst voedermiddelen'!$B$2:$N$198,2,FALSE) -> 0 | E10: =VLOOKUP('vrouwelijk jongvee'!$C10,'lijst voedermiddelen'!$B$2:$N$198,3,FALSE) -> 0 | F10: =VLOOKUP('vrouwelijk jongvee'!$C10,'lijst voedermiddelen'!$B$2:$N$198,4,FALSE) -> 0 | G10: =VLOOKUP('vrouwelijk jongvee'!$C10,'lijst voedermiddelen'!$B$2:$N$198,5,FALSE) -> 0 | H10: =VLOOKUP('vrouwelijk jongvee'!$C10,'lijst voedermiddelen'!$B$2:$N$198,6,FALSE) -> 0 | I10: =VLOOKUP('vrouwelijk jongvee'!$C10,'lijst voedermiddelen'!$B$2:$N$198,7,FALSE) -> 0 | K10: 0 | L10: =IFERROR((VLOOKUP('vrouwelijk jongvee'!C10,'lijst voedermiddelen'!$B$2:$P$198,2,FALSE)/1000)*(((L$5*VLOOKUP('vrouwelijk jongvee'!C10,'lijst voedermiddelen'!$B$2:$P$198,3,FALSE))+(L$6*VLOOKUP('vrouwelijk jongvee'!$C10,'lijst voedermiddelen'!$B$2:$P$198,5,FALSE)))/1000)*(1-VLOOKUP('vrouwelijk jongvee'!$C10,'lijst voedermiddelen'!$B$2:$P$198,15,FALSE)/100)*10,"-") -> 0
B11: voedermiddel3 | C11: (voedermiddel) | D11: =VLOOKUP('vrouwelijk jongvee'!$C11,'lijst voedermiddelen'!$B$2:$N$198,2,FALSE) -> 0 | E11: =VLOOKUP('vrouwelijk jongvee'!$C11,'lijst voedermiddelen'!$B$2:$N$198,3,FALSE) -> 0 | F11: =VLOOKUP('vrouwelijk jongvee'!$C11,'lijst voedermiddelen'!$B$2:$N$198,4,FALSE) -> 0 | G11: =VLOOKUP('vrouwelijk jongvee'!$C11,'lijst voedermiddelen'!$B$2:$N$198,5,FALSE) -> 0 | H11: =VLOOKUP('vrouwelijk jongvee'!$C11,'lijst voedermiddelen'!$B$2:$N$198,6,FALSE) -> 0 | I11: =VLOOKUP('vrouwelijk jongvee'!$C11,'lijst voedermiddelen'!$B$2:$N$198,7,FALSE) -> 0 | K11: 0 | L11: =IFERROR((VLOOKUP('vrouwelijk jongvee'!C11,'lijst voedermiddelen'!$B$2:$P$198,2,FALSE)/1000)*(((L$5*VLOOKUP('vrouwelijk jongvee'!C11,'lijst voedermiddelen'!$B$2:$P$198,3,FALSE))+(L$6*VLOOKUP('vrouwelijk jongvee'!$C11,'lijst voedermiddelen'!$B$2:$P$198,5,FALSE)))/1000)*(1-VLOOKUP('vrouwelijk jongvee'!$C11,'lijst voedermiddelen'!$B$2:$P$198,15,FALSE)/100)*10,"-") -> 0
B12: voedermiddel4 | C12: (voedermiddel) | D12: =VLOOKUP('vrouwelijk jongvee'!$C12,'lijst voedermiddelen'!$B$2:$N$198,2,FALSE) -> 0 | E12: =VLOOKUP('vrouwelijk jongvee'!$C12,'lijst voedermiddelen'!$B$2:$N$198,3,FALSE) -> 0 | F12: =VLOOKUP('vrouwelijk jongvee'!$C12,'lijst voedermiddelen'!$B$2:$N$198,4,FALSE) -> 0 | G12: =VLOOKUP('vrouwelijk jongvee'!$C12,'lijst voedermiddelen'!$B$2:$N$198,5,FALSE) -> 0 | H12: =VLOOKUP('vrouwelijk jongvee'!$C12,'lijst voedermiddelen'!$B$2:$N$198,6,FALSE) -> 0 | I12: =VLOOKUP('vrouwelijk jongvee'!$C12,'lijst voedermiddelen'!$B$2:$N$198,7,FALSE) -> 0 | K12: 0 | L12: =IFERROR((VLOOKUP('vrouwelijk jongvee'!C12,'lijst voedermiddelen'!$B$2:$P$198,2,FALSE)/1000)*(((L$5*VLOOKUP('vrouwelijk jongvee'!C12,'lijst voedermiddelen'!$B$2:$P$198,3,FALSE))+(L$6*VLOOKUP('vrouwelijk jongvee'!$C12,'lijst voedermiddelen'!$B$2:$P$198,5,FALSE)))/1000)*(1-VLOOKUP('vrouwelijk jongvee'!$C12,'lijst voedermiddelen'!$B$2:$P$198,15,FALSE)/100)*10,"-") -> 0
B13: voedermiddel5 | C13: (voedermiddel) | D13: =VLOOKUP('vrouwelijk jongvee'!$C13,'lijst voedermiddelen'!$B$2:$N$198,2,FALSE) -> 0 | E13: =VLOOKUP('vrouwelijk jongvee'!$C13,'lijst voedermiddelen'!$B$2:$N$198,3,FALSE) -> 0 | F13: =VLOOKUP('vrouwelijk jongvee'!$C13,'lijst voedermiddelen'!$B$2:$N$198,4,FALSE) -> 0 | G13: =VLOOKUP('vrouwelijk jongvee'!$C13,'lijst voedermiddelen'!$B$2:$N$198,5,FALSE) -> 0 | H13: =VLOOKUP('vrouwelijk jongvee'!$C13,'lijst voedermiddelen'!$B$2:$N$198,6,FALSE) -> 0 | I13: =VLOOKUP('vrouwelijk jongvee'!$C13,'lijst voedermiddelen'!$B$2:$N$198,7,FALSE) -> 0 | K13: 0 | L13: =IFERROR((VLOOKUP('vrouwelijk jongvee'!C13,'lijst voedermiddelen'!$B$2:$P$198,2,FALSE)/1000)*(((L$5*VLOOKUP('vrouwelijk jongvee'!C13,'lijst voedermiddelen'!$B$2:$P$198,3,FALSE))+(L$6*VLOOKUP('vrouwelijk jongvee'!$C13,'lijst voedermiddelen'!$B$2:$P$198,5,FALSE)))/1000)*(1-VLOOKUP('vrouwelijk jongvee'!$C13,'lijst voedermiddelen'!$B$2:$P$198,15,FALSE)/100)*10,"-") -> 0
B14: voedermiddel6 | C14: (voedermiddel) | D14: =VLOOKUP('vrouwelijk jongvee'!$C14,'lijst voedermiddelen'!$B$2:$N$198,2,FALSE) -> 0 | E14: =VLOOKUP('vrouwelijk jongvee'!$C14,'lijst voedermiddelen'!$B$2:$N$198,3,FALSE) -> 0 | F14: =VLOOKUP('vrouwelijk jongvee'!$C14,'lijst voedermiddelen'!$B$2:$N$198,4,FALSE) -> 0 | G14: =VLOOKUP('vrouwelijk jongvee'!$C14,'lijst voedermiddelen'!$B$2:$N$198,5,FALSE) -> 0 | H14: =VLOOKUP('vrouwelijk jongvee'!$C14,'lijst voedermiddelen'!$B$2:$N$198,6,FALSE) -> 0 | I14: =VLOOKUP('vrouwelijk jongvee'!$C14,'lijst voedermiddelen'!$B$2:$N$198,7,FALSE) -> 0 | K14: 0 | L14: =IFERROR((VLOOKUP('vrouwelijk jongvee'!C14,'lijst voedermiddelen'!$B$2:$P$198,2,FALSE)/1000)*(((L$5*VLOOKUP('vrouwelijk jongvee'!C14,'lijst voedermiddelen'!$B$2:$P$198,3,FALSE))+(L$6*VLOOKUP('vrouwelijk jongvee'!$C14,'lijst voedermiddelen'!$B$2:$P$198,5,FALSE)))/1000)*(1-VLOOKUP('vrouwelijk jongvee'!$C14,'lijst voedermiddelen'!$B$2:$P$198,15,FALSE)/100)*10,"-") -> 0
B15: voedermiddel7 | C15: (voedermiddel) | D15: =VLOOKUP('vrouwelijk jongvee'!$C15,'lijst voedermiddelen'!$B$2:$N$198,2,FALSE) -> 0 | E15: =VLOOKUP('vrouwelijk jongvee'!$C15,'lijst voedermiddelen'!$B$2:$N$198,3,FALSE) -> 0 | F15: =VLOOKUP('vrouwelijk jongvee'!$C15,'lijst voedermiddelen'!$B$2:$N$198,4,FALSE) -> 0 | G15: =VLOOKUP('vrouwelijk jongvee'!$C15,'lijst voedermiddelen'!$B$2:$N$198,5,FALSE) -> 0 | H15: =VLOOKUP('vrouwelijk jongvee'!$C15,'lijst voedermiddelen'!$B$2:$N$198,6,FALSE) -> 0 | I15: =VLOOKUP('vrouwelijk jongvee'!$C15,'lijst voedermiddelen'!$B$2:$N$198,7,FALSE) -> 0 | K15: 0 | L15: =IFERROR((VLOOKUP('vrouwelijk jongvee'!C15,'lijst voedermiddelen'!$B$2:$P$198,2,FALSE)/1000)*(((L$5*VLOOKUP('vrouwelijk jongvee'!C15,'lijst voedermiddelen'!$B$2:$P$198,3,FALSE))+(L$6*VLOOKUP('vrouwelijk jongvee'!$C15,'lijst voedermiddelen'!$B$2:$P$198,5,FALSE)))/1000)*(1-VLOOKUP('vrouwelijk jongvee'!$C15,'lijst voedermiddelen'!$B$2:$P$198,15,FALSE)/100)*10,"-") -> 0
B16: voedermiddel8 | C16: (voedermiddel) | D16: =VLOOKUP('vrouwelijk jongvee'!$C16,'lijst voedermiddelen'!$B$2:$N$198,2,FALSE) -> 0 | E16: =VLOOKUP('vrouwelijk jongvee'!$C16,'lijst voedermiddelen'!$B$2:$N$198,3,FALSE) -> 0 | F16: =VLOOKUP('vrouwelijk jongvee'!$C16,'lijst voedermiddelen'!$B$2:$N$198,4,FALSE) -> 0 | G16: =VLOOKUP('vrouwelijk jongvee'!$C16,'lijst voedermiddelen'!$B$2:$N$198,5,FALSE) -> 0 | H16: =VLOOKUP('vrouwelijk jongvee'!$C16,'lijst voedermiddelen'!$B$2:$N$198,6,FALSE) -> 0 | I16: =VLOOKUP('vrouwelijk jongvee'!$C16,'lijst voedermiddelen'!$B$2:$N$198,7,FALSE) -> 0 | K16: 0 | L16: =IFERROR((VLOOKUP('vrouwelijk jongvee'!C16,'lijst voedermiddelen'!$B$2:$P$198,2,FALSE)/1000)*(((L$5*VLOOKUP('vrouwelijk jongvee'!C16,'lijst voedermiddelen'!$B$2:$P$198,3,FALSE))+(L$6*VLOOKUP('vrouwelijk jongvee'!$C16,'lijst voedermiddelen'!$B$2:$P$198,5,FALSE)))/1000)*(1-VLOOKUP('vrouwelijk jongvee'!$C16,'lijst voedermiddelen'!$B$2:$P$198,15,FALSE)/100)*10,"-") -> 0
B17: voedermiddel9 | C17: (voedermiddel) | D17: =VLOOKUP('vrouwelijk jongvee'!$C17,'lijst voedermiddelen'!$B$2:$N$198,2,FALSE) -> 0 | E17: =VLOOKUP('vrouwelijk jongvee'!$C17,'lijst voedermiddelen'!$B$2:$N$198,3,FALSE) -> 0 | F17: =VLOOKUP('vrouwelijk jongvee'!$C17,'lijst voedermiddelen'!$B$2:$N$198,4,FALSE) -> 0 | G17: =VLOOKUP('vrouwelijk jongvee'!$C17,'lijst voedermiddelen'!$B$2:$N$198,5,FALSE) -> 0 | H17: =VLOOKUP('vrouwelijk jongvee'!$C17,'lijst voedermiddelen'!$B$2:$N$198,6,FALSE) -> 0 | I17: =VLOOKUP('vrouwelijk jongvee'!$C17,'lijst voedermiddelen'!$B$2:$N$198,7,FALSE) -> 0 | K17: 0 | L17: =IFERROR((VLOOKUP('vrouwelijk jongvee'!C17,'lijst voedermiddelen'!$B$2:$P$198,2,FALSE)/1000)*(((L$5*VLOOKUP('vrouwelijk jongvee'!C17,'lijst voedermiddelen'!$B$2:$P$198,3,FALSE))+(L$6*VLOOKUP('vrouwelijk jongvee'!$C17,'lijst voedermiddelen'!$B$2:$P$198,5,FALSE)))/1000)*(1-VLOOKUP('vrouwelijk jongvee'!$C17,'lijst voedermiddelen'!$B$2:$P$198,15,FALSE)/100)*10,"-") -> 0
B18: voedermiddel10 | C18: (voedermiddel) | D18: =VLOOKUP('vrouwelijk jongvee'!$C18,'lijst voedermiddelen'!$B$2:$N$198,2,FALSE) -> 0 | E18: =VLOOKUP('vrouwelijk jongvee'!$C18,'lijst voedermiddelen'!$B$2:$N$198,3,FALSE) -> 0 | F18: =VLOOKUP('vrouwelijk jongvee'!$C18,'lijst voedermiddelen'!$B$2:$N$198,4,FALSE) -> 0 | G18: =VLOOKUP('vrouwelijk jongvee'!$C18,'lijst voedermiddelen'!$B$2:$N$198,5,FALSE) -> 0 | H18: =VLOOKUP('vrouwelijk jongvee'!$C18,'lijst voedermiddelen'!$B$2:$N$198,6,FALSE) -> 0 | I18: =VLOOKUP('vrouwelijk jongvee'!$C18,'lijst voedermiddelen'!$B$2:$N$198,7,FALSE) -> 0 | K18: 0 | L18: =IFERROR((VLOOKUP('vrouwelijk jongvee'!C18,'lijst voedermiddelen'!$B$2:$P$198,2,FALSE)/1000)*(((L$5*VLOOKUP('vrouwelijk jongvee'!C18,'lijst voedermiddelen'!$B$2:$P$198,3,FALSE))+(L$6*VLOOKUP('vrouwelijk jongvee'!$C18,'lijst voedermiddelen'!$B$2:$P$198,5,FALSE)))/1000)*(1-VLOOKUP('vrouwelijk jongvee'!$C18,'lijst voedermiddelen'!$B$2:$P$198,15,FALSE)/100)*10,"-") -> 0
B19: voedermiddel11 | C19: (voedermiddel) | D19: =VLOOKUP('vrouwelijk jongvee'!$C19,'lijst voedermiddelen'!$B$2:$N$198,2,FALSE) -> 0 | E19: =VLOOKUP('vrouwelijk jongvee'!$C19,'lijst voedermiddelen'!$B$2:$N$198,3,FALSE) -> 0 | F19: =VLOOKUP('vrouwelijk jongvee'!$C19,'lijst voedermiddelen'!$B$2:$N$198,4,FALSE) -> 0 | G19: =VLOOKUP('vrouwelijk jongvee'!$C19,'lijst voedermiddelen'!$B$2:$N$198,5,FALSE) -> 0 | H19: =VLOOKUP('vrouwelijk jongvee'!$C19,'lijst voedermiddelen'!$B$2:$N$198,6,FALSE) -> 0 | I19: =VLOOKUP('vrouwelijk jongvee'!$C19,'lijst voedermiddelen'!$B$2:$N$198,7,FALSE) -> 0 | K19: 0 | L19: =IFERROR((VLOOKUP('vrouwelijk jongvee'!C19,'lijst voedermiddelen'!$B$2:$P$198,2,FALSE)/1000)*(((L$5*VLOOKUP('vrouwelijk jongvee'!C19,'lijst voedermiddelen'!$B$2:$P$198,3,FALSE))+(L$6*VLOOKUP('vrouwelijk jongvee'!$C19,'lijst voedermiddelen'!$B$2:$P$198,5,FALSE)))/1000)*(1-VLOOKUP('vrouwelijk jongvee'!$C19,'lijst voedermiddelen'!$B$2:$P$198,15,FALSE)/100)*10,"-") -> 0
B20: voedermiddel12 | C20: (voedermiddel) | D20: =VLOOKUP('vrouwelijk jongvee'!$C20,'lijst voedermiddelen'!$B$2:$N$198,2,FALSE) -> 0 | E20: =VLOOKUP('vrouwelijk jongvee'!$C20,'lijst voedermiddelen'!$B$2:$N$198,3,FALSE) -> 0 | F20: =VLOOKUP('vrouwelijk jongvee'!$C20,'lijst voedermiddelen'!$B$2:$N$198,4,FALSE) -> 0 | G20: =VLOOKUP('vrouwelijk jongvee'!$C20,'lijst voedermiddelen'!$B$2:$N$198,5,FALSE) -> 0 | H20: =VLOOKUP('vrouwelijk jongvee'!$C20,'lijst voedermiddelen'!$B$2:$N$198,6,FALSE) -> 0 | I20: =VLOOKUP('vrouwelijk jongvee'!$C20,'lijst voedermiddelen'!$B$2:$N$198,7,FALSE) -> 0 | K20: 0 | L20: =IFERROR((VLOOKUP('vrouwelijk jongvee'!C20,'lijst voedermiddelen'!$B$2:$P$198,2,FALSE)/1000)*(((L$5*VLOOKUP('vrouwelijk jongvee'!C20,'lijst voedermiddelen'!$B$2:$P$198,3,FALSE))+(L$6*VLOOKUP('vrouwelijk jongvee'!$C20,'lijst voedermiddelen'!$B$2:$P$198,5,FALSE)))/1000)*(1-VLOOKUP('vrouwelijk jongvee'!$C20,'lijst voedermiddelen'!$B$2:$P$198,15,FALSE)/100)*10,"-") -> 0
B21: voedermiddel13 | C21: (voedermiddel) | D21: =VLOOKUP('vrouwelijk jongvee'!$C21,'lijst voedermiddelen'!$B$2:$N$198,2,FALSE) -> 0 | E21: =VLOOKUP('vrouwelijk jongvee'!$C21,'lijst voedermiddelen'!$B$2:$N$198,3,FALSE) -> 0 | F21: =VLOOKUP('vrouwelijk jongvee'!$C21,'lijst voedermiddelen'!$B$2:$N$198,4,FALSE) -> 0 | G21: =VLOOKUP('vrouwelijk jongvee'!$C21,'lijst voedermiddelen'!$B$2:$N$198,5,FALSE) -> 0 | H21: =VLOOKUP('vrouwelijk jongvee'!$C21,'lijst voedermiddelen'!$B$2:$N$198,6,FALSE) -> 0 | I21: =VLOOKUP('vrouwelijk jongvee'!$C21,'lijst voedermiddelen'!$B$2:$N$198,7,FALSE) -> 0 | K21: 0 | L21: =IFERROR((VLOOKUP('vrouwelijk jongvee'!C21,'lijst voedermiddelen'!$B$2:$P$198,2,FALSE)/1000)*(((L$5*VLOOKUP('vrouwelijk jongvee'!C21,'lijst voedermiddelen'!$B$2:$P$198,3,FALSE))+(L$6*VLOOKUP('vrouwelijk jongvee'!$C21,'lijst voedermiddelen'!$B$2:$P$198,5,FALSE)))/1000)*(1-VLOOKUP('vrouwelijk jongvee'!$C21,'lijst voedermiddelen'!$B$2:$P$198,15,FALSE)/100)*10,"-") -> 0
B22: voedermiddel14 | C22: (voedermiddel) | D22: =VLOOKUP('vrouwelijk jongvee'!$C22,'lijst voedermiddelen'!$B$2:$N$198,2,FALSE) -> 0 | E22: =VLOOKUP('vrouwelijk jongvee'!$C22,'lijst voedermiddelen'!$B$2:$N$198,3,FALSE) -> 0 | F22: =VLOOKUP('vrouwelijk jongvee'!$C22,'lijst voedermiddelen'!$B$2:$N$198,4,FALSE) -> 0 | G22: =VLOOKUP('vrouwelijk jongvee'!$C22,'lijst voedermiddelen'!$B$2:$N$198,5,FALSE) -> 0 | H22: =VLOOKUP('vrouwelijk jongvee'!$C22,'lijst voedermiddelen'!$B$2:$N$198,6,FALSE) -> 0 | I22: =VLOOKUP('vrouwelijk jongvee'!$C22,'lijst voedermiddelen'!$B$2:$N$198,7,FALSE) -> 0 | K22: 0 | L22: =IFERROR((VLOOKUP('vrouwelijk jongvee'!C22,'lijst voedermiddelen'!$B$2:$P$198,2,FALSE)/1000)*(((L$5*VLOOKUP('vrouwelijk jongvee'!C22,'lijst voedermiddelen'!$B$2:$P$198,3,FALSE))+(L$6*VLOOKUP('vrouwelijk jongvee'!$C22,'lijst voedermiddelen'!$B$2:$P$198,5,FALSE)))/1000)*(1-VLOOKUP('vrouwelijk jongvee'!$C22,'lijst voedermiddelen'!$B$2:$P$198,15,FALSE)/100)*10,"-") -> 0
B23: voedermiddel15 | C23: (voedermiddel) | D23: =VLOOKUP('vrouwelijk jongvee'!$C23,'lijst voedermiddelen'!$B$2:$N$198,2,FALSE) -> 0 | E23: =VLOOKUP('vrouwelijk jongvee'!$C23,'lijst voedermiddelen'!$B$2:$N$198,3,FALSE) -> 0 | F23: =VLOOKUP('vrouwelijk jongvee'!$C23,'lijst voedermiddelen'!$B$2:$N$198,4,FALSE) -> 0 | G23: =VLOOKUP('vrouwelijk jongvee'!$C23,'lijst voedermiddelen'!$B$2:$N$198,5,FALSE) -> 0 | H23: =VLOOKUP('vrouwelijk jongvee'!$C23,'lijst voedermiddelen'!$B$2:$N$198,6,FALSE) -> 0 | I23: =VLOOKUP('vrouwelijk jongvee'!$C23,'lijst voedermiddelen'!$B$2:$N$198,7,FALSE) -> 0 | K23: 0 | L23: =IFERROR((VLOOKUP('vrouwelijk jongvee'!C23,'lijst voedermiddelen'!$B$2:$P$198,2,FALSE)/1000)*(((L$5*VLOOKUP('vrouwelijk jongvee'!C23,'lijst voedermiddelen'!$B$2:$P$198,3,FALSE))+(L$6*VLOOKUP('vrouwelijk jongvee'!$C23,'lijst voedermiddelen'!$B$2:$P$198,5,FALSE)))/1000)*(1-VLOOKUP('vrouwelijk jongvee'!$C23,'lijst voedermiddelen'!$B$2:$P$198,15,FALSE)/100)*10,"-") -> 0
C27: soort voedermiddel | D27: SW (/kg DS) | E27: Ca (g/kg DS) | F27: P (g/kg DS) | G27: Mg (g/kg DS) | H27: Na (g/kg DS) | I27: K (g/kg DS) | J27: VW (/kg DS)
B28: voedermiddel1 | C28: (voedermiddel) | D28: =VLOOKUP('vrouwelijk jongvee'!$C28,'lijst voedermiddelen'!$B$2:$N$198,8,FALSE) -> 0 | E28: =VLOOKUP('vrouwelijk jongvee'!$C28,'lijst voedermiddelen'!$B$2:$N$198,9,FALSE) -> 0 | F28: =VLOOKUP('vrouwelijk jongvee'!$C28,'lijst voedermiddelen'!$B$2:$N$198,10,FALSE) -> 0 | G28: =VLOOKUP('vrouwelijk jongvee'!$C28,'lijst voedermiddelen'!$B$2:$N$198,11,FALSE) -> 0 | H28: =VLOOKUP('vrouwelijk jongvee'!$C28,'lijst voedermiddelen'!$B$2:$N$198,12,FALSE) -> 0 | I28: =VLOOKUP('vrouwelijk jongvee'!$C28,'lijst voedermiddelen'!$B$2:$N$198,13,FALSE) -> 0 | J28: =VLOOKUP('vrouwelijk jongvee'!$C28,'lijst voedermiddelen'!$B$2:$O$198,14,FALSE) -> 0
B29: voedermiddel2 | C29: (voedermiddel) | D29: =VLOOKUP('vrouwelijk jongvee'!$C29,'lijst voedermiddelen'!$B$2:$N$198,8,FALSE) -> 0 | E29: =VLOOKUP('vrouwelijk jongvee'!$C29,'lijst voedermiddelen'!$B$2:$N$198,9,FALSE) -> 0 | F29: =VLOOKUP('vrouwelijk jongvee'!$C29,'lijst voedermiddelen'!$B$2:$N$198,10,FALSE) -> 0 | G29: =VLOOKUP('vrouwelijk jongvee'!$C29,'lijst voedermiddelen'!$B$2:$N$198,11,FALSE) -> 0 | H29: =VLOOKUP('vrouwelijk jongvee'!$C29,'lijst voedermiddelen'!$B$2:$N$198,12,FALSE) -> 0 | I29: =VLOOKUP('vrouwelijk jongvee'!$C29,'lijst voedermiddelen'!$B$2:$N$198,13,FALSE) -> 0 | J29: =VLOOKUP('vrouwelijk jongvee'!$C29,'lijst voedermiddelen'!$B$2:$O$198,14,FALSE) -> 0
B30: voedermiddel3 | C30: (voedermiddel) | D30: =VLOOKUP('vrouwelijk jongvee'!$C30,'lijst voedermiddelen'!$B$2:$N$198,8,FALSE) -> 0 | E30: =VLOOKUP('vrouwelijk jongvee'!$C30,'lijst voedermiddelen'!$B$2:$N$198,9,FALSE) -> 0 | F30: =VLOOKUP('vrouwelijk jongvee'!$C30,'lijst voedermiddelen'!$B$2:$N$198,10,FALSE) -> 0 | G30: =VLOOKUP('vrouwelijk jongvee'!$C30,'lijst voedermiddelen'!$B$2:$N$198,11,FALSE) -> 0 | H30: =VLOOKUP('vrouwelijk jongvee'!$C30,'lijst voedermiddelen'!$B$2:$N$198,12,FALSE) -> 0 | I30: =VLOOKUP('vrouwelijk jongvee'!$C30,'lijst voedermiddelen'!$B$2:$N$198,13,FALSE) -> 0 | J30: =VLOOKUP('vrouwelijk jongvee'!$C30,'lijst voedermiddelen'!$B$2:$O$198,14,FALSE) -> 0
B31: voedermiddel4 | C31: (voedermiddel) | D31: =VLOOKUP('vrouwelijk jongvee'!$C31,'lijst voedermiddelen'!$B$2:$N$198,8,FALSE) -> 0 | E31: =VLOOKUP('vrouwelijk jongvee'!$C31,'lijst voedermiddelen'!$B$2:$N$198,9,FALSE) -> 0 | F31: =VLOOKUP('vrouwelijk jongvee'!$C31,'lijst voedermiddelen'!$B$2:$N$198,10,FALSE) -> 0 | G31: =VLOOKUP('vrouwelijk jongvee'!$C31,'lijst voedermiddelen'!$B$2:$N$198,11,FALSE) -> 0 | H31: =VLOOKUP('vrouwelijk jongvee'!$C31,'lijst voedermiddelen'!$B$2:$N$198,12,FALSE) -> 0 | I31: =VLOOKUP('vrouwelijk jongvee'!$C31,'lijst voedermiddelen'!$B$2:$N$198,13,FALSE) -> 0 | J31: =VLOOKUP('vrouwelijk jongvee'!$C31,'lijst voedermiddelen'!$B$2:$O$198,14,FALSE) -> 0
B32: voedermiddel5 | C32: (voedermiddel) | D32: =VLOOKUP('vrouwelijk jongvee'!$C32,'lijst voedermiddelen'!$B$2:$N$198,8,FALSE) -> 0 | E32: =VLOOKUP('vrouwelijk jongvee'!$C32,'lijst voedermiddelen'!$B$2:$N$198,9,FALSE) -> 0 | F32: =VLOOKUP('vrouwelijk jongvee'!$C32,'lijst voedermiddelen'!$B$2:$N$198,10,FALSE) -> 0 | G32: =VLOOKUP('vrouwelijk jongvee'!$C32,'lijst voedermiddelen'!$B$2:$N$198,11,FALSE) -> 0 | H32: =VLOOKUP('vrouwelijk jongvee'!$C32,'lijst voedermiddelen'!$B$2:$N$198,12,FALSE) -> 0 | I32: =VLOOKUP('vrouwelijk jongvee'!$C32,'lijst voedermiddelen'!$B$2:$N$198,13,FALSE) -> 0 | J32: =VLOOKUP('vrouwelijk jongvee'!$C32,'lijst voedermiddelen'!$B$2:$O$198,14,FALSE) -> 0
B33: voedermiddel6 | C33: (voedermiddel) | D33: =VLOOKUP('vrouwelijk jongvee'!$C33,'lijst voedermiddelen'!$B$2:$N$198,8,FALSE) -> 0 | E33: =VLOOKUP('vrouwelijk jongvee'!$C33,'lijst voedermiddelen'!$B$2:$N$198,9,FALSE) -> 0 | F33: =VLOOKUP('vrouwelijk jongvee'!$C33,'lijst voedermiddelen'!$B$2:$N$198,10,FALSE) -> 0 | G33: =VLOOKUP('vrouwelijk jongvee'!$C33,'lijst voedermiddelen'!$B$2:$N$198,11,FALSE) -> 0 | H33: =VLOOKUP('vrouwelijk jongvee'!$C33,'lijst voedermiddelen'!$B$2:$N$198,12,FALSE) -> 0 | I33: =VLOOKUP('vrouwelijk jongvee'!$C33,'lijst voedermiddelen'!$B$2:$N$198,13,FALSE) -> 0 | J33: =VLOOKUP('vrouwelijk jongvee'!$C33,'lijst voedermiddelen'!$B$2:$O$198,14,FALSE) -> 0
B34: voedermiddel7 | C34: (voedermiddel) | D34: =VLOOKUP('vrouwelijk jongvee'!$C34,'lijst voedermiddelen'!$B$2:$N$198,8,FALSE) -> 0 | E34: =VLOOKUP('vrouwelijk jongvee'!$C34,'lijst voedermiddelen'!$B$2:$N$198,9,FALSE) -> 0 | F34: =VLOOKUP('vrouwelijk jongvee'!$C34,'lijst voedermiddelen'!$B$2:$N$198,10,FALSE) -> 0 | G34: =VLOOKUP('vrouwelijk jongvee'!$C34,'lijst voedermiddelen'!$B$2:$N$198,11,FALSE) -> 0 | H34: =VLOOKUP('vrouwelijk jongvee'!$C34,'lijst voedermiddelen'!$B$2:$N$198,12,FALSE) -> 0 | I34: =VLOOKUP('vrouwelijk jongvee'!$C34,'lijst voedermiddelen'!$B$2:$N$198,13,FALSE) -> 0 | J34: =VLOOKUP('vrouwelijk jongvee'!$C34,'lijst voedermiddelen'!$B$2:$O$198,14,FALSE) -> 0
B35: voedermiddel8 | C35: (voedermiddel) | D35: =VLOOKUP('vrouwelijk jongvee'!$C35,'lijst voedermiddelen'!$B$2:$N$198,8,FALSE) -> 0 | E35: =VLOOKUP('vrouwelijk jongvee'!$C35,'lijst voedermiddelen'!$B$2:$N$198,9,FALSE) -> 0 | F35: =VLOOKUP('vrouwelijk jongvee'!$C35,'lijst voedermiddelen'!$B$2:$N$198,10,FALSE) -> 0 | G35: =VLOOKUP('vrouwelijk jongvee'!$C35,'lijst voedermiddelen'!$B$2:$N$198,11,FALSE) -> 0 | H35: =VLOOKUP('vrouwelijk jongvee'!$C35,'lijst voedermiddelen'!$B$2:$N$198,12,FALSE) -> 0 | I35: =VLOOKUP('vrouwelijk jongvee'!$C35,'lijst voedermiddelen'!$B$2:$N$198,13,FALSE) -> 0 | J35: =VLOOKUP('vrouwelijk jongvee'!$C35,'lijst voedermiddelen'!$B$2:$O$198,14,FALSE) -> 0
B36: voedermiddel9 | C36: (voedermiddel) | D36: =VLOOKUP('vrouwelijk jongvee'!$C36,'lijst voedermiddelen'!$B$2:$N$198,8,FALSE) -> 0 | E36: =VLOOKUP('vrouwelijk jongvee'!$C36,'lijst voedermiddelen'!$B$2:$N$198,9,FALSE) -> 0 | F36: =VLOOKUP('vrouwelijk jongvee'!$C36,'lijst voedermiddelen'!$B$2:$N$198,10,FALSE) -> 0 | G36: =VLOOKUP('vrouwelijk jongvee'!$C36,'lijst voedermiddelen'!$B$2:$N$198,11,FALSE) -> 0 | H36: =VLOOKUP('vrouwelijk jongvee'!$C36,'lijst voedermiddelen'!$B$2:$N$198,12,FALSE) -> 0 | I36: =VLOOKUP('vrouwelijk jongvee'!$C36,'lijst voedermiddelen'!$B$2:$N$198,13,FALSE) -> 0 | J36: =VLOOKUP('vrouwelijk jongvee'!$C36,'lijst voedermiddelen'!$B$2:$O$198,14,FALSE) -> 0
B37: voedermiddel10 | C37: (voedermiddel) | D37: =VLOOKUP('vrouwelijk jongvee'!$C37,'lijst voedermiddelen'!$B$2:$N$198,8,FALSE) -> 0 | E37: =VLOOKUP('vrouwelijk jongvee'!$C37,'lijst voedermiddelen'!$B$2:$N$198,9,FALSE) -> 0 | F37: =VLOOKUP('vrouwelijk jongvee'!$C37,'lijst voedermiddelen'!$B$2:$N$198,10,FALSE) -> 0 | G37: =VLOOKUP('vrouwelijk jongvee'!$C37,'lijst voedermiddelen'!$B$2:$N$198,11,FALSE) -> 0 | H37: =VLOOKUP('vrouwelijk jongvee'!$C37,'lijst voedermiddelen'!$B$2:$N$198,12,FALSE) -> 0 | I37: =VLOOKUP('vrouwelijk jongvee'!$C37,'lijst voedermiddelen'!$B$2:$N$198,13,FALSE) -> 0 | J37: =VLOOKUP('vrouwelijk jongvee'!$C37,'lijst voedermiddelen'!$B$2:$O$198,14,FALSE) -> 0
B38: voedermiddel11 | C38: (voedermiddel) | D38: =VLOOKUP('vrouwelijk jongvee'!$C38,'lijst voedermiddelen'!$B$2:$N$198,8,FALSE) -> 0 | E38: =VLOOKUP('vrouwelijk jongvee'!$C38,'lijst voedermiddelen'!$B$2:$N$198,9,FALSE) -> 0 | F38: =VLOOKUP('vrouwelijk jongvee'!$C38,'lijst voedermiddelen'!$B$2:$N$198,10,FALSE) -> 0 | G38: =VLOOKUP('vrouwelijk jongvee'!$C38,'lijst voedermiddelen'!$B$2:$N$198,11,FALSE) -> 0 | H38: =VLOOKUP('vrouwelijk jongvee'!$C38,'lijst voedermiddelen'!$B$2:$N$198,12,FALSE) -> 0 | I38: =VLOOKUP('vrouwelijk jongvee'!$C38,'lijst voedermiddelen'!$B$2:$N$198,13,FALSE) -> 0 | J38: =VLOOKUP('vrouwelijk jongvee'!$C38,'lijst voedermiddelen'!$B$2:$O$198,14,FALSE) -> 0
B39: voedermiddel12 | C39: (voedermiddel) | D39: =VLOOKUP('vrouwelijk jongvee'!$C39,'lijst voedermiddelen'!$B$2:$N$198,8,FALSE) -> 0 | E39: =VLOOKUP('vrouwelijk jongvee'!$C39,'lijst voedermiddelen'!$B$2:$N$198,9,FALSE) -> 0 | F39: =VLOOKUP('vrouwelijk jongvee'!$C39,'lijst voedermiddelen'!$B$2:$N$198,10,FALSE) -> 0 | G39: =VLOOKUP('vrouwelijk jongvee'!$C39,'lijst voedermiddelen'!$B$2:$N$198,11,FALSE) -> 0 | H39: =VLOOKUP('vrouwelijk jongvee'!$C39,'lijst voedermiddelen'!$B$2:$N$198,12,FALSE) -> 0 | I39: =VLOOKUP('vrouwelijk jongvee'!$C39,'lijst voedermiddelen'!$B$2:$N$198,13,FALSE) -> 0 | J39: =VLOOKUP('vrouwelijk jongvee'!$C39,'lijst voedermiddelen'!$B$2:$O$198,14,FALSE) -> 0
B40: voedermiddel13 | C40: (voedermiddel) | D40: =VLOOKUP('vrouwelijk jongvee'!$C40,'lijst voedermiddelen'!$B$2:$N$198,8,FALSE) -> 0 | E40: =VLOOKUP('vrouwelijk jongvee'!$C40,'lijst voedermiddelen'!$B$2:$N$198,9,FALSE) -> 0 | F40: =VLOOKUP('vrouwelijk jongvee'!$C40,'lijst voedermiddelen'!$B$2:$N$198,10,FALSE) -> 0 | G40: =VLOOKUP('vrouwelijk jongvee'!$C40,'lijst voedermiddelen'!$B$2:$N$198,11,FALSE) -> 0 | H40: =VLOOKUP('vrouwelijk jongvee'!$C40,'lijst voedermiddelen'!$B$2:$N$198,12,FALSE) -> 0 | I40: =VLOOKUP('vrouwelijk jongvee'!$C40,'lijst voedermiddelen'!$B$2:$N$198,13,FALSE) -> 0 | J40: =VLOOKUP('vrouwelijk jongvee'!$C40,'lijst voedermiddelen'!$B$2:$O$198,14,FALSE) -> 0
B41: voedermiddel14 | C41: (voedermiddel) | D41: =VLOOKUP('vrouwelijk jongvee'!$C41,'lijst voedermiddelen'!$B$2:$N$198,8,FALSE) -> 0 | E41: =VLOOKUP('vrouwelijk jongvee'!$C41,'lijst voedermiddelen'!$B$2:$N$198,9,FALSE) -> 0 | F41: =VLOOKUP('vrouwelijk jongvee'!$C41,'lijst voedermiddelen'!$B$2:$N$198,10,FALSE) -> 0 | G41: =VLOOKUP('vrouwelijk jongvee'!$C41,'lijst voedermiddelen'!$B$2:$N$198,11,FALSE) -> 0 | H41: =VLOOKUP('vrouwelijk jongvee'!$C41,'lijst voedermiddelen'!$B$2:$N$198,12,FALSE) -> 0 | I41: =VLOOKUP('vrouwelijk jongvee'!$C41,'lijst voedermiddelen'!$B$2:$N$198,13,FALSE) -> 0 | J41: =VLOOKUP('vrouwelijk jongvee'!$C41,'lijst voedermiddelen'!$B$2:$O$198,14,FALSE) -> 0
B42: voedermiddel15 | C42: (voedermiddel) | D42: =VLOOKUP('vrouwelijk jongvee'!$C42,'lijst voedermiddelen'!$B$2:$N$198,8,FALSE) -> 0 | E42: =VLOOKUP('vrouwelijk jongvee'!$C42,'lijst voedermiddelen'!$B$2:$N$198,9,FALSE) -> 0 | F42: =VLOOKUP('vrouwelijk jongvee'!$C42,'lijst voedermiddelen'!$B$2:$N$198,10,FALSE) -> 0 | G42: =VLOOKUP('vrouwelijk jongvee'!$C42,'lijst voedermiddelen'!$B$2:$N$198,11,FALSE) -> 0 | H42: =VLOOKUP('vrouwelijk jongvee'!$C42,'lijst voedermiddelen'!$B$2:$N$198,12,FALSE) -> 0 | I42: =VLOOKUP('vrouwelijk jongvee'!$C42,'lijst voedermiddelen'!$B$2:$N$198,13,FALSE) -> 0 | J42: =VLOOKUP('vrouwelijk jongvee'!$C42,'lijst voedermiddelen'!$B$2:$O$198,14,FALSE) -> 0
B46: rantsoen
C47: soort voedermiddel | D47: hoeveelheid verse stof (kg) | E47: kostprijs (€) | F47: voederwaarde-prijs (€)
B48: voedermiddel1 | C48: =C9 -> (voedermiddel) | D48: 0 | E48: =IF(AND(D48>0,K9=0),"-",D48*K9/1000) -> 0 | F48: =IF(AND(D48>0,L9="-"),"-",D48*L9/1000) -> 0
B49: voedermiddel2 | C49: =C10 -> (voedermiddel) | D49: 0 | E49: =IF(AND(D49>0,K10=0),"-",D49*K10/1000) -> 0 | F49: =IF(AND(D49>0,L10="-"),"-",D49*L10/1000) -> 0
B50: voedermiddel3 | C50: =C11 -> (voedermiddel) | D50: 0 | E50: 0 | F50: 0
B51: voedermiddel4 | C51: (voedermiddel) | D51: 0 | E51: 0 | F51: 0
B52: voedermiddel5 | C52: (voedermiddel) | D52: 0 | E52: 0 | F52: 0
B53: voedermiddel6 | C53: (voedermiddel) | D53: 0 | E53: 0 | F53: 0
B54: voedermiddel7 | C54: (voedermiddel) | D54: 0 | E54: 0 | F54: 0
B55: voedermiddel8 | C55: (voedermiddel) | D55: 0 | E55: 0 | F55: 0
B56: voedermiddel9 | C56: (voedermiddel) | D56: 0 | E56: 0 | F56: 0
B57: voedermiddel10 | C57: (voedermiddel) | D57: 0 | E57: 0 | F57: 0
B58: voedermiddel11 | C58: (voedermiddel) | D58: 0 | E58: 0 | F58: 0
B59: voedermiddel12 | C59: (voedermiddel) | D59: 0 | E59: 0 | F59: 0
B60: voedermiddel13 | C60: (voedermiddel) | D60: 0 | E60: 0 | F60: 0
B61: voedermiddel14 | C61: (voedermiddel) | D61: 0 | E61: 0 | F61: 0
B62: voedermiddel15 | C62: (voedermiddel) | D62: 0 | E62: 0 | F62: 0
B63: totaal | D63: =SUM(D48:D62) -> 0 | E63: =SUM(E48:E62) -> 0 | F63: =SUM(F48:F62) -> 0
B65: voederwaarde rantsoen
B66: hoeveelheid (kg VS) | D66: DS (kg DS) | E66: VEM | F66: DVE (g) | G66: OEB (g) | H66: RE (g) | I66: SW
B67: =D63 -> 0 | D67: =IF(COUNTIF($D$9:$D23,"=-")<>0,"-",SUMPRODUCT($D$48:$D$62,$D$9:$D$23)/1000) -> 0 | E67: =IF(OR(COUNTIF($D$9:$D$23,"=-")<>0,COUNTIF(E9:E23,"=-")<>0),"-",SUMPRODUCT($D$48:$D$62,E9:E23,$D$9:$D$23)/1000) -> 0 | F67: =IF(OR(COUNTIF($D$9:$D$23,"=-")<>0,COUNTIF(G9:G23,"=-")<>0),"-",SUMPRODUCT($D$48:$D$62,G9:G23,$D$9:$D$23)/1000) -> 0 | G67: =IF(OR(COUNTIF($D$9:$D$23,"=-")<>0,COUNTIF(H9:H23,"=-")<>0),"-",SUMPRODUCT($D$48:$D$62,H9:H23,$D$9:$D$23)/1000) -> 0 | H67: =IF(OR(COUNTIF($D$9:$D$23,"=-")<>0,COUNTIF(I9:I23,"=-")<>0),"-",SUMPRODUCT($D$48:$D$62,I9:I23,$D$9:$D$23)/1000) -> 0 | I67: =IF(OR(COUNTIF($D$9:$D$23,"=-")<>0,COUNTIF(D28:D42,"=-")<>0),"-",SUMPRODUCT($D$48:$D$62,D28:D42,$D$9:$D$23)/1000) -> 0
D69: Ca (g) | E69: P (g) | F69: Mg (g) | G69: Na (g) | H69: K (g) | I69: VW
D70: =IF(OR(COUNTIF($D$9:$D$23,"=-")<>0,COUNTIF(E28:E42,"=-")<>0),"-",CEILING(SUMPRODUCT($D$48:$D$62,E28:E42,$D$9:$D$23)/1000,0.5)) -> 0 | E70: 0 | F70: 0 | G70: 0 | H70: 0 | I70: 0
B72: kenmerken
B73: leeftijd (maanden)
B76: voederbehoeftenormen (per dier, per dag)
B77: Energie | C77: VEM | D77: =DGET('voederbehoeftenormen '!$B$108:$I$115,5,$B$73:$B$74) -> 
B78: Eiwit | C78: g DVE | D78: =DGET('voederbehoeftenormen '!$B$108:$I$115,6,$B$73:$B$74) -> 
C79: g OEB* | D79: =IF(F67>D78,DGET('voederbehoeftenormen '!$B$108:$I$115,7,$B$73:$B$74),0) ->  | E79: =IF(F67>D78,(-(F67-D78)/0.65),0) -> 
B80: Mineralen | C80: g Ca | D80: =IF(D67>0,DGET('voederbehoeftenormen '!$B$108:$M$115,9,$B$73:$B$74),"afhankelijk van DS-opname") -> afhankelijk van DS-opname
C81: g P | D81: =IF(D67>0,DGET('voederbehoeftenormen '!$B$108:$M$115,10,$B$73:$B$74),"afhankelijk van DS-opname") -> afhankelijk van DS-opname
C82: g Mg | D82: =DGET('voederbehoeftenormen '!$B$108:$M$115,11,$B$73:$B$74) -> 
B83: Structuur | C83: SW | D83: =IF(D67>0,DGET('voederbehoeftenormen '!$B$108:$I$115,8,$B$73:$B$74),"afhankelijk van DS-opname") -> afhankelijk van DS-opname
B84: * er bestaat geen OEB-norm, wel een ondergrens
B87: hoeveelheid nodig om voederbehoeften te dekken | F87: kenmerken rantsoen
D88: kg DS | F88: DS-gehalte (%) | H88: =(D67/B67)*100 -> 
B89: op basis van | C89: VEM | D89: =CEILING(D77/(E67/D67),0.5) ->  | F89: RE-gehalte (%) | H89: =(H67/(D67*1000))*100 -> 
C90: DVE | D90: =CEILING(D78/(F67/D67),0.5) ->  | F90: Structuurwaarde (per kg DS) | H90: =I67/D67 -> 
F91: Verzadigingswaarde (per kg DS) | H91: =I70/D67 -> 
B93: opmerkingen
B94: energie (VEM): | C94: =IF(AND(D67>0,E67<D77),"Pas op! Rantsoen dekt energiebehoefte van dier niet"," ") -> 
B95: eiwit (DVE): | C95: =IF(AND(D67>0,F67<D78),"Pas op! Rantsoen dekt eiwitbehoefte van dier niet. Dit impliceert dat het dier geen OEB-tekort verdraagt."," ") -> 
B96: OEB: | C96: =IF(AND(G67>D79,G67>E79),"","Pas op! OEB-tekort: remming van de penswerking") -> 
C97: =IF(OR(AND(CODE(B74)<48,G67>100)=TRUE,AND(CODE(B74)>48,G67>50)=TRUE),"Er is een OEB-overmaat (d.w.z. N-uitscheiding in milieu), besparing op eiwit mogelijk!"," ") -> 
B98: structuur: | C98: =IF(I67<0.95*D83,"Pas op! Structuurtekort, gevaar voor pensverzuring"," ") -> 
B99: ruw eiwitgehalte: | C99: =IF(OR(AND(CODE(B74)<48,H89<14.9)=TRUE,AND(CODE(B74)>48,H89<12.4)=TRUE),"Ruw eiwitgehalte is laag: enkel probleem bij een groot OEB-tekort!"," ") -> 
B100: mineralen: | C100: =IF(D70<(D80*0.95),"Rantsoen dekt behoefte aan calcium niet: er is een tekort van "," ") ->  | G100: =IF(D70<D80*0.95,(D80-D70), " ") ->  | H100: =IF(D70<D80*0.95,"g per dier", " ") -> 
C101: =IF(E70<(D81*0.95),"Rantsoen dekt behoefte aan fosfor niet: er is een tekort van"," ") ->  | G101: =IF(E70<D81*0.95,(D81-E70), " ") ->  | H101: =IF(E70<D81*0.95,"g per dier", " ") -> 
C102: =IF((D70/E70)<1.49,"Slechte Ca/P-verhouding: overmaat aan P = kans op vorming van nier- en blaasstenen"," ") -> 
B103: kostprijs: | C103: =IF(COUNTIF($E$48:$E$62,"=-")<>0,"De kostprijs van één of meerdere voedermiddelen ontbreken, de totale kostprijs van het rantsoen is niet volledig","") -> 
C104: =IF(COUNTIF($F$48:$F$62,"=-")<>0,"De voederwaardeprijs van één of meerdere voedermiddelen ontbreken, ga na of de bewaarverliezen van deze voedermiddelen zijn ingevuld","") -> 
C105: =IF(OR(C103<>"",C104<>""),"",IF(AND(E63>1.05*F63,F63>0),"De kostprijs van het rantsoen is hoger dan de voederwaardeprijs: ga na of een goedkoper voedermiddel kan ingeschakeld worden."," ")) -> 

Sheet zoogkoeien
B2: zoogkoeien
K4: energieprijs en eiwittoeslagprijs (in eurocenten)
B5: voedermiddelen | K5: per kVEM | L5: 0
K6: per kg DVE-toeslag | L6: 0
K7: datum
C8: soort voedermiddel | D8: DS (g DS/kg VS) | E8: VEM (/kg DS) | F8: VEVI (/kg DS) | G8: DVE (g/kg DS) | H8: OEB (g/kg DS) | I8: RE (g/kg DS) | K8: kostprijs voeder-middel (€/ton VS) | L8: voederwaardeprijs (€/ton VS)
B9: voedermiddel1 | C9: (voedermiddel) | D9: =VLOOKUP(zoogkoeien!$C9,'lijst voedermiddelen'!$B$2:$N$198,2,FALSE) -> 0 | E9: =VLOOKUP(zoogkoeien!$C9,'lijst voedermiddelen'!$B$2:$N$198,3,FALSE) -> 0 | F9: =VLOOKUP(zoogkoeien!$C9,'lijst voedermiddelen'!$B$2:$N$198,4,FALSE) -> 0 | G9: =VLOOKUP(zoogkoeien!$C9,'lijst voedermiddelen'!$B$2:$N$198,5,FALSE) -> 0 | H9: =VLOOKUP(zoogkoeien!$C9,'lijst voedermiddelen'!$B$2:$N$198,6,FALSE) -> 0 | I9: =VLOOKUP(zoogkoeien!$C9,'lijst voedermiddelen'!$B$2:$N$198,7,FALSE) -> 0 | K9: 0 | L9: =IFERROR((VLOOKUP(zoogkoeien!$C9,'lijst voedermiddelen'!$B$2:$P$198,2,FALSE)/1000)*(((L$5*VLOOKUP(zoogkoeien!$C9,'lijst voedermiddelen'!$B$2:$P$198,3,FALSE))+(L$6*VLOOKUP(zoogkoeien!$C9,'lijst voedermiddelen'!$B$2:$P$198,5,FALSE)))/1000)*(1-VLOOKUP(zoogkoeien!$C9,'lijst voedermiddelen'!$B$2:$P$198,15,FALSE)/100)*10,"-") -> 0
B10: voedermiddel2 | C10: (voedermiddel) | D10: =VLOOKUP(zoogkoeien!$C10,'lijst voedermiddelen'!$B$2:$N$198,2,FALSE) -> 0 | E10: =VLOOKUP(zoogkoeien!$C10,'lijst voedermiddelen'!$B$2:$N$198,3,FALSE) -> 0 | F10: =VLOOKUP(zoogkoeien!$C10,'lijst voedermiddelen'!$B$2:$N$198,4,FALSE) -> 0 | G10: =VLOOKUP(zoogkoeien!$C10,'lijst voedermiddelen'!$B$2:$N$198,5,FALSE) -> 0 | H10: =VLOOKUP(zoogkoeien!$C10,'lijst voedermiddelen'!$B$2:$N$198,6,FALSE) -> 0 | I10: =VLOOKUP(zoogkoeien!$C10,'lijst voedermiddelen'!$B$2:$N$198,7,FALSE) -> 0 | K10: 0 | L10: =IFERROR((VLOOKUP(zoogkoeien!$C10,'lijst voedermiddelen'!$B$2:$P$198,2,FALSE)/1000)*(((L$5*VLOOKUP(zoogkoeien!$C10,'lijst voedermiddelen'!$B$2:$P$198,3,FALSE))+(L$6*VLOOKUP(zoogkoeien!$C10,'lijst voedermiddelen'!$B$2:$P$198,5,FALSE)))/1000)*(1-VLOOKUP(zoogkoeien!$C10,'lijst voedermiddelen'!$B$2:$P$198,15,FALSE)/100)*10,"-") -> 0
B11: voedermiddel3 | C11: (voedermiddel) | D11: =VLOOKUP(zoogkoeien!$C11,'lijst voedermiddelen'!$B$2:$N$198,2,FALSE) -> 0 | E11: =VLOOKUP(zoogkoeien!$C11,'lijst voedermiddelen'!$B$2:$N$198,3,FALSE) -> 0 | F11: =VLOOKUP(zoogkoeien!$C11,'lijst voedermiddelen'!$B$2:$N$198,4,FALSE) -> 0 | G11: =VLOOKUP(zoogkoeien!$C11,'lijst voedermiddelen'!$B$2:$N$198,5,FALSE) -> 0 | H11: =VLOOKUP(zoogkoeien!$C11,'lijst voedermiddelen'!$B$2:$N$198,6,FALSE) -> 0 | I11: =VLOOKUP(zoogkoeien!$C11,'lijst voedermiddelen'!$B$2:$N$198,7,FALSE) -> 0 | K11: 0 | L11: =IFERROR((VLOOKUP(zoogkoeien!$C11,'lijst voedermiddelen'!$B$2:$P$198,2,FALSE)/1000)*(((L$5*VLOOKUP(zoogkoeien!$C11,'lijst voedermiddelen'!$B$2:$P$198,3,FALSE))+(L$6*VLOOKUP(zoogkoeien!$C11,'lijst voedermiddelen'!$B$2:$P$198,5,FALSE)))/1000)*(1-VLOOKUP(zoogkoeien!$C11,'lijst voedermiddelen'!$B$2:$P$198,15,FALSE)/100)*10,"-") -> 0
B12: voedermiddel4 | C12: (voedermiddel) | D12: =VLOOKUP(zoogkoeien!$C12,'lijst voedermiddelen'!$B$2:$N$198,2,FALSE) -> 0 | E12: =VLOOKUP(zoogkoeien!$C12,'lijst voedermiddelen'!$B$2:$N$198,3,FALSE) -> 0 | F12: =VLOOKUP(zoogkoeien!$C12,'lijst voedermiddelen'!$B$2:$N$198,4,FALSE) -> 0 | G12: =VLOOKUP(zoogkoeien!$C12,'lijst voedermiddelen'!$B$2:$N$198,5,FALSE) -> 0 | H12: =VLOOKUP(zoogkoeien!$C12,'lijst voedermiddelen'!$B$2:$N$198,6,FALSE) -> 0 | I12: =VLOOKUP(zoogkoeien!$C12,'lijst voedermiddelen'!$B$2:$N$198,7,FALSE) -> 0 | K12: 0 | L12: =IFERROR((VLOOKUP(zoogkoeien!$C12,'lijst voedermiddelen'!$B$2:$P$198,2,FALSE)/1000)*(((L$5*VLOOKUP(zoogkoeien!$C12,'lijst voedermiddelen'!$B$2:$P$198,3,FALSE))+(L$6*VLOOKUP(zoogkoeien!$C12,'lijst voedermiddelen'!$B$2:$P$198,5,FALSE)))/1000)*(1-VLOOKUP(zoogkoeien!$C12,'lijst voedermiddelen'!$B$2:$P$198,15,FALSE)/100)*10,"-") -> 0
B13: voedermiddel5 | C13: (voedermiddel) | D13: =VLOOKUP(zoogkoeien!$C13,'lijst voedermiddelen'!$B$2:$N$198,2,FALSE) -> 0 | E13: =VLOOKUP(zoogkoeien!$C13,'lijst voedermiddelen'!$B$2:$N$198,3,FALSE) -> 0 | F13: =VLOOKUP(zoogkoeien!$C13,'lijst voedermiddelen'!$B$2:$N$198,4,FALSE) -> 0 | G13: =VLOOKUP(zoogkoeien!$C13,'lijst voedermiddelen'!$B$2:$N$198,5,FALSE) -> 0 | H13: =VLOOKUP(zoogkoeien!$C13,'lijst voedermiddelen'!$B$2:$N$198,6,FALSE) -> 0 | I13: =VLOOKUP(zoogkoeien!$C13,'lijst voedermiddelen'!$B$2:$N$198,7,FALSE) -> 0 | K13: 0 | L13: =IFERROR((VLOOKUP(zoogkoeien!$C13,'lijst voedermiddelen'!$B$2:$P$198,2,FALSE)/1000)*(((L$5*VLOOKUP(zoogkoeien!$C13,'lijst voedermiddelen'!$B$2:$P$198,3,FALSE))+(L$6*VLOOKUP(zoogkoeien!$C13,'lijst voedermiddelen'!$B$2:$P$198,5,FALSE)))/1000)*(1-VLOOKUP(zoogkoeien!$C13,'lijst voedermiddelen'!$B$2:$P$198,15,FALSE)/100)*10,"-") -> 0
B14: voedermiddel6 | C14: (voedermiddel) | D14: =VLOOKUP(zoogkoeien!$C14,'lijst voedermiddelen'!$B$2:$N$198,2,FALSE) -> 0 | E14: =VLOOKUP(zoogkoeien!$C14,'lijst voedermiddelen'!$B$2:$N$198,3,FALSE) -> 0 | F14: =VLOOKUP(zoogkoeien!$C14,'lijst voedermiddelen'!$B$2:$N$198,4,FALSE) -> 0 | G14: =VLOOKUP(zoogkoeien!$C14,'lijst voedermiddelen'!$B$2:$N$198,5,FALSE) -> 0 | H14: =VLOOKUP(zoogkoeien!$C14,'lijst voedermiddelen'!$B$2:$N$198,6,FALSE) -> 0 | I14: =VLOOKUP(zoogkoeien!$C14,'lijst voedermiddelen'!$B$2:$N$198,7,FALSE) -> 0 | K14: 0 | L14: =IFERROR((VLOOKUP(zoogkoeien!$C14,'lijst voedermiddelen'!$B$2:$P$198,2,FALSE)/1000)*(((L$5*VLOOKUP(zoogkoeien!$C14,'lijst voedermiddelen'!$B$2:$P$198,3,FALSE))+(L$6*VLOOKUP(zoogkoeien!$C14,'lijst voedermiddelen'!$B$2:$P$198,5,FALSE)))/1000)*(1-VLOOKUP(zoogkoeien!$C14,'lijst voedermiddelen'!$B$2:$P$198,15,FALSE)/100)*10,"-") -> 0
B15: voedermiddel7 | C15: (voedermiddel) | D15: =VLOOKUP(zoogkoeien!$C15,'lijst voedermiddelen'!$B$2:$N$198,2,FALSE) -> 0 | E15: =VLOOKUP(zoogkoeien!$C15,'lijst voedermiddelen'!$B$2:$N$198,3,FALSE) -> 0 | F15: =VLOOKUP(zoogkoeien!$C15,'lijst voedermiddelen'!$B$2:$N$198,4,FALSE) -> 0 | G15: =VLOOKUP(zoogkoeien!$C15,'lijst voedermiddelen'!$B$2:$N$198,5,FALSE) -> 0 | H15: =VLOOKUP(zoogkoeien!$C15,'lijst voedermiddelen'!$B$2:$N$198,6,FALSE) -> 0 | I15: =VLOOKUP(zoogkoeien!$C15,'lijst voedermiddelen'!$B$2:$N$198,7,FALSE) -> 0 | K15: 0 | L15: =IFERROR((VLOOKUP(zoogkoeien!$C15,'lijst voedermiddelen'!$B$2:$P$198,2,FALSE)/1000)*(((L$5*VLOOKUP(zoogkoeien!$C15,'lijst voedermiddelen'!$B$2:$P$198,3,FALSE))+(L$6*VLOOKUP(zoogkoeien!$C15,'lijst voedermiddelen'!$B$2:$P$198,5,FALSE)))/1000)*(1-VLOOKUP(zoogkoeien!$C15,'lijst voedermiddelen'!$B$2:$P$198,15,FALSE)/100)*10,"-") -> 0
B16: voedermiddel8 | C16: (voedermiddel) | D16: =VLOOKUP(zoogkoeien!$C16,'lijst voedermiddelen'!$B$2:$N$198,2,FALSE) -> 0 | E16: =VLOOKUP(zoogkoeien!$C16,'lijst voedermiddelen'!$B$2:$N$198,3,FALSE) -> 0 | F16: =VLOOKUP(zoogkoeien!$C16,'lijst voedermiddelen'!$B$2:$N$198,4,FALSE) -> 0 | G16: =VLOOKUP(zoogkoeien!$C16,'lijst voedermiddelen'!$B$2:$N$198,5,FALSE) -> 0 | H16: =VLOOKUP(zoogkoeien!$C16,'lijst voedermiddelen'!$B$2:$N$198,6,FALSE) -> 0 | I16: =VLOOKUP(zoogkoeien!$C16,'lijst voedermiddelen'!$B$2:$N$198,7,FALSE) -> 0 | K16: 0 | L16: =IFERROR((VLOOKUP(zoogkoeien!$C16,'lijst voedermiddelen'!$B$2:$P$198,2,FALSE)/1000)*(((L$5*VLOOKUP(zoogkoeien!$C16,'lijst voedermiddelen'!$B$2:$P$198,3,FALSE))+(L$6*VLOOKUP(zoogkoeien!$C16,'lijst voedermiddelen'!$B$2:$P$198,5,FALSE)))/1000)*(1-VLOOKUP(zoogkoeien!$C16,'lijst voedermiddelen'!$B$2:$P$198,15,FALSE)/100)*10,"-") -> 0
B17: voedermiddel9 | C17: (voedermiddel) | D17: =VLOOKUP(zoogkoeien!$C17,'lijst voedermiddelen'!$B$2:$N$198,2,FALSE) -> 0 | E17: =VLOOKUP(zoogkoeien!$C17,'lijst voedermiddelen'!$B$2:$N$198,3,FALSE) -> 0 | F17: =VLOOKUP(zoogkoeien!$C17,'lijst voedermiddelen'!$B$2:$N$198,4,FALSE) -> 0 | G17: =VLOOKUP(zoogkoeien!$C17,'lijst voedermiddelen'!$B$2:$N$198,5,FALSE) -> 0 | H17: =VLOOKUP(zoogkoeien!$C17,'lijst voedermiddelen'!$B$2:$N$198,6,FALSE) -> 0 | I17: =VLOOKUP(zoogkoeien!$C17,'lijst voedermiddelen'!$B$2:$N$198,7,FALSE) -> 0 | K17: 0 | L17: =IFERROR((VLOOKUP(zoogkoeien!$C17,'lijst voedermiddelen'!$B$2:$P$198,2,FALSE)/1000)*(((L$5*VLOOKUP(zoogkoeien!$C17,'lijst voedermiddelen'!$B$2:$P$198,3,FALSE))+(L$6*VLOOKUP(zoogkoeien!$C17,'lijst voedermiddelen'!$B$2:$P$198,5,FALSE)))/1000)*(1-VLOOKUP(zoogkoeien!$C17,'lijst voedermiddelen'!$B$2:$P$198,15,FALSE)/100)*10,"-") -> 0
B18: voedermiddel10 | C18: (voedermiddel) | D18: =VLOOKUP(zoogkoeien!$C18,'lijst voedermiddelen'!$B$2:$N$198,2,FALSE) -> 0 | E18: =VLOOKUP(zoogkoeien!$C18,'lijst voedermiddelen'!$B$2:$N$198,3,FALSE) -> 0 | F18: =VLOOKUP(zoogkoeien!$C18,'lijst voedermiddelen'!$B$2:$N$198,4,FALSE) -> 0 | G18: =VLOOKUP(zoogkoeien!$C18,'lijst voedermiddelen'!$B$2:$N$198,5,FALSE) -> 0 | H18: =VLOOKUP(zoogkoeien!$C18,'lijst voedermiddelen'!$B$2:$N$198,6,FALSE) -> 0 | I18: =VLOOKUP(zoogkoeien!$C18,'lijst voedermiddelen'!$B$2:$N$198,7,FALSE) -> 0 | K18: 0 | L18: =IFERROR((VLOOKUP(zoogkoeien!$C18,'lijst voedermiddelen'!$B$2:$P$198,2,FALSE)/1000)*(((L$5*VLOOKUP(zoogkoeien!$C18,'lijst voedermiddelen'!$B$2:$P$198,3,FALSE))+(L$6*VLOOKUP(zoogkoeien!$C18,'lijst voedermiddelen'!$B$2:$P$198,5,FALSE)))/1000)*(1-VLOOKUP(zoogkoeien!$C18,'lijst voedermiddelen'!$B$2:$P$198,15,FALSE)/100)*10,"-") -> 0
B19: voedermiddel11 | C19: (voedermiddel) | D19: =VLOOKUP(zoogkoeien!$C19,'lijst voedermiddelen'!$B$2:$N$198,2,FALSE) -> 0 | E19: =VLOOKUP(zoogkoeien!$C19,'lijst voedermiddelen'!$B$2:$N$198,3,FALSE) -> 0 | F19: =VLOOKUP(zoogkoeien!$C19,'lijst voedermiddelen'!$B$2:$N$198,4,FALSE) -> 0 | G19: =VLOOKUP(zoogkoeien!$C19,'lijst voedermiddelen'!$B$2:$N$198,5,FALSE) -> 0 | H19: =VLOOKUP(zoogkoeien!$C19,'lijst voedermiddelen'!$B$2:$N$198,6,FALSE) -> 0 | I19: =VLOOKUP(zoogkoeien!$C19,'lijst voedermiddelen'!$B$2:$N$198,7,FALSE) -> 0 | K19: 0 | L19: =IFERROR((VLOOKUP(zoogkoeien!$C19,'lijst voedermiddelen'!$B$2:$P$198,2,FALSE)/1000)*(((L$5*VLOOKUP(zoogkoeien!$C19,'lijst voedermiddelen'!$B$2:$P$198,3,FALSE))+(L$6*VLOOKUP(zoogkoeien!$C19,'lijst voedermiddelen'!$B$2:$P$198,5,FALSE)))/1000)*(1-VLOOKUP(zoogkoeien!$C19,'lijst voedermiddelen'!$B$2:$P$198,15,FALSE)/100)*10,"-") -> 0
B20: voedermiddel12 | C20: (voedermiddel) | D20: =VLOOKUP(zoogkoeien!$C20,'lijst voedermiddelen'!$B$2:$N$198,2,FALSE) -> 0 | E20: =VLOOKUP(zoogkoeien!$C20,'lijst voedermiddelen'!$B$2:$N$198,3,FALSE) -> 0 | F20: =VLOOKUP(zoogkoeien!$C20,'lijst voedermiddelen'!$B$2:$N$198,4,FALSE) -> 0 | G20: =VLOOKUP(zoogkoeien!$C20,'lijst voedermiddelen'!$B$2:$N$198,5,FALSE) -> 0 | H20: =VLOOKUP(zoogkoeien!$C20,'lijst voedermiddelen'!$B$2:$N$198,6,FALSE) -> 0 | I20: =VLOOKUP(zoogkoeien!$C20,'lijst voedermiddelen'!$B$2:$N$198,7,FALSE) -> 0 | K20: 0 | L20: =IFERROR((VLOOKUP(zoogkoeien!$C20,'lijst voedermiddelen'!$B$2:$P$198,2,FALSE)/1000)*(((L$5*VLOOKUP(zoogkoeien!$C20,'lijst voedermiddelen'!$B$2:$P$198,3,FALSE))+(L$6*VLOOKUP(zoogkoeien!$C20,'lijst voedermiddelen'!$B$2:$P$198,5,FALSE)))/1000)*(1-VLOOKUP(zoogkoeien!$C20,'lijst voedermiddelen'!$B$2:$P$198,15,FALSE)/100)*10,"-") -> 0
B21: voedermiddel13 | C21: (voedermiddel) | D21: =VLOOKUP(zoogkoeien!$C21,'lijst voedermiddelen'!$B$2:$N$198,2,FALSE) -> 0 | E21: =VLOOKUP(zoogkoeien!$C21,'lijst voedermiddelen'!$B$2:$N$198,3,FALSE) -> 0 | F21: =VLOOKUP(zoogkoeien!$C21,'lijst voedermiddelen'!$B$2:$N$198,4,FALSE) -> 0 | G21: =VLOOKUP(zoogkoeien!$C21,'lijst voedermiddelen'!$B$2:$N$198,5,FALSE) -> 0 | H21: =VLOOKUP(zoogkoeien!$C21,'lijst voedermiddelen'!$B$2:$N$198,6,FALSE) -> 0 | I21: =VLOOKUP(zoogkoeien!$C21,'lijst voedermiddelen'!$B$2:$N$198,7,FALSE) -> 0 | K21: 0 | L21: =IFERROR((VLOOKUP(zoogkoeien!$C21,'lijst voedermiddelen'!$B$2:$P$198,2,FALSE)/1000)*(((L$5*VLOOKUP(zoogkoeien!$C21,'lijst voedermiddelen'!$B$2:$P$198,3,FALSE))+(L$6*VLOOKUP(zoogkoeien!$C21,'lijst voedermiddelen'!$B$2:$P$198,5,FALSE)))/1000)*(1-VLOOKUP(zoogkoeien!$C21,'lijst voedermiddelen'!$B$2:$P$198,15,FALSE)/100)*10,"-") -> 0
B22: voedermiddel14 | C22: (voedermiddel) | D22: =VLOOKUP(zoogkoeien!$C22,'lijst voedermiddelen'!$B$2:$N$198,2,FALSE) -> 0 | E22: =VLOOKUP(zoogkoeien!$C22,'lijst voedermiddelen'!$B$2:$N$198,3,FALSE) -> 0 | F22: =VLOOKUP(zoogkoeien!$C22,'lijst voedermiddelen'!$B$2:$N$198,4,FALSE) -> 0 | G22: =VLOOKUP(zoogkoeien!$C22,'lijst voedermiddelen'!$B$2:$N$198,5,FALSE) -> 0 | H22: =VLOOKUP(zoogkoeien!$C22,'lijst voedermiddelen'!$B$2:$N$198,6,FALSE) -> 0 | I22: =VLOOKUP(zoogkoeien!$C22,'lijst voedermiddelen'!$B$2:$N$198,7,FALSE) -> 0 | K22: 0 | L22: =IFERROR((VLOOKUP(zoogkoeien!$C22,'lijst voedermiddelen'!$B$2:$P$198,2,FALSE)/1000)*(((L$5*VLOOKUP(zoogkoeien!$C22,'lijst voedermiddelen'!$B$2:$P$198,3,FALSE))+(L$6*VLOOKUP(zoogkoeien!$C22,'lijst voedermiddelen'!$B$2:$P$198,5,FALSE)))/1000)*(1-VLOOKUP(zoogkoeien!$C22,'lijst voedermiddelen'!$B$2:$P$198,15,FALSE)/100)*10,"-") -> 0
B23: voedermiddel15 | C23: (voedermiddel) | D23: =VLOOKUP(zoogkoeien!$C23,'lijst voedermiddelen'!$B$2:$N$198,2,FALSE) -> 0 | E23: =VLOOKUP(zoogkoeien!$C23,'lijst voedermiddelen'!$B$2:$N$198,3,FALSE) -> 0 | F23: =VLOOKUP(zoogkoeien!$C23,'lijst voedermiddelen'!$B$2:$N$198,4,FALSE) -> 0 | G23: =VLOOKUP(zoogkoeien!$C23,'lijst voedermiddelen'!$B$2:$N$198,5,FALSE) -> 0 | H23: =VLOOKUP(zoogkoeien!$C23,'lijst voedermiddelen'!$B$2:$N$198,6,FALSE) -> 0 | I23: =VLOOKUP(zoogkoeien!$C23,'lijst voedermiddelen'!$B$2:$N$198,7,FALSE) -> 0 | K23: 0 | L23: =IFERROR((VLOOKUP(zoogkoeien!$C23,'lijst voedermiddelen'!$B$2:$P$198,2,FALSE)/1000)*(((L$5*VLOOKUP(zoogkoeien!$C23,'lijst voedermiddelen'!$B$2:$P$198,3,FALSE))+(L$6*VLOOKUP(zoogkoeien!$C23,'lijst voedermiddelen'!$B$2:$P$198,5,FALSE)))/1000)*(1-VLOOKUP(zoogkoeien!$C23,'lijst voedermiddelen'!$B$2:$P$198,15,FALSE)/100)*10,"-") -> 0
C27: soort voedermiddel | D27: SW (/kg DS) | E27: Ca (g/kg DS) | F27: P (g/kg DS) | G27: Mg (g/kg DS) | H27: Na (g/kg DS) | I27: K (g/kg DS) | J27: VW (/kg DS)
B28: voedermiddel1 | C28: (voedermiddel) | D28: =VLOOKUP(zoogkoeien!$C28,'lijst voedermiddelen'!$B$2:$N$198,8,FALSE) -> 0 | E28: =VLOOKUP(zoogkoeien!$C28,'lijst voedermiddelen'!$B$2:$N$198,9,FALSE) -> 0 | F28: =VLOOKUP(zoogkoeien!$C28,'lijst voedermiddelen'!$B$2:$N$198,10,FALSE) -> 0 | G28: =VLOOKUP(zoogkoeien!$C28,'lijst voedermiddelen'!$B$2:$N$198,11,FALSE) -> 0 | H28: =VLOOKUP(zoogkoeien!$C28,'lijst voedermiddelen'!$B$2:$N$198,12,FALSE) -> 0 | I28: =VLOOKUP(zoogkoeien!$C28,'lijst voedermiddelen'!$B$2:$N$198,13,FALSE) -> 0 | J28: =VLOOKUP(zoogkoeien!$C28,'lijst voedermiddelen'!$B$2:$O$198,14,FALSE) -> 0
B29: voedermiddel2 | C29: (voedermiddel) | D29: =VLOOKUP(zoogkoeien!$C29,'lijst voedermiddelen'!$B$2:$N$198,8,FALSE) -> 0 | E29: =VLOOKUP(zoogkoeien!$C29,'lijst voedermiddelen'!$B$2:$N$198,9,FALSE) -> 0 | F29: =VLOOKUP(zoogkoeien!$C29,'lijst voedermiddelen'!$B$2:$N$198,10,FALSE) -> 0 | G29: =VLOOKUP(zoogkoeien!$C29,'lijst voedermiddelen'!$B$2:$N$198,11,FALSE) -> 0 | H29: =VLOOKUP(zoogkoeien!$C29,'lijst voedermiddelen'!$B$2:$N$198,12,FALSE) -> 0 | I29: =VLOOKUP(zoogkoeien!$C29,'lijst voedermiddelen'!$B$2:$N$198,13,FALSE) -> 0 | J29: =VLOOKUP(zoogkoeien!$C29,'lijst voedermiddelen'!$B$2:$O$198,14,FALSE) -> 0
B30: voedermiddel3 | C30: (voedermiddel) | D30: =VLOOKUP(zoogkoeien!$C30,'lijst voedermiddelen'!$B$2:$N$198,8,FALSE) -> 0 | E30: =VLOOKUP(zoogkoeien!$C30,'lijst voedermiddelen'!$B$2:$N$198,9,FALSE) -> 0 | F30: =VLOOKUP(zoogkoeien!$C30,'lijst voedermiddelen'!$B$2:$N$198,10,FALSE) -> 0 | G30: =VLOOKUP(zoogkoeien!$C30,'lijst voedermiddelen'!$B$2:$N$198,11,FALSE) -> 0 | H30: =VLOOKUP(zoogkoeien!$C30,'lijst voedermiddelen'!$B$2:$N$198,12,FALSE) -> 0 | I30: =VLOOKUP(zoogkoeien!$C30,'lijst voedermiddelen'!$B$2:$N$198,13,FALSE) -> 0 | J30: =VLOOKUP(zoogkoeien!$C30,'lijst voedermiddelen'!$B$2:$O$198,14,FALSE) -> 0
B31: voedermiddel4 | C31: (voedermiddel) | D31: =VLOOKUP(zoogkoeien!$C31,'lijst voedermiddelen'!$B$2:$N$198,8,FALSE) -> 0 | E31: =VLOOKUP(zoogkoeien!$C31,'lijst voedermiddelen'!$B$2:$N$198,9,FALSE) -> 0 | F31: =VLOOKUP(zoogkoeien!$C31,'lijst voedermiddelen'!$B$2:$N$198,10,FALSE) -> 0 | G31: =VLOOKUP(zoogkoeien!$C31,'lijst voedermiddelen'!$B$2:$N$198,11,FALSE) -> 0 | H31: =VLOOKUP(zoogkoeien!$C31,'lijst voedermiddelen'!$B$2:$N$198,12,FALSE) -> 0 | I31: =VLOOKUP(zoogkoeien!$C31,'lijst voedermiddelen'!$B$2:$N$198,13,FALSE) -> 0 | J31: =VLOOKUP(zoogkoeien!$C31,'lijst voedermiddelen'!$B$2:$O$198,14,FALSE) -> 0
B32: voedermiddel5 | C32: (voedermiddel) | D32: =VLOOKUP(zoogkoeien!$C32,'lijst voedermiddelen'!$B$2:$N$198,8,FALSE) -> 0 | E32: =VLOOKUP(zoogkoeien!$C32,'lijst voedermiddelen'!$B$2:$N$198,9,FALSE) -> 0 | F32: =VLOOKUP(zoogkoeien!$C32,'lijst voedermiddelen'!$B$2:$N$198,10,FALSE) -> 0 | G32: =VLOOKUP(zoogkoeien!$C32,'lijst voedermiddelen'!$B$2:$N$198,11,FALSE) -> 0 | H32: =VLOOKUP(zoogkoeien!$C32,'lijst voedermiddelen'!$B$2:$N$198,12,FALSE) -> 0 | I32: =VLOOKUP(zoogkoeien!$C32,'lijst voedermiddelen'!$B$2:$N$198,13,FALSE) -> 0 | J32: =VLOOKUP(zoogkoeien!$C32,'lijst voedermiddelen'!$B$2:$O$198,14,FALSE) -> 0
B33: voedermiddel6 | C33: (voedermiddel) | D33: =VLOOKUP(zoogkoeien!$C33,'lijst voedermiddelen'!$B$2:$N$198,8,FALSE) -> 0 | E33: =VLOOKUP(zoogkoeien!$C33,'lijst voedermiddelen'!$B$2:$N$198,9,FALSE) -> 0 | F33: =VLOOKUP(zoogkoeien!$C33,'lijst voedermiddelen'!$B$2:$N$198,10,FALSE) -> 0 | G33: =VLOOKUP(zoogkoeien!$C33,'lijst voedermiddelen'!$B$2:$N$198,11,FALSE) -> 0 | H33: =VLOOKUP(zoogkoeien!$C33,'lijst voedermiddelen'!$B$2:$N$198,12,FALSE) -> 0 | I33: =VLOOKUP(zoogkoeien!$C33,'lijst voedermiddelen'!$B$2:$N$198,13,FALSE) -> 0 | J33: =VLOOKUP(zoogkoeien!$C33,'lijst voedermiddelen'!$B$2:$O$198,14,FALSE) -> 0
B34: voedermiddel7 | C34: (voedermiddel) | D34: =VLOOKUP(zoogkoeien!$C34,'lijst voedermiddelen'!$B$2:$N$198,8,FALSE) -> 0 | E34: =VLOOKUP(zoogkoeien!$C34,'lijst voedermiddelen'!$B$2:$N$198,9,FALSE) -> 0 | F34: =VLOOKUP(zoogkoeien!$C34,'lijst voedermiddelen'!$B$2:$N$198,10,FALSE) -> 0 | G34: =VLOOKUP(zoogkoeien!$C34,'lijst voedermiddelen'!$B$2:$N$198,11,FALSE) -> 0 | H34: =VLOOKUP(zoogkoeien!$C34,'lijst voedermiddelen'!$B$2:$N$198,12,FALSE) -> 0 | I34: =VLOOKUP(zoogkoeien!$C34,'lijst voedermiddelen'!$B$2:$N$198,13,FALSE) -> 0 | J34: =VLOOKUP(zoogkoeien!$C34,'lijst voedermiddelen'!$B$2:$O$198,14,FALSE) -> 0
B35: voedermiddel8 | C35: (voedermiddel) | D35: =VLOOKUP(zoogkoeien!$C35,'lijst voedermiddelen'!$B$2:$N$198,8,FALSE) -> 0 | E35: =VLOOKUP(zoogkoeien!$C35,'lijst voedermiddelen'!$B$2:$N$198,9,FALSE) -> 0 | F35: =VLOOKUP(zoogkoeien!$C35,'lijst voedermiddelen'!$B$2:$N$198,10,FALSE) -> 0 | G35: =VLOOKUP(zoogkoeien!$C35,'lijst voedermiddelen'!$B$2:$N$198,11,FALSE) -> 0 | H35: =VLOOKUP(zoogkoeien!$C35,'lijst voedermiddelen'!$B$2:$N$198,12,FALSE) -> 0 | I35: =VLOOKUP(zoogkoeien!$C35,'lijst voedermiddelen'!$B$2:$N$198,13,FALSE) -> 0 | J35: =VLOOKUP(zoogkoeien!$C35,'lijst voedermiddelen'!$B$2:$O$198,14,FALSE) -> 0
B36: voedermiddel9 | C36: (voedermiddel) | D36: =VLOOKUP(zoogkoeien!$C36,'lijst voedermiddelen'!$B$2:$N$198,8,FALSE) -> 0 | E36: =VLOOKUP(zoogkoeien!$C36,'lijst voedermiddelen'!$B$2:$N$198,9,FALSE) -> 0 | F36: =VLOOKUP(zoogkoeien!$C36,'lijst voedermiddelen'!$B$2:$N$198,10,FALSE) -> 0 | G36: =VLOOKUP(zoogkoeien!$C36,'lijst voedermiddelen'!$B$2:$N$198,11,FALSE) -> 0 | H36: =VLOOKUP(zoogkoeien!$C36,'lijst voedermiddelen'!$B$2:$N$198,12,FALSE) -> 0 | I36: =VLOOKUP(zoogkoeien!$C36,'lijst voedermiddelen'!$B$2:$N$198,13,FALSE) -> 0 | J36: =VLOOKUP(zoogkoeien!$C36,'lijst voedermiddelen'!$B$2:$O$198,14,FALSE) -> 0
B37: voedermiddel10 | C37: (voedermiddel) | D37: =VLOOKUP(zoogkoeien!$C37,'lijst voedermiddelen'!$B$2:$N$198,8,FALSE) -> 0 | E37: =VLOOKUP(zoogkoeien!$C37,'lijst voedermiddelen'!$B$2:$N$198,9,FALSE) -> 0 | F37: =VLOOKUP(zoogkoeien!$C37,'lijst voedermiddelen'!$B$2:$N$198,10,FALSE) -> 0 | G37: =VLOOKUP(zoogkoeien!$C37,'lijst voedermiddelen'!$B$2:$N$198,11,FALSE) -> 0 | H37: =VLOOKUP(zoogkoeien!$C37,'lijst voedermiddelen'!$B$2:$N$198,12,FALSE) -> 0 | I37: =VLOOKUP(zoogkoeien!$C37,'lijst voedermiddelen'!$B$2:$N$198,13,FALSE) -> 0 | J37: =VLOOKUP(zoogkoeien!$C37,'lijst voedermiddelen'!$B$2:$O$198,14,FALSE) -> 0
B38: voedermiddel11 | C38: (voedermiddel) | D38: =VLOOKUP(zoogkoeien!$C38,'lijst voedermiddelen'!$B$2:$N$198,8,FALSE) -> 0 | E38: =VLOOKUP(zoogkoeien!$C38,'lijst voedermiddelen'!$B$2:$N$198,9,FALSE) -> 0 | F38: =VLOOKUP(zoogkoeien!$C38,'lijst voedermiddelen'!$B$2:$N$198,10,FALSE) -> 0 | G38: =VLOOKUP(zoogkoeien!$C38,'lijst voedermiddelen'!$B$2:$N$198,11,FALSE) -> 0 | H38: =VLOOKUP(zoogkoeien!$C38,'lijst voedermiddelen'!$B$2:$N$198,12,FALSE) -> 0 | I38: =VLOOKUP(zoogkoeien!$C38,'lijst voedermiddelen'!$B$2:$N$198,13,FALSE) -> 0 | J38: =VLOOKUP(zoogkoeien!$C38,'lijst voedermiddelen'!$B$2:$O$198,14,FALSE) -> 0
B39: voedermiddel12 | C39: (voedermiddel) | D39: =VLOOKUP(zoogkoeien!$C39,'lijst voedermiddelen'!$B$2:$N$198,8,FALSE) -> 0 | E39: =VLOOKUP(zoogkoeien!$C39,'lijst voedermiddelen'!$B$2:$N$198,9,FALSE) -> 0 | F39: =VLOOKUP(zoogkoeien!$C39,'lijst voedermiddelen'!$B$2:$N$198,10,FALSE) -> 0 | G39: =VLOOKUP(zoogkoeien!$C39,'lijst voedermiddelen'!$B$2:$N$198,11,FALSE) -> 0 | H39: =VLOOKUP(zoogkoeien!$C39,'lijst voedermiddelen'!$B$2:$N$198,12,FALSE) -> 0 | I39: =VLOOKUP(zoogkoeien!$C39,'lijst voedermiddelen'!$B$2:$N$198,13,FALSE) -> 0 | J39: =VLOOKUP(zoogkoeien!$C39,'lijst voedermiddelen'!$B$2:$O$198,14,FALSE) -> 0
B40: voedermiddel13 | C40: (voedermiddel) | D40: =VLOOKUP(zoogkoeien!$C40,'lijst voedermiddelen'!$B$2:$N$198,8,FALSE) -> 0 | E40: =VLOOKUP(zoogkoeien!$C40,'lijst voedermiddelen'!$B$2:$N$198,9,FALSE) -> 0 | F40: =VLOOKUP(zoogkoeien!$C40,'lijst voedermiddelen'!$B$2:$N$198,10,FALSE) -> 0 | G40: =VLOOKUP(zoogkoeien!$C40,'lijst voedermiddelen'!$B$2:$N$198,11,FALSE) -> 0 | H40: =VLOOKUP(zoogkoeien!$C40,'lijst voedermiddelen'!$B$2:$N$198,12,FALSE) -> 0 | I40: =VLOOKUP(zoogkoeien!$C40,'lijst voedermiddelen'!$B$2:$N$198,13,FALSE) -> 0 | J40: =VLOOKUP(zoogkoeien!$C40,'lijst voedermiddelen'!$B$2:$O$198,14,FALSE) -> 0
B41: voedermiddel14 | C41: (voedermiddel) | D41: =VLOOKUP(zoogkoeien!$C41,'lijst voedermiddelen'!$B$2:$N$198,8,FALSE) -> 0 | E41: =VLOOKUP(zoogkoeien!$C41,'lijst voedermiddelen'!$B$2:$N$198,9,FALSE) -> 0 | F41: =VLOOKUP(zoogkoeien!$C41,'lijst voedermiddelen'!$B$2:$N$198,10,FALSE) -> 0 | G41: =VLOOKUP(zoogkoeien!$C41,'lijst voedermiddelen'!$B$2:$N$198,11,FALSE) -> 0 | H41: =VLOOKUP(zoogkoeien!$C41,'lijst voedermiddelen'!$B$2:$N$198,12,FALSE) -> 0 | I41: =VLOOKUP(zoogkoeien!$C41,'lijst voedermiddelen'!$B$2:$N$198,13,FALSE) -> 0 | J41: =VLOOKUP(zoogkoeien!$C41,'lijst voedermiddelen'!$B$2:$O$198,14,FALSE) -> 0
B42: voedermiddel15 | C42: (voedermiddel) | D42: =VLOOKUP(zoogkoeien!$C42,'lijst voedermiddelen'!$B$2:$N$198,8,FALSE) -> 0 | E42: =VLOOKUP(zoogkoeien!$C42,'lijst voedermiddelen'!$B$2:$N$198,9,FALSE) -> 0 | F42: =VLOOKUP(zoogkoeien!$C42,'lijst voedermiddelen'!$B$2:$N$198,10,FALSE) -> 0 | G42: =VLOOKUP(zoogkoeien!$C42,'lijst voedermiddelen'!$B$2:$N$198,11,FALSE) -> 0 | H42: =VLOOKUP(zoogkoeien!$C42,'lijst voedermiddelen'!$B$2:$N$198,12,FALSE) -> 0 | I42: =VLOOKUP(zoogkoeien!$C42,'lijst voedermiddelen'!$B$2:$N$198,13,FALSE) -> 0 | J42: =VLOOKUP(zoogkoeien!$C42,'lijst voedermiddelen'!$B$2:$O$198,14,FALSE) -> 0
B46: rantsoen
C47: soort voedermiddel | D47: hoeveelheid (kg) | E47: kostprijs (€) | F47: voederwaarde-prijs (€)
B48: voedermiddel1 | C48: =C9 -> (voedermiddel) | D48: 0 | E48: =IF(AND(D48>0,K9=0),"-",D48*K9/1000) -> 0 | F48: =IF(AND(D48>0,L9="-"),"-",D48*L9/1000) -> 0
B49: voedermiddel2 | C49: =C10 -> (voedermiddel) | D49: 0 | E49: =IF(AND(D49>0,K10=0),"-",D49*K10/1000) -> 0 | F49: =IF(AND(D49>0,L10="-"),"-",D49*L10/1000) -> 0
B50: voedermiddel3 | C50: (voedermiddel) | D50: 0 | E50: 0 | F50: 0
B51: voedermiddel4 | C51: (voedermiddel) | D51: 0 | E51: 0 | F51: 0
B52: voedermiddel5 | C52: (voedermiddel) | D52: 0 | E52: 0 | F52: 0
B53: voedermiddel6 | C53: (voedermiddel) | D53: 0 | E53: 0 | F53: 0
B54: voedermiddel7 | C54: (voedermiddel) | D54: 0 | E54: 0 | F54: 0
B55: voedermiddel8 | C55: =C16 -> (voedermiddel) | D55: 0 | E55: 0 | F55: 0
B56: voedermiddel9 | C56: =C17 -> (voedermiddel) | D56: 0 | E56: 0 | F56: 0
B57: voedermiddel10 | C57: (voedermiddel) | D57: 0 | E57: 0 | F57: 0
B58: voedermiddel11 | C58: (voedermiddel) | D58: 0 | E58: 0 | F58: 0
B59: voedermiddel12 | C59: (voedermiddel) | D59: 0 | E59: 0 | F59: 0
B60: voedermiddel13 | C60: (voedermiddel) | D60: 0 | E60: 0 | F60: 0
B61: voedermiddel14 | C61: (voedermiddel) | D61: 0 | E61: 0 | F61: 0
B62: voedermiddel15 | C62: (voedermiddel) | D62: 0 | E62: 0 | F62: 0
B63: totaal | D63: =SUM(D48:D62) -> 0 | E63: =SUM(E48:E62) -> 0 | F63: =SUM(F48:F62) -> 0
B65: voederwaarde rantsoen
C66: hoeveelheid (kg VS) | D66: DS (kg DS) | E66: VEM | F66: DVE (g) | G66: OEB (g) | H66: RE (g) | I66: SW
C67: =D63 -> 0 | D67: =IF(COUNTIF($D$9:$D$23,"=-")<>0,"-",SUMPRODUCT($D$48:$D$62,$D$9:$D$23)/1000) -> 0 | E67: =IF(OR(COUNTIF($D$9:$D$23,"=-")<>0,COUNTIF(E9:E23,"=-")<>0),"-",SUMPRODUCT($D$48:$D$62,E9:E23,$D$9:$D$23)/1000) -> 0 | F67: =IF(OR(COUNTIF($D$9:$D$23,"=-")<>0,COUNTIF(G9:G23,"=-")<>0),"-",SUMPRODUCT($D$48:$D$62,G9:G23,$D$9:$D$23)/1000) -> 0 | G67: =IF(OR(COUNTIF($D$9:$D$23,"=-")<>0,COUNTIF(H9:H23,"=-")<>0),"-",SUMPRODUCT($D$48:$D$62,H9:H23,$D$9:$D$23)/1000) -> 0 | H67: =IF(OR(COUNTIF($D$9:$D$23,"=-")<>0,COUNTIF(I9:I23,"=-")<>0),"-",SUMPRODUCT($D$48:$D$62,I9:I23,$D$9:$D$23)/1000) -> 0 | I67: =IF(OR(COUNTIF($D$9:$D$23,"=-")<>0,COUNTIF(D28:D42,"=-")<>0),"-",SUMPRODUCT($D$48:$D$62,D28:D42,$D$9:$D$23)/1000) -> 0
D69: Ca (g) | E69: P (g) | F69: Mg (g) | G69: Na (g) | H69: K (g) | I69: VW
D70: =IF(OR(COUNTIF($D$9:$D$23,"=-")<>0,COUNTIF(E28:E42,"=-")<>0),"-",CEILING(SUMPRODUCT($D$48:$D$62,E28:E42,$D$9:$D$23)/1000,0.5)) -> 0 | E70: 0 | F70: 0 | G70: 0 | H70: 0 | I70: 0
B72: kenmerken
B73: kalving | D73: fysiologische toestand
B76: voederbehoeftenormen (per dier, per dag)
B77: Energie | C77: VEM | D77: =DGET('voederbehoeftenormen '!$B$2:$G$17,3,$B$73:$D$74) -> 
B78: Eiwit | C78: g DVE | D78: =DGET('voederbehoeftenormen '!B$2:$G$17,4,$B$73:$D$74) -> 
C79: g OEB* | D79: =IF(F67>D78,DGET('voederbehoeftenormen '!$B$2:$G$17,5,$B$73:$D$74),0) ->  | E79: =IF(F67>D78,(-(F67-D78)/0.65),0) -> 
B80: Mineralen | C80: g Ca | D80: =IF(D67>0,DGET('voederbehoeftenormen '!$B$2:$L$17,7,zoogkoeien!$B$73:$D$74),"afhankelijk van DS-opname") -> afhankelijk van DS-opname
C81: g P | D81: =IF(D67>0,DGET('voederbehoeftenormen '!$B$2:$L$17,8,zoogkoeien!$B$73:$D$74),"afhankelijk van DS-opname") -> afhankelijk van DS-opname
C82: g Mg | D82: =DGET('voederbehoeftenormen '!$B$2:$L$17,9,zoogkoeien!$B$73:$D$74) -> 
B83: Structuur | C83: SW | D83: =IF(D67>0,DGET('voederbehoeftenormen '!$B$2:$G$17,6,$B$73:$D$74),"afhankelijk van DS-opname") -> afhankelijk van DS-opname
B84: * er bestaat geen OEB-norm, wel een ondergrens
B87: hoeveelheid nodig om voederbehoeften te dekken | F87: kenmerken rantsoen
D88: kg DS | F88: DS-gehalte (%) | H88: =(D67/C67)*100 -> 
B89: op basis van | C89: VEM | D89: =CEILING(D77/(E67/D67),0.5) ->  | F89: RE-gehalte (%) | H89: =(H67/(D67*1000))*100 -> 
C90: DVE | D90: =CEILING(D78/(F67/D67),0.5) ->  | F90: Structuurwaarde (per kg DS) | H90: =I67/D67 -> 
F91: Verzadigingswaarde (per kg DS) | H91: =I70/D67 -> 
B93: opmerkingen
B94: energie (VEM): | C94: =IF(AND(D67>0,E67<D77),"Pas op! Rantsoen dekt energiebehoefte van dier niet"," ") -> 
B95: eiwit (DVE): | C95: =IF(AND(D67>0,F67<D78),"Pas op! Rantsoen dekt eiwitbehoefte van dier niet. Dit impliceert dat het dier geen OEB-tekort verdraagt."," ") -> 
B96: OEB: | C96: =IF(AND(G67>D79,G67>E79),"","Pas op! OEB-tekort: remming van de penswerking") -> 
C97: =IF(G67>50,"Er is een OEB-overmaat (d.w.z. N-uitscheiding in milieu), besparing op eiwit mogelijk!"," ") -> 
B98: structuur: | C98: =IF(I67<0.95*D83,"Pas op! Structuurtekort: gevaar voor pensverzuring"," ") -> 
B99: ruw eiwitgehalte: | C99: =IF(H89<11.9,"Ruw eiwitgehalte is laag: enkel probleem bij een groot OEB-tekort!"," ") -> 
B100: mineralen: | C100: =IF(D70<(D80*0.95),"Rantsoen dekt behoefte aan calcium niet: er is een tekort van "," " ) ->  | G100: =IF(D70<(D80*0.95),D80-D70," " ) ->  | H100: =IF(D70<(D80*0.95),"g per dier"," " ) -> 
C101: =IF(E70<(D81*0.95),"Rantsoen dekt behoefte aan fosfor niet: er is een tekort van"," ") ->  | G101: =IF(E70<(D81*0.95),D81-E70," " ) ->  | H101: =IF(E70<(D81*0.95),"g per dier"," " ) -> 
C102: =IF((D70/E70)<1.49,"Slechte Ca/P-verhouding: overmaat aan P = kans op vorming van nier- en blaasstenen"," ") -> 
B103: kostprijs: | C103: =IF(COUNTIF($E$48:$E$62,"=-")<>0,"De kostprijs van één of meerdere voedermiddelen ontbreken, de totale kostprijs van het rantsoen is niet volledig","") -> 
C104: =IF(COUNTIF($F$48:$F$62,"=-")<>0,"De voederwaardeprijs van één of meerdere voedermiddelen ontbreken, ga na of de bewaarverliezen van deze voedermiddelen zijn ingevuld","") -> 
C105: =IF(OR(C103<>"",C104<>""),"",IF(AND(E63>1.05*F63,F63>0),"De kostprijs van het rantsoen is hoger dan de voederwaardeprijs: ga na of een goedkoper voedermiddel kan ingeschakeld worden."," ")) -> 

Sheet stieren
B2: stieren
K4: energieprijs en eiwittoeslagprijs (in eurocenten)
B5: voedermiddelen | K5: per kVEVI | L5: 0
K6: per kg DVE-toeslag | L6: 0
K7: datum
C8: soort voedermiddel | D8: DS (g DS/kg VS) | E8: VEM (/kg DS) | F8: VEVI (/kg DS) | G8: DVE (g/kg DS) | H8: OEB (g/kg DS) | I8: RE (g/kg DS) | K8: kostprijs voeder-middel (€/ton VS) | L8: voederwaardeprijs (€/ton VS)
B9: voedermiddel1 | C9: (voedermiddel) | D9: =VLOOKUP(stieren!$C9,'lijst voedermiddelen'!$B$2:$N$198,2,FALSE) -> 0 | E9: =VLOOKUP(stieren!$C9,'lijst voedermiddelen'!$B$2:$N$198,3,FALSE) -> 0 | F9: =VLOOKUP(stieren!$C9,'lijst voedermiddelen'!$B$2:$N$198,4,FALSE) -> 0 | G9: =VLOOKUP(stieren!$C9,'lijst voedermiddelen'!$B$2:$N$198,5,FALSE) -> 0 | H9: =VLOOKUP(stieren!$C9,'lijst voedermiddelen'!$B$2:$N$198,6,FALSE) -> 0 | I9: =VLOOKUP(stieren!$C9,'lijst voedermiddelen'!$B$2:$N$198,7,FALSE) -> 0 | K9: 0 | L9: =IFERROR((VLOOKUP(stieren!C9,'lijst voedermiddelen'!$B$2:$P$198,2,FALSE)/1000)*(((L$5*VLOOKUP(stieren!C9,'lijst voedermiddelen'!$B$2:$P$198,4,FALSE))+(L$6*VLOOKUP(stieren!$C9,'lijst voedermiddelen'!$B$2:$P$198,5,FALSE)))/1000)*(1-VLOOKUP(stieren!$C9,'lijst voedermiddelen'!$B$2:$P$198,15,FALSE)/100)*10,"-") -> 0
B10: voedermiddel2 | C10: (voedermiddel) | D10: =VLOOKUP(stieren!$C10,'lijst voedermiddelen'!$B$2:$N$198,2,FALSE) -> 0 | E10: =VLOOKUP(stieren!$C10,'lijst voedermiddelen'!$B$2:$N$198,3,FALSE) -> 0 | F10: =VLOOKUP(stieren!$C10,'lijst voedermiddelen'!$B$2:$N$198,4,FALSE) -> 0 | G10: =VLOOKUP(stieren!$C10,'lijst voedermiddelen'!$B$2:$N$198,5,FALSE) -> 0 | H10: =VLOOKUP(stieren!$C10,'lijst voedermiddelen'!$B$2:$N$198,6,FALSE) -> 0 | I10: =VLOOKUP(stieren!$C10,'lijst voedermiddelen'!$B$2:$N$198,7,FALSE) -> 0 | K10: 0 | L10: =IFERROR((VLOOKUP(stieren!C10,'lijst voedermiddelen'!$B$2:$P$198,2,FALSE)/1000)*(((L$5*VLOOKUP(stieren!C10,'lijst voedermiddelen'!$B$2:$P$198,4,FALSE))+(L$6*VLOOKUP(stieren!$C10,'lijst voedermiddelen'!$B$2:$P$198,5,FALSE)))/1000)*(1-VLOOKUP(stieren!$C10,'lijst voedermiddelen'!$B$2:$P$198,15,FALSE)/100)*10,"-") -> 0
B11: voedermiddel3 | C11: (voedermiddel) | D11: =VLOOKUP(stieren!$C11,'lijst voedermiddelen'!$B$2:$N$198,2,FALSE) -> 0 | E11: =VLOOKUP(stieren!$C11,'lijst voedermiddelen'!$B$2:$N$198,3,FALSE) -> 0 | F11: =VLOOKUP(stieren!$C11,'lijst voedermiddelen'!$B$2:$N$198,4,FALSE) -> 0 | G11: =VLOOKUP(stieren!$C11,'lijst voedermiddelen'!$B$2:$N$198,5,FALSE) -> 0 | H11: =VLOOKUP(stieren!$C11,'lijst voedermiddelen'!$B$2:$N$198,6,FALSE) -> 0 | I11: =VLOOKUP(stieren!$C11,'lijst voedermiddelen'!$B$2:$N$198,7,FALSE) -> 0 | K11: 0 | L11: =IFERROR((VLOOKUP(stieren!C11,'lijst voedermiddelen'!$B$2:$P$198,2,FALSE)/1000)*(((L$5*VLOOKUP(stieren!C11,'lijst voedermiddelen'!$B$2:$P$198,4,FALSE))+(L$6*VLOOKUP(stieren!$C11,'lijst voedermiddelen'!$B$2:$P$198,5,FALSE)))/1000)*(1-VLOOKUP(stieren!$C11,'lijst voedermiddelen'!$B$2:$P$198,15,FALSE)/100)*10,"-") -> 0
B12: voedermiddel4 | C12: (voedermiddel) | D12: =VLOOKUP(stieren!$C12,'lijst voedermiddelen'!$B$2:$N$198,2,FALSE) -> 0 | E12: =VLOOKUP(stieren!$C12,'lijst voedermiddelen'!$B$2:$N$198,3,FALSE) -> 0 | F12: =VLOOKUP(stieren!$C12,'lijst voedermiddelen'!$B$2:$N$198,4,FALSE) -> 0 | G12: =VLOOKUP(stieren!$C12,'lijst voedermiddelen'!$B$2:$N$198,5,FALSE) -> 0 | H12: =VLOOKUP(stieren!$C12,'lijst voedermiddelen'!$B$2:$N$198,6,FALSE) -> 0 | I12: =VLOOKUP(stieren!$C12,'lijst voedermiddelen'!$B$2:$N$198,7,FALSE) -> 0 | K12: 0 | L12: =IFERROR((VLOOKUP(stieren!C12,'lijst voedermiddelen'!$B$2:$P$198,2,FALSE)/1000)*(((L$5*VLOOKUP(stieren!C12,'lijst voedermiddelen'!$B$2:$P$198,4,FALSE))+(L$6*VLOOKUP(stieren!$C12,'lijst voedermiddelen'!$B$2:$P$198,5,FALSE)))/1000)*(1-VLOOKUP(stieren!$C12,'lijst voedermiddelen'!$B$2:$P$198,15,FALSE)/100)*10,"-") -> 0
B13: voedermiddel5 | C13: (voedermiddel) | D13: =VLOOKUP(stieren!$C13,'lijst voedermiddelen'!$B$2:$N$198,2,FALSE) -> 0 | E13: =VLOOKUP(stieren!$C13,'lijst voedermiddelen'!$B$2:$N$198,3,FALSE) -> 0 | F13: =VLOOKUP(stieren!$C13,'lijst voedermiddelen'!$B$2:$N$198,4,FALSE) -> 0 | G13: =VLOOKUP(stieren!$C13,'lijst voedermiddelen'!$B$2:$N$198,5,FALSE) -> 0 | H13: =VLOOKUP(stieren!$C13,'lijst voedermiddelen'!$B$2:$N$198,6,FALSE) -> 0 | I13: =VLOOKUP(stieren!$C13,'lijst voedermiddelen'!$B$2:$N$198,7,FALSE) -> 0 | K13: 0 | L13: =IFERROR((VLOOKUP(stieren!C13,'lijst voedermiddelen'!$B$2:$P$198,2,FALSE)/1000)*(((L$5*VLOOKUP(stieren!C13,'lijst voedermiddelen'!$B$2:$P$198,4,FALSE))+(L$6*VLOOKUP(stieren!$C13,'lijst voedermiddelen'!$B$2:$P$198,5,FALSE)))/1000)*(1-VLOOKUP(stieren!$C13,'lijst voedermiddelen'!$B$2:$P$198,15,FALSE)/100)*10,"-") -> 0 | M13: =IF(L13>=0,"","vermoedelijk zijn de bewaarverliezen niet ingevuld") -> 
B14: voedermiddel6 | C14: (voedermiddel) | D14: =VLOOKUP(stieren!$C14,'lijst voedermiddelen'!$B$2:$N$198,2,FALSE) -> 0 | E14: =VLOOKUP(stieren!$C14,'lijst voedermiddelen'!$B$2:$N$198,3,FALSE) -> 0 | F14: =VLOOKUP(stieren!$C14,'lijst voedermiddelen'!$B$2:$N$198,4,FALSE) -> 0 | G14: =VLOOKUP(stieren!$C14,'lijst voedermiddelen'!$B$2:$N$198,5,FALSE) -> 0 | H14: =VLOOKUP(stieren!$C14,'lijst voedermiddelen'!$B$2:$N$198,6,FALSE) -> 0 | I14: =VLOOKUP(stieren!$C14,'lijst voedermiddelen'!$B$2:$N$198,7,FALSE) -> 0 | K14: 0 | L14: =IFERROR((VLOOKUP(stieren!C14,'lijst voedermiddelen'!$B$2:$P$198,2,FALSE)/1000)*(((L$5*VLOOKUP(stieren!C14,'lijst voedermiddelen'!$B$2:$P$198,4,FALSE))+(L$6*VLOOKUP(stieren!$C14,'lijst voedermiddelen'!$B$2:$P$198,5,FALSE)))/1000)*(1-VLOOKUP(stieren!$C14,'lijst voedermiddelen'!$B$2:$P$198,15,FALSE)/100)*10,"-") -> 0
B15: voedermiddel7 | C15: (voedermiddel) | D15: =VLOOKUP(stieren!$C15,'lijst voedermiddelen'!$B$2:$N$198,2,FALSE) -> 0 | E15: =VLOOKUP(stieren!$C15,'lijst voedermiddelen'!$B$2:$N$198,3,FALSE) -> 0 | F15: =VLOOKUP(stieren!$C15,'lijst voedermiddelen'!$B$2:$N$198,4,FALSE) -> 0 | G15: =VLOOKUP(stieren!$C15,'lijst voedermiddelen'!$B$2:$N$198,5,FALSE) -> 0 | H15: =VLOOKUP(stieren!$C15,'lijst voedermiddelen'!$B$2:$N$198,6,FALSE) -> 0 | I15: =VLOOKUP(stieren!$C15,'lijst voedermiddelen'!$B$2:$N$198,7,FALSE) -> 0 | K15: 0 | L15: =IFERROR((VLOOKUP(stieren!C15,'lijst voedermiddelen'!$B$2:$P$198,2,FALSE)/1000)*(((L$5*VLOOKUP(stieren!C15,'lijst voedermiddelen'!$B$2:$P$198,4,FALSE))+(L$6*VLOOKUP(stieren!$C15,'lijst voedermiddelen'!$B$2:$P$198,5,FALSE)))/1000)*(1-VLOOKUP(stieren!$C15,'lijst voedermiddelen'!$B$2:$P$198,15,FALSE)/100)*10,"-") -> 0
B16: voedermiddel8 | C16: (voedermiddel) | D16: =VLOOKUP(stieren!$C16,'lijst voedermiddelen'!$B$2:$N$198,2,FALSE) -> 0 | E16: =VLOOKUP(stieren!$C16,'lijst voedermiddelen'!$B$2:$N$198,3,FALSE) -> 0 | F16: =VLOOKUP(stieren!$C16,'lijst voedermiddelen'!$B$2:$N$198,4,FALSE) -> 0 | G16: =VLOOKUP(stieren!$C16,'lijst voedermiddelen'!$B$2:$N$198,5,FALSE) -> 0 | H16: =VLOOKUP(stieren!$C16,'lijst voedermiddelen'!$B$2:$N$198,6,FALSE) -> 0 | I16: =VLOOKUP(stieren!$C16,'lijst voedermiddelen'!$B$2:$N$198,7,FALSE) -> 0 | K16: 0 | L16: =IFERROR((VLOOKUP(stieren!C16,'lijst voedermiddelen'!$B$2:$P$198,2,FALSE)/1000)*(((L$5*VLOOKUP(stieren!C16,'lijst voedermiddelen'!$B$2:$P$198,4,FALSE))+(L$6*VLOOKUP(stieren!$C16,'lijst voedermiddelen'!$B$2:$P$198,5,FALSE)))/1000)*(1-VLOOKUP(stieren!$C16,'lijst voedermiddelen'!$B$2:$P$198,15,FALSE)/100)*10,"-") -> 0
B17: voedermiddel9 | C17: (voedermiddel) | D17: =VLOOKUP(stieren!$C17,'lijst voedermiddelen'!$B$2:$N$198,2,FALSE) -> 0 | E17: =VLOOKUP(stieren!$C17,'lijst voedermiddelen'!$B$2:$N$198,3,FALSE) -> 0 | F17: =VLOOKUP(stieren!$C17,'lijst voedermiddelen'!$B$2:$N$198,4,FALSE) -> 0 | G17: =VLOOKUP(stieren!$C17,'lijst voedermiddelen'!$B$2:$N$198,5,FALSE) -> 0 | H17: =VLOOKUP(stieren!$C17,'lijst voedermiddelen'!$B$2:$N$198,6,FALSE) -> 0 | I17: =VLOOKUP(stieren!$C17,'lijst voedermiddelen'!$B$2:$N$198,7,FALSE) -> 0 | K17: 0 | L17: =IFERROR((VLOOKUP(stieren!C17,'lijst voedermiddelen'!$B$2:$P$198,2,FALSE)/1000)*(((L$5*VLOOKUP(stieren!C17,'lijst voedermiddelen'!$B$2:$P$198,4,FALSE))+(L$6*VLOOKUP(stieren!$C17,'lijst voedermiddelen'!$B$2:$P$198,5,FALSE)))/1000)*(1-VLOOKUP(stieren!$C17,'lijst voedermiddelen'!$B$2:$P$198,15,FALSE)/100)*10,"-") -> 0
B18: voedermiddel10 | C18: (voedermiddel) | D18: =VLOOKUP(stieren!$C18,'lijst voedermiddelen'!$B$2:$N$198,2,FALSE) -> 0 | E18: =VLOOKUP(stieren!$C18,'lijst voedermiddelen'!$B$2:$N$198,3,FALSE) -> 0 | F18: =VLOOKUP(stieren!$C18,'lijst voedermiddelen'!$B$2:$N$198,4,FALSE) -> 0 | G18: =VLOOKUP(stieren!$C18,'lijst voedermiddelen'!$B$2:$N$198,5,FALSE) -> 0 | H18: =VLOOKUP(stieren!$C18,'lijst voedermiddelen'!$B$2:$N$198,6,FALSE) -> 0 | I18: =VLOOKUP(stieren!$C18,'lijst voedermiddelen'!$B$2:$N$198,7,FALSE) -> 0 | K18: 0 | L18: =IFERROR((VLOOKUP(stieren!C18,'lijst voedermiddelen'!$B$2:$P$198,2,FALSE)/1000)*(((L$5*VLOOKUP(stieren!C18,'lijst voedermiddelen'!$B$2:$P$198,4,FALSE))+(L$6*VLOOKUP(stieren!$C18,'lijst voedermiddelen'!$B$2:$P$198,5,FALSE)))/1000)*(1-VLOOKUP(stieren!$C18,'lijst voedermiddelen'!$B$2:$P$198,15,FALSE)/100)*10,"-") -> 0
B19: voedermiddel11 | C19: (voedermiddel) | D19: =VLOOKUP(stieren!$C19,'lijst voedermiddelen'!$B$2:$N$198,2,FALSE) -> 0 | E19: =VLOOKUP(stieren!$C19,'lijst voedermiddelen'!$B$2:$N$198,3,FALSE) -> 0 | F19: =VLOOKUP(stieren!$C19,'lijst voedermiddelen'!$B$2:$N$198,4,FALSE) -> 0 | G19: =VLOOKUP(stieren!$C19,'lijst voedermiddelen'!$B$2:$N$198,5,FALSE) -> 0 | H19: =VLOOKUP(stieren!$C19,'lijst voedermiddelen'!$B$2:$N$198,6,FALSE) -> 0 | I19: =VLOOKUP(stieren!$C19,'lijst voedermiddelen'!$B$2:$N$198,7,FALSE) -> 0 | K19: 0 | L19: =IFERROR((VLOOKUP(stieren!C19,'lijst voedermiddelen'!$B$2:$P$198,2,FALSE)/1000)*(((L$5*VLOOKUP(stieren!C19,'lijst voedermiddelen'!$B$2:$P$198,4,FALSE))+(L$6*VLOOKUP(stieren!$C19,'lijst voedermiddelen'!$B$2:$P$198,5,FALSE)))/1000)*(1-VLOOKUP(stieren!$C19,'lijst voedermiddelen'!$B$2:$P$198,15,FALSE)/100)*10,"-") -> 0
B20: voedermiddel12 | C20: (voedermiddel) | D20: =VLOOKUP(stieren!$C20,'lijst voedermiddelen'!$B$2:$N$198,2,FALSE) -> 0 | E20: =VLOOKUP(stieren!$C20,'lijst voedermiddelen'!$B$2:$N$198,3,FALSE) -> 0 | F20: =VLOOKUP(stieren!$C20,'lijst voedermiddelen'!$B$2:$N$198,4,FALSE) -> 0 | G20: =VLOOKUP(stieren!$C20,'lijst voedermiddelen'!$B$2:$N$198,5,FALSE) -> 0 | H20: =VLOOKUP(stieren!$C20,'lijst voedermiddelen'!$B$2:$N$198,6,FALSE) -> 0 | I20: =VLOOKUP(stieren!$C20,'lijst voedermiddelen'!$B$2:$N$198,7,FALSE) -> 0 | K20: 0 | L20: =IFERROR((VLOOKUP(stieren!C20,'lijst voedermiddelen'!$B$2:$P$198,2,FALSE)/1000)*(((L$5*VLOOKUP(stieren!C20,'lijst voedermiddelen'!$B$2:$P$198,4,FALSE))+(L$6*VLOOKUP(stieren!$C20,'lijst voedermiddelen'!$B$2:$P$198,5,FALSE)))/1000)*(1-VLOOKUP(stieren!$C20,'lijst voedermiddelen'!$B$2:$P$198,15,FALSE)/100)*10,"-") -> 0
B21: voedermiddel13 | C21: (voedermiddel) | D21: =VLOOKUP(stieren!$C21,'lijst voedermiddelen'!$B$2:$N$198,2,FALSE) -> 0 | E21: =VLOOKUP(stieren!$C21,'lijst voedermiddelen'!$B$2:$N$198,3,FALSE) -> 0 | F21: =VLOOKUP(stieren!$C21,'lijst voedermiddelen'!$B$2:$N$198,4,FALSE) -> 0 | G21: =VLOOKUP(stieren!$C21,'lijst voedermiddelen'!$B$2:$N$198,5,FALSE) -> 0 | H21: =VLOOKUP(stieren!$C21,'lijst voedermiddelen'!$B$2:$N$198,6,FALSE) -> 0 | I21: =VLOOKUP(stieren!$C21,'lijst voedermiddelen'!$B$2:$N$198,7,FALSE) -> 0 | K21: 0 | L21: =IFERROR((VLOOKUP(stieren!C21,'lijst voedermiddelen'!$B$2:$P$198,2,FALSE)/1000)*(((L$5*VLOOKUP(stieren!C21,'lijst voedermiddelen'!$B$2:$P$198,4,FALSE))+(L$6*VLOOKUP(stieren!$C21,'lijst voedermiddelen'!$B$2:$P$198,5,FALSE)))/1000)*(1-VLOOKUP(stieren!$C21,'lijst voedermiddelen'!$B$2:$P$198,15,FALSE)/100)*10,"-") -> 0
B22: voedermiddel14 | C22: (voedermiddel) | D22: =VLOOKUP(stieren!$C22,'lijst voedermiddelen'!$B$2:$N$198,2,FALSE) -> 0 | E22: =VLOOKUP(stieren!$C22,'lijst voedermiddelen'!$B$2:$N$198,3,FALSE) -> 0 | F22: =VLOOKUP(stieren!$C22,'lijst voedermiddelen'!$B$2:$N$198,4,FALSE) -> 0 | G22: =VLOOKUP(stieren!$C22,'lijst voedermiddelen'!$B$2:$N$198,5,FALSE) -> 0 | H22: =VLOOKUP(stieren!$C22,'lijst voedermiddelen'!$B$2:$N$198,6,FALSE) -> 0 | I22: =VLOOKUP(stieren!$C22,'lijst voedermiddelen'!$B$2:$N$198,7,FALSE) -> 0 | K22: 0 | L22: =IFERROR((VLOOKUP(stieren!C22,'lijst voedermiddelen'!$B$2:$P$198,2,FALSE)/1000)*(((L$5*VLOOKUP(stieren!C22,'lijst voedermiddelen'!$B$2:$P$198,4,FALSE))+(L$6*VLOOKUP(stieren!$C22,'lijst voedermiddelen'!$B$2:$P$198,5,FALSE)))/1000)*(1-VLOOKUP(stieren!$C22,'lijst voedermiddelen'!$B$2:$P$198,15,FALSE)/100)*10,"-") -> 0
B23: voedermiddel15 | C23: (voedermiddel) | D23: =VLOOKUP(stieren!$C23,'lijst voedermiddelen'!$B$2:$N$198,2,FALSE) -> 0 | E23: =VLOOKUP(stieren!$C23,'lijst voedermiddelen'!$B$2:$N$198,3,FALSE) -> 0 | F23: =VLOOKUP(stieren!$C23,'lijst voedermiddelen'!$B$2:$N$198,4,FALSE) -> 0 | G23: =VLOOKUP(stieren!$C23,'lijst voedermiddelen'!$B$2:$N$198,5,FALSE) -> 0 | H23: =VLOOKUP(stieren!$C23,'lijst voedermiddelen'!$B$2:$N$198,6,FALSE) -> 0 | I23: =VLOOKUP(stieren!$C23,'lijst voedermiddelen'!$B$2:$N$198,7,FALSE) -> 0 | K23: 0 | L23: =IFERROR((VLOOKUP(stieren!C23,'lijst voedermiddelen'!$B$2:$P$198,2,FALSE)/1000)*(((L$5*VLOOKUP(stieren!C23,'lijst voedermiddelen'!$B$2:$P$198,4,FALSE))+(L$6*VLOOKUP(stieren!$C23,'lijst voedermiddelen'!$B$2:$P$198,5,FALSE)))/1000)*(1-VLOOKUP(stieren!$C23,'lijst voedermiddelen'!$B$2:$P$198,15,FALSE)/100)*10,"-") -> 0
C27: soort voedermiddel | D27: SW (/kg DS) | E27: Ca (g/kg DS) | F27: P (g/kg DS) | G27: Mg (g/kg DS) | H27: Na (g/kg DS) | I27: K (g/kg DS) | J27: VW (/kg DS)
B28: voedermiddel1 | C28: (voedermiddel) | D28: =VLOOKUP(stieren!$C28,'lijst voedermiddelen'!$B$2:$N$198,8,FALSE) -> 0 | E28: =VLOOKUP(stieren!$C28,'lijst voedermiddelen'!$B$2:$N$198,9,FALSE) -> 0 | F28: =VLOOKUP(stieren!$C28,'lijst voedermiddelen'!$B$2:$N$198,10,FALSE) -> 0 | G28: =VLOOKUP(stieren!$C28,'lijst voedermiddelen'!$B$2:$N$198,11,FALSE) -> 0 | H28: =VLOOKUP(stieren!$C28,'lijst voedermiddelen'!$B$2:$N$198,12,FALSE) -> 0 | I28: =VLOOKUP(stieren!$C28,'lijst voedermiddelen'!$B$2:$N$198,13,FALSE) -> 0 | J28: =VLOOKUP(stieren!$C28,'lijst voedermiddelen'!$B$2:$O$198,14,FALSE) -> 0
B29: voedermiddel2 | C29: (voedermiddel) | D29: =VLOOKUP(stieren!$C29,'lijst voedermiddelen'!$B$2:$N$198,8,FALSE) -> 0 | E29: =VLOOKUP(stieren!$C29,'lijst voedermiddelen'!$B$2:$N$198,9,FALSE) -> 0 | F29: =VLOOKUP(stieren!$C29,'lijst voedermiddelen'!$B$2:$N$198,10,FALSE) -> 0 | G29: =VLOOKUP(stieren!$C29,'lijst voedermiddelen'!$B$2:$N$198,11,FALSE) -> 0 | H29: =VLOOKUP(stieren!$C29,'lijst voedermiddelen'!$B$2:$N$198,12,FALSE) -> 0 | I29: =VLOOKUP(stieren!$C29,'lijst voedermiddelen'!$B$2:$N$198,13,FALSE) -> 0 | J29: =VLOOKUP(stieren!$C29,'lijst voedermiddelen'!$B$2:$O$198,14,FALSE) -> 0
B30: voedermiddel3 | C30: (voedermiddel) | D30: =VLOOKUP(stieren!$C30,'lijst voedermiddelen'!$B$2:$N$198,8,FALSE) -> 0 | E30: =VLOOKUP(stieren!$C30,'lijst voedermiddelen'!$B$2:$N$198,9,FALSE) -> 0 | F30: =VLOOKUP(stieren!$C30,'lijst voedermiddelen'!$B$2:$N$198,10,FALSE) -> 0 | G30: =VLOOKUP(stieren!$C30,'lijst voedermiddelen'!$B$2:$N$198,11,FALSE) -> 0 | H30: =VLOOKUP(stieren!$C30,'lijst voedermiddelen'!$B$2:$N$198,12,FALSE) -> 0 | I30: =VLOOKUP(stieren!$C30,'lijst voedermiddelen'!$B$2:$N$198,13,FALSE) -> 0 | J30: =VLOOKUP(stieren!$C30,'lijst voedermiddelen'!$B$2:$O$198,14,FALSE) -> 0
B31: voedermiddel4 | C31: (voedermiddel) | D31: =VLOOKUP(stieren!$C31,'lijst voedermiddelen'!$B$2:$N$198,8,FALSE) -> 0 | E31: =VLOOKUP(stieren!$C31,'lijst voedermiddelen'!$B$2:$N$198,9,FALSE) -> 0 | F31: =VLOOKUP(stieren!$C31,'lijst voedermiddelen'!$B$2:$N$198,10,FALSE) -> 0 | G31: =VLOOKUP(stieren!$C31,'lijst voedermiddelen'!$B$2:$N$198,11,FALSE) -> 0 | H31: =VLOOKUP(stieren!$C31,'lijst voedermiddelen'!$B$2:$N$198,12,FALSE) -> 0 | I31: =VLOOKUP(stieren!$C31,'lijst voedermiddelen'!$B$2:$N$198,13,FALSE) -> 0 | J31: =VLOOKUP(stieren!$C31,'lijst voedermiddelen'!$B$2:$O$198,14,FALSE) -> 0
B32: voedermiddel5 | C32: (voedermiddel) | D32: =VLOOKUP(stieren!$C32,'lijst voedermiddelen'!$B$2:$N$198,8,FALSE) -> 0 | E32: =VLOOKUP(stieren!$C32,'lijst voedermiddelen'!$B$2:$N$198,9,FALSE) -> 0 | F32: =VLOOKUP(stieren!$C32,'lijst voedermiddelen'!$B$2:$N$198,10,FALSE) -> 0 | G32: =VLOOKUP(stieren!$C32,'lijst voedermiddelen'!$B$2:$N$198,11,FALSE) -> 0 | H32: =VLOOKUP(stieren!$C32,'lijst voedermiddelen'!$B$2:$N$198,12,FALSE) -> 0 | I32: =VLOOKUP(stieren!$C32,'lijst voedermiddelen'!$B$2:$N$198,13,FALSE) -> 0 | J32: =VLOOKUP(stieren!$C32,'lijst voedermiddelen'!$B$2:$O$198,14,FALSE) -> 0
B33: voedermiddel6 | C33: (voedermiddel) | D33: =VLOOKUP(stieren!$C33,'lijst voedermiddelen'!$B$2:$N$198,8,FALSE) -> 0 | E33: =VLOOKUP(stieren!$C33,'lijst voedermiddelen'!$B$2:$N$198,9,FALSE) -> 0 | F33: =VLOOKUP(stieren!$C33,'lijst voedermiddelen'!$B$2:$N$198,10,FALSE) -> 0 | G33: =VLOOKUP(stieren!$C33,'lijst voedermiddelen'!$B$2:$N$198,11,FALSE) -> 0 | H33: =VLOOKUP(stieren!$C33,'lijst voedermiddelen'!$B$2:$N$198,12,FALSE) -> 0 | I33: =VLOOKUP(stieren!$C33,'lijst voedermiddelen'!$B$2:$N$198,13,FALSE) -> 0 | J33: =VLOOKUP(stieren!$C33,'lijst voedermiddelen'!$B$2:$O$198,14,FALSE) -> 0
B34: voedermiddel7 | C34: (voedermiddel) | D34: =VLOOKUP(stieren!$C34,'lijst voedermiddelen'!$B$2:$N$198,8,FALSE) -> 0 | E34: =VLOOKUP(stieren!$C34,'lijst voedermiddelen'!$B$2:$N$198,9,FALSE) -> 0 | F34: =VLOOKUP(stieren!$C34,'lijst voedermiddelen'!$B$2:$N$198,10,FALSE) -> 0 | G34: =VLOOKUP(stieren!$C34,'lijst voedermiddelen'!$B$2:$N$198,11,FALSE) -> 0 | H34: =VLOOKUP(stieren!$C34,'lijst voedermiddelen'!$B$2:$N$198,12,FALSE) -> 0 | I34: =VLOOKUP(stieren!$C34,'lijst voedermiddelen'!$B$2:$N$198,13,FALSE) -> 0 | J34: =VLOOKUP(stieren!$C34,'lijst voedermiddelen'!$B$2:$O$198,14,FALSE) -> 0
B35: voedermiddel8 | C35: (voedermiddel) | D35: =VLOOKUP(stieren!$C35,'lijst voedermiddelen'!$B$2:$N$198,8,FALSE) -> 0 | E35: =VLOOKUP(stieren!$C35,'lijst voedermiddelen'!$B$2:$N$198,9,FALSE) -> 0 | F35: =VLOOKUP(stieren!$C35,'lijst voedermiddelen'!$B$2:$N$198,10,FALSE) -> 0 | G35: =VLOOKUP(stieren!$C35,'lijst voedermiddelen'!$B$2:$N$198,11,FALSE) -> 0 | H35: =VLOOKUP(stieren!$C35,'lijst voedermiddelen'!$B$2:$N$198,12,FALSE) -> 0 | I35: =VLOOKUP(stieren!$C35,'lijst voedermiddelen'!$B$2:$N$198,13,FALSE) -> 0 | J35: =VLOOKUP(stieren!$C35,'lijst voedermiddelen'!$B$2:$O$198,14,FALSE) -> 0
B36: voedermiddel9 | C36: (voedermiddel) | D36: =VLOOKUP(stieren!$C36,'lijst voedermiddelen'!$B$2:$N$198,8,FALSE) -> 0 | E36: =VLOOKUP(stieren!$C36,'lijst voedermiddelen'!$B$2:$N$198,9,FALSE) -> 0 | F36: =VLOOKUP(stieren!$C36,'lijst voedermiddelen'!$B$2:$N$198,10,FALSE) -> 0 | G36: =VLOOKUP(stieren!$C36,'lijst voedermiddelen'!$B$2:$N$198,11,FALSE) -> 0 | H36: =VLOOKUP(stieren!$C36,'lijst voedermiddelen'!$B$2:$N$198,12,FALSE) -> 0 | I36: =VLOOKUP(stieren!$C36,'lijst voedermiddelen'!$B$2:$N$198,13,FALSE) -> 0 | J36: =VLOOKUP(stieren!$C36,'lijst voedermiddelen'!$B$2:$O$198,14,FALSE) -> 0
B37: voedermiddel10 | C37: (voedermiddel) | D37: =VLOOKUP(stieren!$C37,'lijst voedermiddelen'!$B$2:$N$198,8,FALSE) -> 0 | E37: =VLOOKUP(stieren!$C37,'lijst voedermiddelen'!$B$2:$N$198,9,FALSE) -> 0 | F37: =VLOOKUP(stieren!$C37,'lijst voedermiddelen'!$B$2:$N$198,10,FALSE) -> 0 | G37: =VLOOKUP(stieren!$C37,'lijst voedermiddelen'!$B$2:$N$198,11,FALSE) -> 0 | H37: =VLOOKUP(stieren!$C37,'lijst voedermiddelen'!$B$2:$N$198,12,FALSE) -> 0 | I37: =VLOOKUP(stieren!$C37,'lijst voedermiddelen'!$B$2:$N$198,13,FALSE) -> 0 | J37: =VLOOKUP(stieren!$C37,'lijst voedermiddelen'!$B$2:$O$198,14,FALSE) -> 0
B38: voedermiddel11 | C38: (voedermiddel) | D38: =VLOOKUP(stieren!$C38,'lijst voedermiddelen'!$B$2:$N$198,8,FALSE) -> 0 | E38: =VLOOKUP(stieren!$C38,'lijst voedermiddelen'!$B$2:$N$198,9,FALSE) -> 0 | F38: =VLOOKUP(stieren!$C38,'lijst voedermiddelen'!$B$2:$N$198,10,FALSE) -> 0 | G38: =VLOOKUP(stieren!$C38,'lijst voedermiddelen'!$B$2:$N$198,11,FALSE) -> 0 | H38: =VLOOKUP(stieren!$C38,'lijst voedermiddelen'!$B$2:$N$198,12,FALSE) -> 0 | I38: =VLOOKUP(stieren!$C38,'lijst voedermiddelen'!$B$2:$N$198,13,FALSE) -> 0 | J38: =VLOOKUP(stieren!$C38,'lijst voedermiddelen'!$B$2:$O$198,14,FALSE) -> 0
B39: voedermiddel12 | C39: (voedermiddel) | D39: =VLOOKUP(stieren!$C39,'lijst voedermiddelen'!$B$2:$N$198,8,FALSE) -> 0 | E39: =VLOOKUP(stieren!$C39,'lijst voedermiddelen'!$B$2:$N$198,9,FALSE) -> 0 | F39: =VLOOKUP(stieren!$C39,'lijst voedermiddelen'!$B$2:$N$198,10,FALSE) -> 0 | G39: =VLOOKUP(stieren!$C39,'lijst voedermiddelen'!$B$2:$N$198,11,FALSE) -> 0 | H39: =VLOOKUP(stieren!$C39,'lijst voedermiddelen'!$B$2:$N$198,12,FALSE) -> 0 | I39: =VLOOKUP(stieren!$C39,'lijst voedermiddelen'!$B$2:$N$198,13,FALSE) -> 0 | J39: =VLOOKUP(stieren!$C39,'lijst voedermiddelen'!$B$2:$O$198,14,FALSE) -> 0
B40: voedermiddel13 | C40: (voedermiddel) | D40: =VLOOKUP(stieren!$C40,'lijst voedermiddelen'!$B$2:$N$198,8,FALSE) -> 0 | E40: =VLOOKUP(stieren!$C40,'lijst voedermiddelen'!$B$2:$N$198,9,FALSE) -> 0 | F40: =VLOOKUP(stieren!$C40,'lijst voedermiddelen'!$B$2:$N$198,10,FALSE) -> 0 | G40: =VLOOKUP(stieren!$C40,'lijst voedermiddelen'!$B$2:$N$198,11,FALSE) -> 0 | H40: =VLOOKUP(stieren!$C40,'lijst voedermiddelen'!$B$2:$N$198,12,FALSE) -> 0 | I40: =VLOOKUP(stieren!$C40,'lijst voedermiddelen'!$B$2:$N$198,13,FALSE) -> 0 | J40: =VLOOKUP(stieren!$C40,'lijst voedermiddelen'!$B$2:$O$198,14,FALSE) -> 0
B41: voedermiddel14 | C41: (voedermiddel) | D41: =VLOOKUP(stieren!$C41,'lijst voedermiddelen'!$B$2:$N$198,8,FALSE) -> 0 | E41: =VLOOKUP(stieren!$C41,'lijst voedermiddelen'!$B$2:$N$198,9,FALSE) -> 0 | F41: =VLOOKUP(stieren!$C41,'lijst voedermiddelen'!$B$2:$N$198,10,FALSE) -> 0 | G41: =VLOOKUP(stieren!$C41,'lijst voedermiddelen'!$B$2:$N$198,11,FALSE) -> 0 | H41: =VLOOKUP(stieren!$C41,'lijst voedermiddelen'!$B$2:$N$198,12,FALSE) -> 0 | I41: =VLOOKUP(stieren!$C41,'lijst voedermiddelen'!$B$2:$N$198,13,FALSE) -> 0 | J41: =VLOOKUP(stieren!$C41,'lijst voedermiddelen'!$B$2:$O$198,14,FALSE) -> 0
B42: voedermiddel15 | C42: (voedermiddel) | D42: =VLOOKUP(stieren!$C42,'lijst voedermiddelen'!$B$2:$N$198,8,FALSE) -> 0 | E42: =VLOOKUP(stieren!$C42,'lijst voedermiddelen'!$B$2:$N$198,9,FALSE) -> 0 | F42: =VLOOKUP(stieren!$C42,'lijst voedermiddelen'!$B$2:$N$198,10,FALSE) -> 0 | G42: =VLOOKUP(stieren!$C42,'lijst voedermiddelen'!$B$2:$N$198,11,FALSE) -> 0 | H42: =VLOOKUP(stieren!$C42,'lijst voedermiddelen'!$B$2:$N$198,12,FALSE) -> 0 | I42: =VLOOKUP(stieren!$C42,'lijst voedermiddelen'!$B$2:$N$198,13,FALSE) -> 0 | J42: =VLOOKUP(stieren!$C42,'lijst voedermiddelen'!$B$2:$O$198,14,FALSE) -> 0
B46: rantsoen
C47: soort voedermiddel | D47: hoeveelheid verse stof (kg) | E47: kostprijs (€) | F47: voederwaarde-prijs (€)
B48: voedermiddel1 | C48: =C9 -> (voedermiddel) | D48: 0 | E48: =IF(AND(D48>0,K9=0),"-",D48*K9/1000) -> 0 | F48: =IF(AND(D48>0,L9="-"),"-",D48*L9/1000) -> 0
B49: voedermiddel2 | C49: =C10 -> (voedermiddel) | D49: 0 | E49: =IF(AND(D49>0,K10=0),"-",D49*K10/1000) -> 0 | F49: =IF(AND(D49>0,L10="-"),"-",D49*L10/1000) -> 0
B50: voedermiddel3 | C50: (voedermiddel) | D50: 0 | E50: 0 | F50: 0
B51: voedermiddel4 | C51: (voedermiddel) | D51: 0 | E51: 0 | F51: 0
B52: voedermiddel5 | C52: (voedermiddel) | D52: 0 | E52: 0 | F52: 0
B53: voedermiddel6 | C53: (voedermiddel) | D53: 0 | E53: 0 | F53: 0
B54: voedermiddel7 | C54: (voedermiddel) | D54: 0 | E54: 0 | F54: 0
B55: voedermiddel8 | C55: (voedermiddel) | D55: 0 | E55: 0 | F55: 0
B56: voedermiddel9 | C56: (voedermiddel) | D56: 0 | E56: 0 | F56: 0
B57: voedermiddel10 | C57: =C18 -> (voedermiddel) | D57: 0 | E57: 0 | F57: 0
B58: voedermiddel11 | C58: (voedermiddel) | D58: 0 | E58: 0 | F58: 0
B59: voedermiddel12 | C59: (voedermiddel) | D59: 0 | E59: 0 | F59: 0
B60: voedermiddel13 | C60: (voedermiddel) | D60: 0 | E60: 0 | F60: 0
B61: voedermiddel14 | C61: (voedermiddel) | D61: 0 | E61: 0 | F61: 0
B62: voedermiddel15 | C62: (voedermiddel) | D62: 0 | E62: 0 | F62: 0
B63: totaal | D63: =SUM(D48:D62) -> 0 | E63: =SUM(E48:E62) -> 0 | F63: =SUM(F48:F62) -> 0
B65: voederwaarde rantsoen
C66: hoeveelheid (kg VS) | D66: DS (kg DS) | E66: VEVI | F66: DVE (g) | G66: OEB (g) | H66: RE (g) | I66: SW
C67: =D63 -> 0 | D67: =IF(COUNTIF($D$9:$D$23,"=-")<>0,"-",SUMPRODUCT($D$48:$D$62,$D$9:$D$23)/1000) -> 0 | E67: =IF(OR(COUNTIF($D$9:$D$23,"=-")<>0,COUNTIF(F9:F23,"=-")<>0),"-",SUMPRODUCT($D$48:$D$62,F9:F23,$D$9:$D$23)/1000) -> 0 | F67: =IF(OR(COUNTIF($D$9:$D$23,"=-")<>0,COUNTIF(G9:G23,"=-")<>0),"-",SUMPRODUCT($D$48:$D$62,G9:G23,$D$9:$D$23)/1000) -> 0 | G67: =IF(OR(COUNTIF($D$9:$D$23,"=-")<>0,COUNTIF(H9:H23,"=-")<>0),"-",SUMPRODUCT($D$48:$D$62,H9:H23,$D$9:$D$23)/1000) -> 0 | H67: =IF(OR(COUNTIF($D$9:$D$23,"=-")<>0,COUNTIF(I9:I23,"=-")<>0),"-",SUMPRODUCT($D$48:$D$62,I9:I23,$D$9:$D$23)/1000) -> 0 | I67: =IF(OR(COUNTIF($D$9:$D$23,"=-")<>0,COUNTIF(D28:D42,"=-")<>0),"-",SUMPRODUCT($D$48:$D$62,D28:D42,$D$9:$D$23)/1000) -> 0
D69: Ca (g) | E69: P (g) | F69: Mg (g) | G69: Na (g) | H69: K (g) | I69: VW
D70: =IF(OR(COUNTIF($D$9:$D$23,"=-")<>0,COUNTIF(E28:E42,"=-")<>0),"-",CEILING(SUMPRODUCT($D$48:$D$62,E28:E42,$D$9:$D$23)/1000,0.5)) -> 0 | E70: 0 | F70: 0 | G70: 0 | H70: 0 | I70: 0
B72: kenmerken
B73: gewicht (kg) | D73: groei (g/dag)
B76: voederbehoeftenormen (per dier, per dag)
B77: Energie | C77: VEVI | D77: =DGET('voederbehoeftenormen '!$B$22:$L$102,3,$B$73:$D$74) -> 
B78: Eiwit | C78: g DVE | D78: =DGET('voederbehoeftenormen '!$B$22:$L$102,4,$B$73:$D$74) -> 
C79: g OEB* | D79: =IF(F67>D78,DGET('voederbehoeftenormen '!$B$22:$L$102,5,$B$73:$D$74),0) ->  | E79: =IF(F67>D78,(-(F67-D78)/0.65),0) -> 
B80: Mineralen | C80: g Ca | D80: =IF($D$67>0,DGET('voederbehoeftenormen '!$B$22:$L$102,7,$B$73:$D$74),"afhankelijk van DS-opname") -> afhankelijk van DS-opname
C81: g P | D81: =IF($D$67>0,DGET('voederbehoeftenormen '!$B$22:$L$102,8,$B$73:$D$74),"afhankelijk van DS-opname") -> afhankelijk van DS-opname
C82: g Mg | D82: =DGET('voederbehoeftenormen '!$B$22:$L$102,9,$B$73:$D$74) -> 
B83: Structuur | C83: SW | D83: =IF(D67>0,DGET('voederbehoeftenormen '!$B$22:$L$102,6,$B$73:$D$74),"afhankelijk van DS-opname") -> afhankelijk van DS-opname
B84: * er bestaat geen OEB-norm, wel een ondergrens
B87: hoeveelheid nodig om voederbehoeften te dekken | F87: kenmerken rantsoen
D88: kg DS | F88: DS-gehalte (%) | H88: =(D67/C67)*100 -> 
B89: op basis van | C89: VEVI | D89: =CEILING(D77/(E67/D67),0.5) ->  | F89: RE-gehalte (%) | H89: =(H67/(D67*1000))*100 ->  | K89: =OR(AND($B$74<460,$H$89<15.9)=TRUE,AND($B$74>460,$B$74<570,$H$89<14.4)=TRUE,AND($B$74>570,$H$89<11.9)=TRUE) -> 
C90: DVE | D90: =CEILING(D78/(F67/D67),0.5) ->  | F90: Structuurwaarde (per kg DS) | H90: =I67/D67 -> 
F91: Verzadigingswaarde (per kg DS) | H91: =I70/D67 -> 
B93: opmerkingen
B94: energie (VEVI): | C94: =IF(AND(D67>0,E67<D77),"Pas op! Rantsoen dekt energiebehoefte van dier niet"," ") -> 
B95: eiwit (DVE): | C95: =IF(AND(D67>0,F67<D78),"Pas op! Rantsoen dekt eiwitbehoefte van dier niet. Dit impliceert dat het dier geen OEB-tekort verdraagt."," ") -> 
B96: OEB: | C96: =IF(AND(G67>D79,G67>E79),"","Pas op! OEB-tekort: remming van de penswerking") -> 
C97: =IF(G67>50,"Er is een OEB-overmaat (d.w.z. N-uitscheiding in milieu), besparing op eiwit mogelijk!"," ") -> 
B98: structuur: | C98: =IF(I67<D83*0.95,"Pas op! Structuurtekort, gevaar voor pensverzuring"," ") -> 
B99: droge stofgehalte: | C99: =IF(H88<35,"Pas op! laag DS-gehalte: kans op lagere opneembaarheid rantsoen "," ") -> 
B100: ruw eiwitgehalte: | C100: =IF(K89=TRUE,"Ruw eiwitgehalte is laag: enkel probleem bij te groot OEB-tekort!","") -> 
B101: mineralen: | C101: =IF((D70)<(D80*0.95),"Rantsoen dekt behoefte aan calcium niet: er is een tekort van"," ") ->  | G101: =IF(D70<(D80*0.95),D80-D70," ") ->  | H101: =IF(D70<(D80*0.95),"g per dier"," ") -> 
C102: =IF((E70)<(D81*0.95),"Rantsoen dekt behoefte aan fosfor niet: er is een tekort van"," ") ->  | G102: =IF(E70<(D81*0.95),D81-E70," ") ->  | H102: =IF(E70<(D81*0.95),"g per dier"," ") -> 
C103: =IF((D70/E70)<1.49,"Pas op! Slechte Ca/P-verhouding: overmaat aan P = gevaar voor nier- en blaasstenen"," ") -> 
B104: kostprijs: | C104: =IF(COUNTIF($E$48:$E$62,"=-")<>0,"De kostprijs van één of meerdere voedermiddelen ontbreken, de totale kostprijs van het rantsoen is niet volledig"," ") -> 
C105: =IF(COUNTIF($F$48:$F$62,"=-")<>0,"De voederwaardeprijs van één of meerdere voedermiddelen ontbreken, ga na of de bewaarverliezen van deze voedermiddellen zijn ingevuld "," ") -> 
C106: =IF(OR(C104<>" ",C105<>" ")," ",IF(AND(E63>1.05*F63,F63>0),"De kostprijs van het rantsoen is hoger dan de voederwaardeprijs: ga na of een goedkoper voedermiddel kan ingeschakeld worden.","")) -> 

Sheet lijst voedermiddelen (hidden)
A1: Nr. | B1: voedermiddel | C1: DS (g/kg VS) | D1: VEM (/kg DS) | E1: VEVI (/kg DS) | F1: DVE (g/kg DS) | G1: OEB (g/kg DS) | H1: RE (g/kgDS) | I1: SW (/kg DS) | J1: Ca (g/kg DS) | K1: P (g/kg DS) | L1: Mg (g/kg DS) | M1: Na (g/kg DS) | N1: K (g/kg DS) | O1: VW (/kg DS) | P1: bewaarverliezen (%)
A2: =ROW(A1) -> 1 | B2: (voedermiddel)
A3: 2 | B3: aardappelen, vers | C3: 199 | D3: 1108 | E3: 1226 | F3: 69 | G3: -14 | H3: 104 | I3: 0.7 | J3: 1.45 | K3: 2.65 | L3: 1.2 | M3: 1.8 | N3: 23.55 | O3: 0.65 | P3: 5
A4: 3 | B4: aardappelsnippers | C4: 296 | D4: 1227 | E4: 1359 | F4: 71 | G4: -25 | H4: 92 | I4: 0.48 | J4: 0.46 | K4: 2.02 | L4: 0.48 | M4: 1.25 | N4: 12 | O4: 0.57 | P4: 7
A5: 4 | B5: aardappelstoomschillen | C5: 134 | D5: 1099 | E5: 1206 | F5: 101 | G5: -22 | H5: 132 | I5: 0.45 | J5: 1.56 | K5: 2.68 | L5: 1.16 | M5: 0.91 | N5: 28.36 | O5: 0.51 | P5: 5
A6: 5 | B6: bietenmelasse | C6: 725 | D6: 1043 | E6: 1152 | F6: 74 | G6: 78 | H6: 142 | I6: -0.25 | J6: 5.75 | K6: 0.38 | L6: 0.28 | M6: 7.76 | N6: 59.9 | O6: 0.34 | P6: 0
A7: 6 | B7: bietenvinasse | C7: 674 | D7: 912 | E7: 984 | F7: 46 | G7: 248 | H7: 352 | I7: 0.09 | J7: 6.13 | K7: 1.77 | L7: 1.51 | M7: 25.04 | N7: 94 | O7: 0.32 | P7: 0
A8: 7 | B8: CCM RC 40-60g/kg | C8: 593 | D8: 1178 | E8: 1294 | F8: 80 | G8: -39 | H8: 98 | I8: 0.5 | J8: 0.13 | K8: 3.3 | L8: 1.2 | M8: 0.1 | N8: 4.1 | O8: 0.71 | P8: 5
A9: 8 | B9: cichoreipulp | C9: 884 | D9: 1023 | E9: 1100 | F9: 96 | G9: -68 | H9: 90 | I9: 0.28 | J9: 10.07 | K9: 2.01 | L9: 1.47 | M9: 1.73 | N9: 9.99 | O9: 0.43 | P9: 0
A10: 9 | B10: citruspulp | C10: 904 | D10: 1068 | E10: 1165 | F10: 84 | G10: -73 | H10: 69 | I10: 0.2 | J10: 13.33 | K10: 1.33 | L10: 1.38 | M10: 0.55 | N10: 10.46 | O10: 0.34 | P10: 0
A11: 10 | B11: draf, 27% DS | C11: 269 | D11: 953 | E11: 949 | F11: 147 | G11: 24 | H11: 228 | I11: 0.95 | J11: 4.5 | K11: 6.27 | L11: 1.9 | M11: 0.9 | N11: 0.8 | O11: 0.55 | P11: 6
A12: 11 | B12: droge bietenpulp | C12: 896 | D12: 1009 | E12: 1088 | F12: 98 | G12: -52 | H12: 107 | I12: 0.31 | J12: 10.72 | K12: 0.9 | L12: 2.02 | M12: 1.92 | N12: 12.47 | O12: 0.36 | P12: 0
A13: 12 | B13: erwten, droog | C13: 869 | D13: 1179 | E13: 1292 | F13: 120 | G13: 68 | H13: 241 | I13: 0.11 | J13: 1.15 | K13: 4.49 | L13: 1.26 | M13: 0.11 | N13: 10.48 | O13: 0.29 | P13: 0
A14: 13 | B14: gerst | C14: 874 | D14: 1116 | E14: 1218 | F14: 102 | G14: -49 | H14: 113 | I14: -0.05 | J14: 0.69 | K14: 3.72 | L14: 1.25 | M14: 0.34 | N14: 5.1 | O14: 0.29 | P14: 0
A15: 14 | B15: gerstevoermeel | C15: 884 | D15: 748 | E15: 738 | F15: 48 | G15: -2 | H15: 122 | I15: 0.33 | J15: 2.94 | K15: 2.99 | L15: 2.49 | M15: 0.14 | N15: 11.44 | O15: 0.36 | P15: 0
A16: 15 | B16: grashooi | C16: 845 | D16: 790 | E16: 789 | F16: 57 | G16: 14 | H16: 136 | I16: 3.61 | J16: 5 | K16: 4.2 | L16: - | M16: - | N16: 34.1 | O16: 1.4 | P16: 0
A17: 16 | B17: graszaadhooi/ graszaadstro | C17: 844 | D17: 583 | E17: 529 | F17: 21 | G17: -13 | H17: 70 | I17: 4.3 | J17: 4.4 | K17: 1.7 | L17: - | M17: - | N17: 18.4 | O17: 1.66 | P17: 0
A18: 17 | B18: katoenzaadschroot | C18: 908 | D18: 873 | E18: 867 | F18: 185 | G18: 144 | H18: 400 | I18: 0.44 | J18: 2.3 | K18: 11.57 | L18: 6.35 | M18: 0.66 | N18: 17.12 | O18: 0.37 | P18: 0
A19: 18 | B19: kokosschilfers | C19: 922 | D19: 1203 | E19: 1303 | F19: 163 | G19: 3 | H19: 222 | I19: 0.42 | J19: 0.96 | K19: 6.08 | L19: 3.32 | M19: 0.64 | N19: 23.33 | O19: 0.34 | P19: 0
A20: 19 | B20: koolzaadkoek | C20: 894 | D20: 1094 | E20: 1154 | F20: 140 | G20: 148 | H20: 362 | I20: 0.31 | J20: 7.05 | K20: 12.08 | L20: 4.7 | M20: 0.22 | N20: 13.2 | O20: 0.35 | P20: 0
A21: 20 | B21: koolzaadschroot | C21: 881 | D21: 962 | E21: 992 | F21: 151 | G21: 168 | H21: 399 | I21: 0.34 | J21: 8.15 | K21: 11.92 | L21: 4.5 | M21: 0.28 | N21: 14.11 | O21: 0.34 | P21: 0
A22: 21 | B22: krijt | C22: 980 | D22: 0 | E22: 0 | F22: 0 | G22: 0 | H22: 0 | I22: 0 | J22: 387.76 | K22: 0 | L22: 0 | M22: 0 | N22: 0 | O22: 0 | P22: 0
A23: 22 | B23: lijnzaad | C23: 909 | D23: 1892 | E23: 2136 | F23: 75 | G23: 109 | H23: 227 | I23: 0.35 | J23: 2.75 | K23: 6.2 | L23: 3.81 | M23: 0.77 | N23: 8.58 | O23: 0.32 | P23: 0
A24: 23 | B24: lijnzaadschilfers | C24: 909 | D24: 1121 | E24: 1185 | F24: 172 | G24: 111 | H24: 349 | I24: 0.34 | J24: 3.63 | K24: 8.75 | L24: 5.15 | M24: 0.96 | N24: 13.01 | O24: 0.33 | P24: 0
A25: 24 | B25: luzernehooi | C25: 851 | D25: 648 | E25: 605 | F25: 71 | G25: 34 | H25: 177 | I25: 4.05 | J25: 9.6 | K25: 2.4 | L25: - | M25: - | N25: 23.3 | O25: 1.4 | P25: 0
A26: 25 | B26: luzernepellets | C26: 911 | D26: 706 | E26: 683 | F26: 73 | G26: 14 | H26: 168 | I26: 0.57 | J26: 15.77 | K26: 2.89 | L26: - | M26: - | N26: - | O26: 0.39 | P26: 0
A27: 26 | B27: maïsglutenvoer | C27: 891 | D27: 1080 | E27: 1157 | F27: 102 | G27: 81 | H27: 239 | I27: 0.36 | J27: 1.65 | K27: 9.8 | L27: 4.04 | M27: 3.97 | N27: 13.35 | O27: 0.62 | P27: 0
A28: 27 | B28: maïskiemkoek (schilfers) | C28: 900 | D28: 1063 | E28: 1138 | F28: 115 | G28: 38 | H28: 223 | I28: 0.32 | J28: 1.01 | K28: 7.81 | L28: 3.02 | M28: 0.5 | N28: 4.9 | O28: 0.62 | P28: 0
A29: 28 | B29: maïskiemschroot | C29: 884 | D29: 1072 | E29: 1147 | F29: 118 | G29: 37 | H29: 245 | I29: 0.35 | J29: 0.47 | K29: 6.71 | L29: 1.7 | M29: 0.77 | N29: 3.47 | O29: 0.62 | P29: 0
A30: 29 | B30: maïskuil | C30: 335.2 | D30: 950 | E30: 989.2 | F30: 52 | G30: -36 | H30: 75 | I30: 1.57 | J30: 1.5 | K30: 2 | L30: 1.2 | M30: 0.2 | N30: 12 | O30: 0.82 | P30: 7
A31: 30 | B31: maniok | C31: 882 | D31: 1038 | E31: 1136 | F31: 58 | G31: -85 | H31: 26 | I31: -0.16 | J31: 2.9 | K31: 0.82 | L31: 1.18 | M31: 0.11 | N31: 7.53 | O31: 0.32 | P31: 0
A32: 31 | B32: milo | C32: 873 | D32: 1156 | E32: 1269 | F32: 81 | G32: -38 | H32: 95 | I32: 0.21 | J32: 0.44 | K32: 3.21 | L32: 1.49 | M32: 0.17 | N32: 4.28 | O32: 0.31 | P32: 0
A33: 32 | B33: MKS | C33: 541 | D33: 1134 | E33: 1226 | F33: 68 | G33: -27 | H33: 93 | I33: 0.75 | J33: 0.4 | K33: 2.5 | L33: 0 | M33: 0 | N33: 5.5 | O33: 0.74 | P33: 5
A34: =ROW(A33) -> 33 | B34: moutkiemen | C34: 911 | D34: 918 | E34: 946 | F34: 83 | G34: 93 | H34: 241 | I34: 0.26 | J34: 2.14 | K34: 5.91 | L34: 1.45 | M34: 0.38 | N34: 13.34 | O34: 0.36 | P34: 0
A35: 34 | B35: paardebonen | C35: 860 | D35: 1172 | E35: 1274 | F35: 118 | G35: 132 | H35: 302 | I35: 0.16 | J35: 1.51 | K35: 5.51 | L35: 1.63 | M35: 0.16 | N35: 14.96 | O35: 0.35 | P35: 0
A36: 35 | B36: palmpitschroot | C36: 879 | D36: 909 | E36: 932 | F36: 124 | G36: -25 | H36: 172 | I36: 0.62 | J36: 2.39 | K36: 6.02 | L36: 1.15 | M36: 0.11 | N36: 3.16 | O36: 0.39 | P36: 0
A37: 36 | B37: perspulp | C37: 226 | D37: 1070 | E37: 1153 | F37: 104 | G37: -64 | H37: 104 | I37: 1.05 | J37: 8.35 | K37: 0.95 | L37: 2 | M37: 0.6 | N37: 5.95 | O37: 0.7 | P37: 4
A38: 37 | B38: protifeed (DDGS) | C38: 923 | D38: 1106 | E38: 1154 | F38: 141 | G38: 134 | H38: 346 | I38: 0.38 | J38: 1.15 | K38: 8.57 | L38: 3.13 | M38: 3.35 | N38: 12.45 | O38: - | P38: 0
A39: 38 | B39: protistar | C39: 330 | D39: 1010 | E39: - | F39: 168 | G39: 68 | H39: 320 | I39: - | J39: - | K39: 4.6 | L39: - | M39: 0.7 | N39: 4.8 | O39: - | P39: 4
A40: 39 | B40: protisyr | C40: 300 | D40: 1125 | E40: 1206 | F40: 168 | G40: 136 | H40: 350 | I40: - | J40: 1.1 | K40: 12.8 | L40: 5.3 | M40: 11 | N40: 22.5 | O40: - | P40: 4
A41: 40 | B41: protiwanze | C41: 270 | D41: 1123 | E41: 1204 | F41: 157 | G41: 94 | H41: 300 | I41: - | J41: 1.5 | K41: 6.4 | L41: 1.7 | M41: 2.3 | N41: 13.5 | O41: - | P41: 4
A42: 41 | B42: sojaschroot | C42: 878 | D42: 1154 | E42: 1237 | F42: 264 | G42: 197 | H42: 506 | I42: 0.25 | J42: 3.39 | K42: 7.28 | L42: 3.26 | M42: 0.25 | N42: 25.97 | O42: 0.29 | P42: 0
A43: 42 | B43: spelt | C43: 872 | D43: 935 | E43: 974 | F43: 72 | G43: -3 | H43: 123 | I43: 0.18 | J43: 0.43 | K43: 3.82 | L43: 1.31 | M43: 0.17 | N43: 4.72 | O43: - | P43: 0
A44: 43 | B44: tarwe | C44: 855 | D44: 1158 | E44: 1275 | F44: 95 | G44: -21 | H44: 124 | I44: -0.11 | J44: 0.47 | K44: 3.78 | L44: 1.05 | M44: 0.12 | N44: 5.15 | O44: 0.31 | P44: 0
A45: 44 | B45: tarweferm | C45: 325 | D45: 1128 | E45: 1225 | F45: 147 | G45: 55 | H45: 275 | I45: 0.15 | J45: 1.9 | K45: 12.5 | L45: - | M45: 15.2 | N45: 16.1 | O45: - | P45: 4
A46: 45 | B46: tarweglutenvoer, gedroogd | C46: 905 | D46: 987 | E46: 1038 | F46: 89 | G46: 26 | H46: 177 | I46: 0.15 | J46: 1.6 | K46: 9.64 | L46: 2.96 | M46: 4.88 | N46: 14.04 | O46: 0.32 | P46: 0
A47: 46 | B47: tarwestro | C47: 902 | D47: 418 | E47: 336 | F47: -4 | G47: -17 | H47: 44 | I47: 4.3 | J47: 4.3 | K47: 1.1 | L47: - | M47: - | N47: 17.5 | O47: 1.66 | P47: 0
A48: 47 | B48: triticale | C48: 871 | D48: 1191 | E48: 1320 | F48: 90 | G48: -20 | H48: 123 | I48: -0.13 | J48: 0.46 | K48: 3.79 | L48: 1.21 | M48: 0.11 | N48: 5.86 | O48: 0.31 | P48: 0
A49: 48 | B49: vers gras | C49: 157 | D49: 1005 | E49: 1060 | F49: 97 | G49: 77 | H49: 227 | I49: 1.89 | J49: 5.8 | K49: 4.3 | L49: - | M49: - | N49: 36.6 | O49: 0.89 | P49: -
A50: 49 | B50: voederbieten | C50: 147 | D50: 1049 | E50: 1163 | F50: 95 | G50: -93 | H50: 88 | I50: 1.05 | J50: 1.45 | K50: 1.9 | L50: - | M50: - | N50: 23.77 | O50: 0.69 | P50: 10
A51: 50 | B51: voordroogkuil | C51: 452 | D51: 897 | E51: 927 | F51: 67 | G51: 58 | H51: 173 | I51: 2.89 | J51: 5.08 | K51: 4.12 | L51: 1.9 | M51: 1.9 | N51: 34.28 | O51: 1.01 | P51: 15
A52: 51 | B52: witloofwortelen | C52: 157 | D52: 1018 | E52: 1120 | F52: 77 | G52: -83 | H52: 59 | I52: 0.93 | J52: 3.2 | K52: 1.77 | L52: - | M52: - | N52: 17.87 | O52: 0.69 | P52: 5
A53: 52 | B53: zemelen/kortmeel | C53: 876 | D53: 879 | E53: 897 | F53: 76 | G53: 35 | H53: 178 | I53: 0.3 | J53: 2.11 | K53: 13.13 | L53: 3.13 | M53: 0.18 | N53: 14.95 | O53: 0.33 | P53: 0

Sheet rekenblad
B1: box: | D1: hoeveelheid (kg)
B2: aantal dieren: | D2: voor alle dieren | E2: per dier
B3: voedermiddel 1: | E3: =D3/$C$2 -> 
B4: voedermiddel 2: | E4: =D4/$C$2 -> 
B5: voedermiddel 3: | E5: =D5/$C$2 -> 
B6: voedermiddel 4: | E6: =D6/$C$2 -> 
B7: voedermiddel 5: | E7: =D7/$C$2 -> 
B8: voedermiddel 6:
B9: voedermiddel 7:
B10: voedermiddel 8:
B11: voedermiddel 9:
B12: voedermiddel 10:
B13: voedermiddel 11:
B14: voedermiddel 12:
B15: voedermiddel 13:
B16: voedermiddel 14:
B17: voedermiddel 15:
B18: totaal rantsoen | D18: =SUM(D3:D17) -> 0 | E18: =SUM(E3:E17) -> 
B23: Voedermengwagen | D23: hoeveelheid (kg) | G23: hoeveelheid (kg) box: | I23: hoeveelheid
D24: voedermengwagen | E24: aandeel | G24: aantal dieren: | I24: (kg per dier)
B25: voedermiddel 1: | E25: =D25/$D$40 ->  | I25: =E25*$H$40 -> 
B26: voedermiddel 2: | E26: =D26/$D$40 ->  | I26: =E26*$H$40 -> 
B27: voedermiddel 3:
B28: voedermiddel 4:
B29: voedermiddel 5:
B30: voedermiddel 6:
B31: voedermiddel 7:
B32: voedermiddel 8:
B33: voedermiddel 9:
B34: voedermiddel 10:
B35: voedermiddel 11:
B36: voedermiddel 12:
B37: voedermiddel 13:
B38: voedermiddel 14:
B39: voedermiddel 15:
B40: totaal rantsoen | D40: =SUM(D25:D39) -> 0 | E40: =SUM(E25:E39) ->  | G40: totaal rantsoen | H40: =H23/H24 ->  | I40: =SUM(I25:I39) -> 
